Workbook

Sheet CURVA ABC (2) (hidden)
B7: =#REF! -> 
B8: =#REF! -> 
B10: CURVA ABC
K12: =#REF! ->  | L12: =#REF! -> 
C13: =#REF! ->  | D13: =#REF! ->  | L13: =#REF! -> 
C14: =#REF! ->  | D14: =#REF! ->  | L14: =#REF! -> 
C15: =#REF! ->  | D15: =#REF! ->  | K15: =#REF! ->  | L15: =#REF! -> 
C16: =#REF! ->  | D16: =#REF! -> 
B17: Tab. | C17: Codigo | D17: DISCRIMINAÇÃO DOS SERVIÇOS | E17: UND | F17: QTD. | G17: VALOR UNIT. | H17: VALOR UNIT. COM. B.D.I. | I17: TOTAL | J17: TOTAL ACUMULADO | K17: (%) | L17: (%) ACUM. | M17: CLASS.
A19: 2 | C19: =#REF! ->  | D19: =#REF! ->  | E19: =#REF! ->  | F19: =#REF! ->  | G19: =#REF! ->  | H19: =#REF! ->  | I19: =ROUND(H19*F19,2) ->  | J19: =I19 ->  | K19: =I19/$N$217 ->  | L19: =K19 ->  | M19: =IF(L19>95%,"C",IF(L19>80%,"B","A")) -> 
A20: 3 | L20: =K20+L19 -> 
A21: 4 | L21: =K21+L20 -> 
A22: 5
A23: 6
A24: 7
A25: 8
A26: 9
A27: 10
A28: 11
A29: 12
A30: 13
A31: 14
A32: 15
A33: 16
A34: 17
A35: 18
A36: 19
A37: 20
A38: 21
A39: 22
A40: 23
A41: 24
A42: 25
A43: 26
A44: 27
A45: 28
A46: 29
A47: 30
A48: 31
A49: 32
A50: 33
A51: 34 | K51: =I51/$N$217 -> 
A52: 35
A53: 36
A54: 37
A55: 38
A56: 39
A57: 40
A58: 41
A59: 42
A60: 43
A61: 44
A62: 45
A63: 46
A64: 47
A65: 48
A66: 49
A67: 50
A68: 51
A69: 52
A70: 53
A71: 54
A72: 55
A73: 56
A74: 57
A75: 58
A76: 59
A77: 60
A78: 61
A79: 62
A80: 63
A81: 1
A82: 64
A83: 65 | K83: =I83/$N$217 -> 
A84: 66 | M84: =IF(L84>95%,"C",IF(L84>80%,"B","A")) -> 
A85: 67 | L85: =K85+L84 -> 
A86: 68
A87: 69
A88: 70
A89: 71
A90: 72
A91: 73
A92: 74
A93: 75
A94: 76
A95: 77
A96: 78
A97: 79
A98: 80
A99: 81
A100: 82
A101: 83
A102: 84
A103: 85
A104: 86
A105: 87
A106: 88
A107: 89
A108: 90
A109: 91
A110: 92
A111: 93
A112: 94
A113: 95
A114: 96
A115: 97 | K115: =I115/$N$217 -> 
A116: 98
A117: 99
A118: 100
A119: 101
A120: 102
A121: 103
A122: 104
A123: 105
A124: 106
A125: 107
A126: 108
A127: 109
A128: 110
A129: 111
A130: 112
A131: 113
A132: 114
A133: 115
A134: 116
A135: 117
A136: 118
A137: 119
A138: 120
A139: 121
A140: 122
A141: 123
A142: 124
A143: 125
A144: 126
A145: 127
A146: 128
A147: 129 | K147: =I147/$N$217 -> 
A148: 130 | M148: =IF(L148>95%,"C",IF(L148>80%,"B","A")) -> 
A149: 131 | L149: =K149+L148 -> 
A150: 132
A151: 133
A152: 134
A153: 135
A154: 136
K179: =I179/$N$217 -> 
K211: =I211/$N$217 -> 
M212: =IF(L212>95%,"C",IF(L212>80%,"B","A")) -> 
L213: =K213+L212 ->  | M213: =IF(L213>95%,"C",IF(L213>80%,"B","A")) -> 
L214: =K214+L213 ->  | M214: =IF(L214>95%,"C",IF(L214>80%,"B","A")) -> 
L215: =K215+L214 ->  | M215: =IF(L215>95%,"C",IF(L215>80%,"B","A")) -> 
L216: =K216+L215 ->  | M216: =IF(L216>95%,"C",IF(L216>80%,"B","A")) -> 
N217: =SUM(I19:I217) -> 
I219: %ITENS | J219: % ACUMULADO VALORES | K219: VALOR ACUMULADO | L219: CLASSIFICAÇÃO
I220: 0 | J220: 0 | K220: 0 | L220: A
I221: 0.2 | J221: =L59 ->  | K221: =J59 -> 0 | L221: A
I222: 0.5 | J222: =L105 ->  | K222: =J105 -> 0 | L222: B
I223: 1 | J223: =L216 ->  | K223: =J216 -> 0 | L223: C

Sheet QCI (hidden)
A6: =#REF! -> 
A7: =#REF! -> 
A9: QCI - QUADRO DE COMPOSIÇÃO DO INVESTIMENTO
A11: =#REF! ->  | B11: =#REF! -> 
A12: =#REF! ->  | B12: =#REF! -> 
A13: =#REF! ->  | B13: =#REF! -> 
A14: =#REF! ->  | B14: =#REF! -> 
G15: 549998.26 | H15: valor do contrato
A16: QCI - QUADRO DE COMPOSIÇÃO DO INVESTIMENTO | G16: 0 | H16: contrapartida
A17: ITENS | B17: DISCRIMINAÇÃO DOS SERVIÇOS | C17: VALORES C/ BDI R$ | G17: 0.1 | H17: fração percentual
C18: C. PARTIDA | D18: REPASSE | E18: TOTAL
A19: =#REF! ->  | B19: =#REF! ->  | C19: =E19*$G$17 ->  | D19: =E19-C19 ->  | E19: =G19*1.2882 ->  | G19: =#REF! -> 
A20: =#REF! ->  | B20: =#REF! ->  | C20: =E20*$G$17 ->  | D20: =E20-C20 ->  | E20: =G20*1.2882 ->  | G20: =#REF! -> 
A21: =#REF! ->  | B21: =#REF! ->  | D21: =E21-C21 ->  | G21: =#REF! -> 
A22: =#REF! ->  | B22: =#REF! ->  | D22: =E22-C22 ->  | G22: =#REF! -> 
A23: =#REF! ->  | B23: =#REF! ->  | G23: =#REF! -> 
A24: =#REF! ->  | B24: =#REF! ->  | G24: =#REF! -> 
A25: =#REF! ->  | B25: =#REF! ->  | G25: =#REF! -> 
A26: =#REF! ->  | B26: =#REF! ->  | G26: =#REF! -> 
A27: =#REF! ->  | B27: =#REF! ->  | G27: =#REF! -> 
A28: =#REF! ->  | B28: =#REF! ->  | G28: =#REF! -> 
A29: =#REF! ->  | B29: =#REF! ->  | G29: =#REF! -> 
A30: =#REF! ->  | B30: =#REF! ->  | G30: =#REF! -> 
A31: =#REF! ->  | B31: =#REF! ->  | G31: =#REF! -> 
A32: =#REF! ->  | B32: =#REF! ->  | D32: =E32-C32 ->  | E32: =G32*1.2882 ->  | G32: =#REF! -> 
A33: =#REF! ->  | B33: =#REF! ->  | G33: =#REF! -> 
A34: =#REF! ->  | B34: =#REF! ->  | D34: =E34-C34 ->  | E34: =G34*1.2882 ->  | G34: =#REF! -> 
A35: =#REF! ->  | B35: =#REF! ->  | G35: =#REF! -> 
A36: =#REF! ->  | B36: =#REF! ->  | D36: =E36-C36 ->  | E36: =G36*1.2882 ->  | G36: =#REF! -> 
A37: =#REF! ->  | B37: =#REF! ->  | G37: =#REF! -> 
A38: =#REF! ->  | B38: =#REF! ->  | D38: =E38-C38 ->  | E38: =G38*1.2882 ->  | G38: =#REF! -> 
A39: =#REF! ->  | B39: =#REF! ->  | G39: =#REF! -> 
A40: =#REF! ->  | B40: =#REF! ->  | D40: =E40-C40 ->  | E40: =G40*1.2882 ->  | G40: =#REF! -> 
A41: =#REF! ->  | B41: =#REF! ->  | G41: =#REF! -> 
A42: =#REF! ->  | B42: =#REF! ->  | D42: =E42-C42 ->  | E42: =G42*1.2882 ->  | G42: =#REF! -> 
A43: =#REF! ->  | B43: =#REF! ->  | G43: =#REF! -> 
A44: =#REF! ->  | B44: =#REF! ->  | D44: =E44-C44 ->  | E44: =G44*1.2882 ->  | G44: =#REF! -> 
A45: =#REF! ->  | B45: =#REF! ->  | G45: =#REF! -> 
A46: =#REF! ->  | B46: =#REF! ->  | D46: =E46-C46 ->  | E46: =G46*1.2882 ->  | G46: =#REF! -> 
A47: =#REF! ->  | B47: =#REF! ->  | G47: =#REF! -> 
A48: VALOR TOTAL EM R$ - COM BDI | C48: =SUM(C19:C47) ->  | D48: =SUM(D19:D47) ->  | E48: =C48+D48 ->  | G48: =SUM(G19:G47) -> 

Sheet Planilha1 (hidden)

Sheet LOGO (hidden)
B4: CIDADE | C4: SIGLA | D4: CIDADE | G4: BANDEIRA | H4: SIGLA | I4: CIDADE
B5: ALTA FLORESTA | C5: PREFEITURA DE ALTA FLORESTA | D5: 1 | H5: PREFEITURA DE URUPA | I5: =INDEX(B5:B60,MATCH(H5,C5:C60,0)) -> URUPA
B6: ALTO ALEGRE DOS PARECI | C6: PREFEITURA DE ALTO ALEGRE DOS PARECIS | D6: 2
B7: ALVORADA DO OESTE | C7: PREFEITURA DE ALVORADA DO OESTE | D7: 3 | G7: =INDEX($E$5:$E$60,MATCH($H$5,$C$5:$C$60,0)) -> 0
B8: ARIQUEMES | C8: PREFEITURA DE ARIQUEMES | D8: 4 | G8: =INDEX(LOGO!$E$5:$E$52,MATCH(#REF!,LOGO!$C$5:$C$52,0)) -> 
B9: BURITIS | C9: PREFEITURA DE BURITIS | D9: 5
B10: CABIXI | C10: PREFEITURA DE CABIXI
B11: CACAULÂNDIA | C11: PREFEITURA DE CACAULÂNDIA
B12: CACOAL | C12: PREFEITURA DE CACOAL
B13: CAMPO NOVO DE RONDÔNIA | C13: PREFEITURA DE CAMPO NOVO DE RONDÔNIA
B14: CANDEIAS DO JAMARI | C14: PREFEITURA DE CANDEIAS DO JAMARI
B15: CASTANHEIRA | C15: PREFEITURA DE CASTANHEIRA
B16: CEREJEIRAS | C16: PREFEITURA DE CEREJEIRAS
B17: CHUPINGUAIA | C17: PREFEITURA DE CHUPINGUAIA
B18: COLORADO DO OESTE | C18: PREFEITURA DE COLORADO DO OESTE
B19: CORUMBIARA | C19: PREFEITURA DE CORUMBIARA
B20: COSTA MARQUES | C20: PREFEITURA DE COSTA MARQUES
B21: CUJUBIM | C21: PREFEITURA DE CUJUBIM
B22: ESPIGÃO DO OESTE | C22: PREFEITURA DE ESPIGÃO DO OESTE
B23: GOVERNADOR JORGE TEIXEIRA | C23: PREFEITURA DE GOVERNADOR JORGE TEIXEIRA
B24: GUAJARA MIRIM | C24: PREFEITURA DE GUAJARA MIRIM
B25: ITAPUÃ DO OESTE | C25: PREFEITURA DE ITAPUÃ DO OESTE
B26: JARU | C26: PREFEITURA DE JARU
B27: JI-PARANA | C27: PREFEITURA DE JI-PARANA
B28: MACHADINHO D'OESTE | C28: PREFEITURA DE MACHADINHO D'OESTE
B29: MINISTRO ANDREAZZA | C29: PREFEITURA DE MINISTRO ANDREAZZA
B30: MIRANTE DA SERRA | C30: PREFEITURA DE MIRANTE DA SERRA
B31: NOVA BRASILÂNDIA DO OESTE | C31: PREFEITURA DE NOVA BRASILÂNDIA DO OESTE
B32: NOVA MAMORÉ | C32: PREFEITURA DE NOVA MAMORÉ
B33: NOVO HORIZONTE DO OESTE | C33: PREFEITURA DE NOVO HORIZONTE DO OESTE
B34: PARECIS | C34: PREFEITURA DE PARECIS
B35: PIMENTA BUENO | C35: PREFEITURA DE PIMENTA BUENO
B36: PIMENTEIRAS DO OESTE | C36: PREFEITURA DE PIMENTEIRAS DO OESTE
B37: PORTO VELHO | C37: PREFEITURA DE PORTO VELHO
B38: PRESIDENTE MEDICI | C38: PREFEITURA DE PRESIDENTE MEDICI
B39: PRIMAVERA DE RONDÔNIA | C39: PREFEITURA DE PRIMAVERA DE RONDÔNIA
B40: RIO CRESPO | C40: PREFEITURA DE RIO CRESPO
B41: ROLIM DE MOURA | C41: PREFEITURA DE ROLIM DE MOURA
B42: SANTA LUZIA DO OESTE | C42: PREFEITURA DE SANTA LUZIA DO OESTE
B43: SÃO FELIPE DO OESTE | C43: PREFEITURA DE SÃO FELIPE DO OESTE
B44: SÃO FRANCISCO DO GUAPORÉ | C44: PREFEITURA DE SÃO FRANCISCO DO GUAPORÉ
B45: SÃO MIGUEL DO GUAPORÉ | C45: PREFEITURA DE SÃO MIGUEL DO GUAPORÉ
B46: SERINGUEIRAS | C46: PREFEITURA DE SERINGUEIRAS
B47: TEIXEIRÓPOLIS | C47: PREFEITURA DE TEIXEIRÓPOLIS
B48: THEOBROMA | C48: PREFEITURA DE THEOBROMA
B49: URUPA | C49: PREFEITURA DE URUPA
B50: VALE DO ANARI | C50: PREFEITURA DE VALE DO ANARI
B51: VALE DO PARAISO | C51: PREFEITURA DE VALE DO PARAISO
B52: VILHENA | C52: PREFEITURA DE VILHENA

Sheet COMP.DESO. (hidden)
M4: IR PARA PASTA
A7: =#REF! -> 
A8: =#REF! -> 
A10: COMPOSIÇÃO DE CUSTO
A12: =#REF! ->  | B12: =#REF! -> 
A13: =#REF! ->  | B13: =#REF! -> 
A14: =#REF! ->  | B14: =#REF! ->  | F14: REF.: | G14: "C" - COMPOSIÇÃO SINAPI
A15: =#REF! ->  | B15: =#REF! ->  | G15: "I" - INSUMO SINAPI

Sheet COTAÇÕES (hidden)
A7: =#REF! -> 
A8: =#REF! -> 
A10: COMPOSIÇÃO DE CUSTO
A12: =#REF! ->  | B12: =#REF! -> 
A13: =#REF! ->  | B13: =#REF! -> 
A14: =#REF! ->  | B14: =#REF! ->  | F14: REF.:
A15: =#REF! ->  | B15: =#REF! -> 
A17: Código | B17: COTAÇÕES ARQUITETÔNICO. | C17: Unidade | D17: Preço | E17: Datas | F17: LOJAS
A18: COT.ARQ.1 | B18: Arremate para forro de PVC - perfil - barra "U" - barra 6,00m | C18: barra | D18: =L18 ->  | E18: 2017-01-01 | L18: =IF(K18+I18+G18=0,"",MEDIAN(K18,I18,G18)) -> 
A19: COT.ARQ.2 | B19: Forro PVC régua de 200mm | C19: m² | D19: =L19 ->  | L19: =IF(K19+I19+G19=0,"",MEDIAN(K19,I19,G19)) -> 
A20: COT.ARQ.3 | B20: Kit de ferragens para janela | C20: und | D20: =L20 ->  | E20: 2017-12-20 | L20: =IF(K20+I20+G20=0,"",MEDIAN(K20,I20,G20)) -> 
A21: COT.ARQ.4 | B21: Cj. Mesa Qud. 0,90m c/ tab.jgsc/ 4bq qud. Ms04 | C21: und | D21: 590 | E21: 2017-01-01 | F21: CF MOLDART | G21: 430 | H21: SELVA | I21: 750 | L21: =IF(K21+I21+G21=0,"",MEDIAN(K21,I21,G21)) -> 590
A22: COT.ARQ.5 | B22: Cancela automática (2,50 a 6,00 metros) | D22: 3759 | E22: 2017-01-30 | F22: INOVECERTO | G22: 3759 | L22: =IF(K22+I22+G22=0,"",MEDIAN(K22,I22,G22)) -> 3759
A23: COT.ARQ.6 | B23: Catraca de fluxo de pessoas | C23: und | D23: 4603 | E23: 2017-01-30 | F23: MICROMAQ | G23: 4603 | L23: 4603
A24: COT.ARQ.7 | B24: Placa de A.C.M. | C24: m² | D24: 450 | E24: 2015-11-08 | F24: TANIAMORANDI | G24: 275 | H24: EMANUEL COMÉCIOS DE TINTAS | I24: 450 | J24: CASA APARECIDA | K24: 500 | L24: 450
A25: COT.ARQ.8 | B25: Tela sombrite preto com 50% (sombreamento 3,00m largura) | C25: m² | D25: 4.4 | E25: 2010-10-04 | F25: HILGERT | G25: 4 | H25: CASA DO ADUBO | I25: 4.8 | L25: 4.4
A26: COT.ARQ.9 | B26: Grama sintética esportiva de 50mm | C26: m² | D26: 84.15 | E26: 2017-01-10 | F26: MINASGRAMADOS | G26: 90 | H26: MADEIRAMADEIRA | I26: 78.3 | L26: 84.15
A27: COT.ARQ.10 | B27: Granulado sintético | C27: kg | D27: 0.735 | E27: 2017-01-10 | F27: RESO | G27: 0.72 | H27: GRUPOPLACAS | I27: 0.75 | L27: 0.735
A28: COT.ARQ.11 | B28: Rede de proteção esportiva | C28: m² | D28: 3.99 | E28: 2017-01-10 | F28: GISMAR REDES | G28: 4.39 | H28: MAGNUM REDES ESPORTIVAS | I28: 2.3 | J28: SR REDES ESPORTIVAS | K28: 3.99 | L28: 3.99
A29: COT.ARQ.12 | B29: Trave | C29: und | E29: 2016-04-18 | F29: MERCADÃO DOS ESPORTES | G29: 1552.32 | L29: 1552.32
A30: COT.ARQ.13 | B30: Bebedouro industrial | C30: und | D30: =L30 -> 1849 | E30: 2016-11-11 | F30: LIDER BEBEDOUROS | G30: 1759 | H30: CENTROOESTE REFRIGERAÇÃO | I30: 2350 | J30: ACQUA REFRIGERAÇÃO | K30: 1849 | L30: 1849
A31: COT.ARQ.14 | B31: Janela de vidro temperado, espessura 8mm, inclusive instalação e acessórios | C31: m² | D31: 285 | E31: 2019-02-01 | F31: VIPAULO | G31: 270 | H31: VICTOR HUGO | I31: 285 | J31: W MACHADO | K31: 310 | L31: 285
A32: COT.ARQ.15 | B32: Ferro metalon para entarugamento de forro PVC (20x20)mm. Barra de 6,00metros | C32: barra | D32: 17.5 | E32: 2015-12-10 | F32: JAIR RODRIGUES | G32: 19 | H32: OFFICE COM | I32: 17 | J32: F M DA SILVA | K32: 17.5 | L32: 17.5
A33: COT.ARQ.16 | B33: Pele de vidro, com espessura de 8mm, fixada em estrutura de aluminio, incluso instalação | C33: m²
A34: COT.ARQ.17 | B34: Telha aluminio trapézio 0,43mm (termoacústico), incluso fixador | C34: m² | D34: 24.9 | E34: 2016-07-21 | F34: JIPAFERRO | G34: 25.5 | H34: JIFERRO | I34: 24.16 | J34: OUROAÇO | K34: 24.9 | L34: =IF(K34+I34+G34=0,"",MEDIAN(K34,I34,G34)) -> 24.9
A35: COT.ARQ.18 | B35: Telha PVC colonial | C35: m² | D35: 69 | E35: 2017-03-06 | F35: SUBMARINO | G35: 86 | H35: MINASFERRO | I35: 52 | L35: =IF(K35+I35+G35=0,"",MEDIAN(K35,I35,G35)) -> 69
A36: COT.ARQ.19 | B36: Fechamento em placa de ACM, incluso instalação e acessórios excluso estrutura para fixação | C36: m² | D36: 320 | E36: 2017-03-24 | F36: PONCIO&PONCIO | G36: 320 | H36: TORQUI | I36: 320 | J36: AMAZONFER | K36: 480 | L36: =IF(K36+I36+G36=0,"",MEDIAN(K36,I36,G36)) -> 320
A37: COT.ARQ.20 | B37: Ladrilho hidraulico, *25 x 25* cm, e= 2 cm, tatil alerta ou direcional. | C37: m² | L37: =IF(K37+I37+G37=0,"",MEDIAN(K37,I37,G37)) -> 
A38: COT.ARQ.21 | B38: Muda de Dracena Tricolor / Dracaena Marginata 1m de altura | C38: und | D38: 35 | E38: 2019-04-01 | F38: MUNDO VERDE | G38: 35 | H38: VIVEIRO BRASIL | I38: 30 | J38: VIVEIRO GUIMARÃES | K38: 60 | L38: =IF(K38+I38+G38=0,"",MEDIAN(K38,I38,G38)) -> 35
A39: COT.ARQ.22 | B39: Muda de Palmeira Rafis 0,50m á 1,00m de altura. | C39: und | D39: 60 | E39: 2019-04-01 | F39: MUNDO VERDE | G39: 20 | H39: VIVEIRO BRASIL | I39: 60 | J39: VIVEIRO GUIMARÃES | K39: 60 | L39: 60
A40: COT.ARQ.23 | B40: Muda de Orquidiea de Bambu / Arundina graminifolia 0,50m á 0,70m de altura. | C40: und | D40: 30 | E40: 2019-04-01 | F40: MUNDO VERDE | G40: 35 | H40: VIVEIRO BRASIL | I40: 18 | J40: VIVEIRO GUIMARÃES | K40: 30 | L40: 30
A41: COT.ARQ.24 | B41: Muda de Piteira do Caribe / Agave Angustifolia de 0,50m á 1,00m de altura. | C41: und | D41: 32.5 | E41: 2019-04-01 | F41: MUNDO VERDE | G41: 30 | H41: VIVEIRO BRASIL | I41: 35 | L41: 32.5
A42: COT.ARQ.25 | B42: Muda de Moreia / Dietes iridioides de 20 á 40 cm | C42: und | D42: 30 | E42: 2019-07-02 | F42: OZAME E CESAR | G42: 30 | H42: LF GARDEN | I42: 30 | J42: C.P.TAMARE | K42: 30 | L42: 30
A43: COT.ARQ.26 | B43: Muda de Flamboyant / Delonix Regia 2m de altura | C43: und | D43: 40 | E43: 2019-04-01 | F43: MUNDO VERDE | G43: 60 | H43: VIVEIRO BRASIL | I43: 15 | J43: VIVEIRO GUIMARÃES | K43: 40 | L43: 40
A44: COT.ARQ.27 | B44: COTAÇÃO DE JANELAS, VER PASTA | C44: und
A45: COT.ARQ.28 | B45: COTAÇÃO DE PORTA, VER PASTA | C45: und
A46: COT.ARQ.29 | B46: Forro de gesso acartonado | C46: m² | D46: 48 | E46: 2018-04-25 | F46: GESSOFORRO | G46: 60 | H46: GUIMARÃES | I46: 46 | J46: TOPFORROS | K46: 48 | L46: 48
A47: COT.ARQ.30 | B47: Argila | C47: m³ | E47: 2018-03-20 | F47: NORTEMAQ | G47: 6 | L47: 6
A48: COT.ARQ.31 | B48: Argamassa Baritada, rendimento 40kg/m² | C48: saco 20kg | D48: =L48 -> 22 | E48: 2019-06-26 | F48: GRUPO GRX | G48: 29.9 | H48: PROMOVEX | I48: 20 | J48: DOCTORX | K48: 22 | L48: =IF(K48+I48+G48=0,"",MEDIAN(K48,I48,G48)) -> 22
A49: COT.ARQ.32 | B49: Mapa tátil com Pedestal | C49: und | D49: 1920 | E49: 2018-04-15 | F49: SOLUCAO ACESSIVEL P. P/ ACESS. M. EIRELI | G49: =1050+649.9 -> 1699.9 | H49: JPA ACESSIBILIDADE | I49: 1920 | J49: MOVERACESSIBILIDADE | K49: =1178.95+754.39 -> 1933.34 | L49: =IF(K49+I49+G49=0,"",MEDIAN(K49,I49,G49)) -> 1920
A50: COT.ARQ.33 | B50: Placa de identificação de ambientes diversos, escrita em braille, de acrílico dim. 20x10 cm | C50: und | D50: 49.9 | E50: 2018-04-15 | F50: SOLUCAO ACESSIVEL P. P/ ACESS. M. EIRELI | G50: 49.9 | H50: JPA ACESSIBILIDADE | I50: 75 | J50: MOVERACESSIBILIDADE | K50: 32.73 | L50: =IF(K50+I50+G50=0,"",MEDIAN(K50,I50,G50)) -> 49.9
A51: COT.ARQ.34 | B51: Porta em vidro temperado 10mm, tipo abrir, incluso instalação e acessórios | C51: m² | D51: 340 | E51: 2019-07-01 | F51: VIPAULO | G51: 350 | H51: VICTOR HUGO | I51: 330 | J51: W MACHADO | K51: 340 | L51: =IF(K51+I51+G51=0,"",MEDIAN(K51,I51,G51)) -> 340
A52: COT.ARQ.35 | B52: Janela em vidro temperado 8mm, tipo correr, incluso instalação e acessórios | C52: m²
A53: COT.ARQ.36 | B53: Porta de correr em madeira 90x210cm, incluso instalação | C53: und | D53: 849.9 | F53: LEROYMERLIN | G53: 900.9 | H53: AMERICANAS | I53: 702 | J53: TELHANORTE | K53: 849.9 | L53: =IF(K53+I53+G53=0,"",MEDIAN(K53,I53,G53)) -> 849.9
A54: COT.ARQ.37 | B54: Porta de madeira maciça tipo abrir 100x210cm, incluso instalação | C54: und | D54: 594 | E54: 2018-06-01 | F54: R.B.C. DE CARVALHO | G54: 594 | L54: =IF(K54+I54+G54=0,"",MEDIAN(K54,I54,G54)) -> 594
A55: COT.ARQ.38 | B55: Porta de correr baritada 90x210cm, incluso acessórios para instalação | C55: und | D55: 1800 | E55: 2018-10-03 | F55: CSR ACESSÓRIOS | G55: 1800 | L55: =IF(K55+I55+G55=0,"",MEDIAN(K55,I55,G55)) -> 1800
A56: COT.ARQ.39 | B56: Porta de madeira tipo vai e vem 120x210cm, incluso instalação | C56: und | L56: =IF(K56+I56+G56=0,"",MEDIAN(K56,I56,G56)) -> 
A57: COT.ARQ.40 | B57: Porta de correr em aluminio 90x210cm, incluso instalação | C57: und | L57: =IF(K57+I57+G57=0,"",MEDIAN(K57,I57,G57)) -> 
A58: COT.ARQ.41 | B58: Muda de Estrelitizia / Strelitiza Reginae 0,50 à 1,00m de altura. | C58: und | D58: 70 | E58: 2019-07-02 | F58: LF GARDEN | G58: 85 | H58: OZAME E CESAR | I58: 50 | J58: C.P.TAMARE | K58: 70 | L58: =IF(K58+I58+G58=0,"",MEDIAN(K58,I58,G58)) -> 70
A59: COT.ARQ.42 | B59: Muda de Ipê de Jardim / Tecoma Stans (amarelo) 0,50 á 1,00m de altura. | C59: und | D59: 70 | E59: 2019-07-02 | F59: LF GARDEN | G59: 90 | H59: OZAME E CESAR | I59: 45 | J59: C.P.TAMARE | K59: 70 | L59: 70
A60: COT.ARQ.43 | B60: Muda de Areca Bambu / Dypsis Lutescens 0,80 á 1,20m de altura. | C60: und | D60: 80 | E60: 2019-07-02 | F60: LF GARDEN | G60: 80 | H60: OZAME E CESAR | I60: 65 | J60: C.P.TAMARE | K60: 150 | L60: 80
A61: COT.ARQ.44 | B61: Muda de Barba de Serpente / Liriope Muscari 0,30 á 0,50m de altura. | C61: und | D61: 20 | E61: 2019-07-02 | F61: LF GARDEN | G61: 20 | H61: OZAME E CESAR | I61: 20 | J61: C.P.TAMARE | K61: 20 | L61: 20
A62: COT.ARQ.45 | B62: Muda de Bromélia / Bromeliaceae 0,30 á 0,50m de altura. | C62: und | D62: 25 | E62: 2019-07-02 | F62: LF GARDEN | G62: 80 | H62: OZAME E CESAR | I62: 25 | J62: C.P.TAMARE | K62: 20 | L62: 25
A63: COT.ARQ.46 | B63: Limitador plástico para grama h.: 0,12 m | C63: m | D63: 1.55 | E63: 2019-09-04 | F63: SHOPTIME | G63: 1.55 | H63: SUBMARINO | I63: 1.55 | J63: PAIOL VERDE | K63: 1.44 | L63: =IF(K63+I63+G63=0,"",MEDIAN(K63,I63,G63)) -> 1.55
A64: COT.ARQ.47 | B64: Casca de Pino para Jardim. | C64: l | D64: 1.15 | E64: 2019-07-02 | F64: LF GARDEN | G64: =45/40 -> 1.125 | H64: OZAME E CESAR | I64: 1.25 | J64: C.P.TAMARE | K64: 1.15 | L64: 1.15
A65: COT.ARQ.48 | B65: Seixo Branco para Jardim. | C65: kg | D65: 2 | E65: 2019-07-02 | F65: LF GARDEN | G65: =30/15 -> 2 | H65: OZAME E CESAR | I65: 2 | J65: C.P.TAMARE | K65: =50/40 -> 1.25 | L65: 2
A66: COT.ARQ.49 | B66: Muda de Agave de Dragão / Agave Attenuata 0,30 á 0,50 m de altura. | C66: und | D66: 90 | E66: 2019-07-02 | F66: LF GARDEN | G66: 90 | H66: OZAME E CESAR | I66: 90 | J66: C.P.TAMARE | K66: 75 | L66: 90
A67: COT.ARQ.50 | B67: Banheiro químico | C67: und/mês | D67: 550 | E67: 2019-07-04 | F67: EMOPS | G67: 550 | H67: LOC-MAQ | I67: 550 | J67: CONSTRULOC | K67: 480 | L67: =IF(K67+I67+G67=0,"",MEDIAN(K67,I67,G67)) -> 550
A68: COT.ARQ.51 | B68: Letra caixa inóx, 01 unidade de altura de 50cm | C68: und | D68: 196.85 | E68: 2021-07-29 | G68: 224.81 | I68: 184.3 | K68: 196.85 | L68: =IF(K68+I68+G68=0,"",MEDIAN(K68,I68,G68)) -> 196.85
A69: COT.ARQ.52 | B69: Lixeira em aço do tipo redonda em tela com um cesto | C69: und | D69: =L69 -> 139.05 | E69: 2019-09-04 | F69: POLLO FUNDIDOS | G69: 145.18 | H69: AMERICANAS | I69: 132.09 | J69: SHOPTIME | K69: 139.05 | L69: =IF(K69+I69+G69=0,"",MEDIAN(K69,I69,G69)) -> 139.05
A70: COT.ARQ.53 | L70: =IF(K70+I70+G70=0,"",MEDIAN(K70,I70,G70)) -> 
A71: COT.ARQ.54
A72: COT.ARQ.55 | L72: =IF(K72+I72+G72=0,"",MEDIAN(K72,I72,G72)) -> 
A73: COT.ARQ.56 | L73: =IF(K73+I73+G73=0,"",MEDIAN(K73,I73,G73)) -> 
A74: COT.ARQ.57 | L74: =IF(K74+I74+G74=0,"",MEDIAN(K74,I74,G74)) -> 
A75: COT.ARQ.58 | B75: Muda de Palmeira Imperial H.: 0,70 m | C75: und | D75: =L75 -> 80 | E75: 2019-09-04 | F75: SITIO DA MATA | G75: 134.68 | H75: MONDINI | I75: 35 | J75: SAFARI GARDEN | K75: 80 | L75: 80
A76: COT.ARQ.59
A77: COT.ARQ.60
A78: COT.ARQ.61
A79: COT.ARQ.62 | B79: Muda tumbergia branca trepadeira | C79: Und. | D79: =L79 -> 35 | E79: 2019-06-27 | F79: SAFARI GARDEN | G79: 35 | H79: ECOFLORA BH | I79: 22 | J79: FLORA MONTE CLARO | K79: 44 | L79: 35
A80: COT.ARQ.63 | B80: Balanço de ferro com 3 lugares | C80: und | D80: 1128 | E80: 2019-07-27 | F80: BRINK STAR | G80: 999 | H80: ANIMA MIX | I80: 1128 | J80: MEGA PLAYGROUNDS | K80: 2149 | L80: 1128
A81: COT.ARQ.64 | B81: Escorregador de ferro infantil | C81: und | D81: 1070 | E81: 2019-07-27 | F81: ESPORTES EXPRESS | G81: 871 | H81: ANIMA MIX | I81: 1290 | J81: CASINHA INFANTIL | K81: 1070 | L81: 1070
A82: COT.ARQ.65 | B82: Gira gira 6 lugares | C82: und | D82: 1090 | E82: 2019-07-27 | F82: ESPORTES EXPRESS | G82: 2199 | H82: ANIMA MIX | I82: 796 | J82: CASINHA INFANTIL | K82: 1090 | L82: 1090
A83: COT.ARQ.66 | B83: Alongador três alturas | C83: und | D83: 2675 | E83: 2019-09-04 | F83: MILLA | G83: 2850 | H83: FLEX | I83: 2500 | L83: 2675
A84: COT.ARQ.67 | B84: Rotação Vertical dupla | C84: und | D84: 1265 | E84: 2019-09-04 | F84: MILLA | G84: 1630 | H84: LIFE | I84: 900 | L84: 1265
A85: COT.ARQ.68 | B85: Eliptico duplo | C85: und | D85: 3690 | E85: 2019-09-04 | F85: MILLA | G85: 4545 | H85: ZIOBER | I85: 3682 | J85: FLEX | K85: 3690 | L85: 3690
A86: COT.ARQ.69 | B86: Simulador de caminhada | C86: und | D86: 4510 | E86: 2019-09-04 | F86: MILLA | G86: 4660 | H86: ZIOBER | I86: 4510 | J86: FLEX | K86: 4500 | L86: 4510
A87: COT.ARQ.70 | B87: Esqui triplo | C87: und | D87: 4918 | E87: 2019-09-04 | F87: MILLA | G87: 6370 | H87: ZIOBER | I87: 4918 | J87: FLEX | K87: 4800 | L87: 4918
A88: COT.ARQ.71 | B88: Leg press triplo | C88: und | D88: 3220 | E88: 2019-09-04 | F88: MILLA | G88: 2375 | H88: FLEX | I88: 3590 | J88: ZIOBER | K88: 3220 | L88: 3220
A89: COT.ARQ.72 | B89: Abdominal dublo | C89: und | D89: 3196 | E89: 2019-09-04 | F89: MILLA | G89: 4900 | H89: ZIOBER | I89: 3196 | J89: FLEX | K89: 2500 | L89: 3196
A90: COT.ARQ.73 | B90: Placa orientativa horizontal | C90: und | D90: 2970 | E90: 2019-09-04 | F90: MILLA | G90: 3540 | H90: FLEX | I90: 2400 | L90: =IF(K90+I90+G90=0,"",MEDIAN(K90,I90,G90)) -> 2970
A91: COT.ARQ.74 | B91: Barra de ferro 3 alturas | C91: und | D91: 2938 | E91: 2019-09-04 | F91: ZIOBER | G91: 2938 | H91: FLEX | I91: 3460 | J91: LIFE | K91: 2500 | L91: =IF(K91+I91+G91=0,"",MEDIAN(K91,I91,G91)) -> 2938
A93: Código | B93: COTAÇÕES HIDROSSANITÁRIO. | C93: Unidade | D93: Preço | E93: Datas | F93: LOJAS
A94: COT.HID.1 | B94: Perfuração de Poço Tubular Profundo, com profundidade variável até 100m,revestido com tubo especial reforçado, com filtro e pré-filtro, dotado de bomba submersa (1 1/2 CV) com capacidade para vazão minima projetada, tubo edutor especial rígido, quadro de comando e bóia automática, selo sanitário anelar em concreto, tubo alimentador de pré-filtro, limpeza e desinfecção, instalações e regulagem de bóia, teste de vazões/níveis/recuperação, incluso ART (anotação de responsabilidade técnica) e deslocamento de equipamentos. | C94: und | D94: =L94 -> 21218 | E94: 2016-02-29 | F94: POÇO RM | G94: 21218 | H94: POÇOS RONDONIA | I94: 19000 | J94: PACÍFICO CONSTRUTORA | K94: 23955 | L94: =IF(K94+I94+G94=0,"",MEDIAN(K94,I94,G94)) -> 21218
A95: COT.HID.2 | B95: Reservatório Metálico em aço carbono tipo tubular cilindrico com capacidade de 5.000 litros, incluso todos os acessórios e conexões (fornecimento e instalação), com frete e impostos inclusos. | C95: und | D95: 15214.5 | E95: 2016-02-29 | F95: FAZFORTE | G95: =5418+9200 -> 14618 | H95: STOCK | I95: =5779+11000 -> 16779 | J95: FHAIZER | K95: =10143+(10143*0.5) -> 15214.5 | L95: 15214.5
A96: COT.HID.3 | B96: Reservatório Metálico em aço carbono tipo tubular cilindrico com capacidade de 10.000 litros, incluso todos os acessórios e conexões (fornecimento e instalação), com frete e impostos inclusos. | C96: und | D96: 19100 | E96: 2016-02-29 | F96: FAZFORTE | G96: =7875+9200 -> 17075 | H96: STOCK | I96: =8100+11000 -> 19100 | J96: FHAIZER | K96: =13887.2+(13887.2*0.5) -> 20830.8 | L96: 19100
A97: COT.HID.4 | B97: Reservatório Metálico em aço carbono tipo tubular cilindrico com capacidade de 15.000 litros, incluso todos os acessórios e conexões (fornecimento e instalação), com frete e impostos inclusos. | C97: und | D97: 20187.2 | E97: 2016-02-29 | F97: FAZFORTE | G97: =10987.2+9200 -> 20187.2 | H97: STOCK | I97: =8669+11000 -> 19669 | J97: FHAIZER | K97: =17568.65+(17568.65*0.5) -> 26352.975 | L97: 20187.2
A98: COT.HID.5 | B98: Reservatório Metálico em aço carbono tipo tubular cilindrico com capacidade de 20.000 litros, incluso todos os acessórios e conexões (fornecimento e instalação), com frete e impostos inclusos. | C98: und | D98: 22935 | E98: 2016-02-29 | F98: FAZFORTE | G98: =11188.8+9200 -> 20388.8 | H98: STOCK | I98: =11935+11000 -> 22935 | J98: FHAIZER | K98: =19332.33+(19332.33*0.5) -> 28998.495 | L98: 22935
A99: COT.HID.6 | B99: Reservatório Metálico em aço carbono tipo tubular cilindrico com capacidade de 30.000 litros, incluso todos os acessórios e conexões (fornecimento e instalação), com frete e impostos inclusos. | C99: und | D99: 23425.4 | E99: 2016-02-29 | F99: FAZFORTE | G99: =14225.4+9200 -> 23425.4 | H99: MUNDIAL | I99: =11772+(11772*0.5) -> 17658 | J99: FIBRAV | K99: =26597+(26597*0.5) -> 39895.5 | L99: 23425.4
A100: COT.HID.7 | B100: Reservatório Metálico em aço carbono tipo tubular cilindrico com capacidade de 50.000 litros, incluso todos os acessórios e conexões (fornecimento e instalação), com frete e impostos inclusos. | C100: und | D100: 39000 | E100: 2016-02-29 | F100: FAZFORTE | G100: =26825.4+9200 -> 36025.4 | H100: FIDO | I100: 39000 | J100: FHAIZER | K100: =33327.44+(33327.44*0.5) -> 49991.16 | L100: 39000
A101: COT.HID.8 | B101: Reservatório Metálico em aço carbono tipo tubular cilindrico com capacidade de 60.000 litros, incluso todos os acessórios e conexões (fornecimento e instalação), com frete e impostos inclusos. | C101: und | D101: 47730 | E101: 2016-02-29 | F101: AGRO | G101: =31046.4+9000 -> 40046.4 | H101: STOCK | I101: =36730+11000 -> 47730 | J101: FHAIZER | K101: =38295.81+(38295.81*0.5) -> 57443.715 | L101: 47730
A102: COT.HID.9 | B102: Bebedouro de pressão BAG40 INOX 110v | C102: und | D102: 764.15 | E102: 2016-02-29 | F102: CASA BAHIA | G102: =699+65.15 -> 764.15 | H102: EXTRA | I102: =699+65.15 -> 764.15 | J102: IBBL | K102: =939+276.5 -> 1215.5 | L102: 764.15
A103: COT.HID.10 | B103: Bebedouro Industrial Inox Refrigeração 100 Litros 127v com Filtro, com frete incluso. | C103: und | D103: 2161 | E103: 2016-02-29 | F103: LIDER | G103: =1759+269 -> 2028 | H103: CENTROOESTE | I103: =2232.5+170 -> 2402.5 | J103: AQCUAMAX | K103: =1849+312 -> 2161 | L103: 2161
A104: COT.HID.11 | B104: Torneira clinica bica longa 1/4 de volta - metal cromado, com frete incluso. | C104: und | D104: 269.38 | F104: AMERICANAS | G104: =159.9+70.62 -> 230.52 | H104: CASA TORNEIRAS | I104: =237.95+51.34 -> 289.29 | J104: WALMART | K104: =236.16+33.22 -> 269.38 | L104: 269.38
A105: COT.HID.12 | B105: Esgotamento e limpeza de fossa séptica. | C105: und | D105: 150 | F105: RJ | G105: 150 | H105: RAFAEL | I105: 140 | J105: BRAGA | K105: 160 | L105: 150
A106: COT.HID.13 | B106: Expurgo hopitalar e sifão de inox, incluso frete. | C106: und | D106: 3027.7 | F106: UORKINOX | G106: =(2204+670)+((2204+670)*0.3) -> 3736.2 | H106: VIANOX | I106: =(1399+930)+((1399+930)*0.3) -> 3027.7 | J106: BRAVO | K106: =1150+(1150*0.3) -> 1495 | L106: 3027.7
A107: COT.HID.14 | B107: Reservatório Metálico em aço carbono tipo tubular cilindrico com capacidade de 70.000 litros, incluso todos os acessórios e conexões (fornecimento e instalação), com frete e impostos inclusos. | C107: und | D107: 48123 | E107: 2016-02-29 | F107: AGRO | G107: =39123+9000 -> 48123 | L107: 48123
A108: COT.HID.15 | B108: Torneira Elétrica Parede Bica Alta Branca 127V (110V) Versátil , com frete incluso. | C108: und | D108: =L108 -> 144.05 | F108: GALVANI | G108: =114.99+29.06 -> 144.05 | H108: WALMART | I108: =84.9+36 -> 120.9 | J108: MERLYN | K108: =195.9+82.7 -> 278.6 | L108: 144.05
A109: COT.HID.16 | B109: Dispositivo de retorno 2" | C109: und | D109: =L109 -> 127 | F109: A.E TRATAMENTOS DE PISCINAS | G109: 127 | H109: NE DOS SANTOS TRAT. DE PISCINAS | I109: 132 | J109: Só piscinas | K109: 119 | L109: 127
A110: COT.HID.17 | B110: Escada de inox de piscina com 3 degraus ABS | C110: und | D110: =L110 -> 573.98 | F110: SÓ PISCINAS | G110: 550 | H110: SODRAMAR | I110: 573.98 | J110: TROPICAL HOME | K110: 654.41 | L110: 573.98
A111: COT.HID.18 | B111: Dispositivo de aspiração 2" | C111: und | D111: 128 | F111: A.E TRATAMENTOS DE PISCINAS | G111: 128 | H111: NE DOS SANTOS TRAT. DE PISCINAS | I111: 132 | J111: Só piscinas | K111: 99 | L111: 128
A112: COT.HID.19 | B112: Bomba centrifuga 4 cv para piscina | C112: und | D112: 4989 | F112: A.E TRATAMENTOS DE PISCINAS | G112: 4989 | H112: NE DOS SANTOS TRAT. DE PISCINAS | I112: 5280 | J112: Só piscinas | K112: 4700 | L112: 4989
A113: COT.HID.20 | B113: Filtro com capacidade de 120 kg de areia | C113: und | D113: 10800 | F113: A.E TRATAMENTOS DE PISCINAS | G113: 11100 | H113: NE DOS SANTOS TRAT. DE PISCINAS | I113: 10800 | J113: Só piscinas | K113: 10300 | L113: 10800
A114: COT.HID.21 | B114: Ralo de fundo da piscina anti turbilhão 30X30 | C114: und | D114: 399 | F114: A.E TRATAMENTOS DE PISCINAS | G114: 380 | H114: NE DOS SANTOS TRAT. DE PISCINAS | I114: 430 | J114: Só piscinas | K114: 399 | L114: 399
A115: COT.HID.22 | B115: Aspersor Superjet de impacto rosca fêmea 32mm | C115: und | D115: 56.2 | F115: AGROCHUVA | G115: =25.9+30.3 -> 56.2 | H115: BIOSMENTE | I115: =30.3+14.9 -> 45.2 | J115: NADAAM | K115: =41.21+55.34 -> 96.55 | L115: 56.2
A116: COT.HID.23 | B116: Caixa d'água em polietileno, 310 litros | C116: und | D116: =L116 -> 175 | F116: CAIARI | G116: 125 | H116: CASA APARECIDA | I116: 178.5 | J116: STILL | K116: 175 | L116: 175
A117: COT.HID.24 | B117: Banheira para fraldário | C117: und | D117: =L117 -> 59.9 | F117: SHOPTIME | G117: 59.9 | L117: 59.9
A118: COT.HID.25 | B118: Vaso sanitário com caixa acoplada infantil louça branca. | C118: und | D118: =L118 -> 673.62 | F118: obra facil | G118: 600.33 | H118: taqi | I118: 746.91 | L118: 673.62
A120: Código | B120: COTAÇÕES ELÉTRICO. | C120: Unidade | D120: Preço | E120: Datas | F120: LOJAS
A121: COT.ELE.1 | B121: Disjuntor Motor tripolar 32A | C121: und | D121: =L121 ->  | L121: =IF(K121+I121+G121=0,"",MEDIAN(K121,I121,G121)) -> 
A122: COT.ELE.2 | B122: Eletrocalha perfurada tipo U com tampa (50x50x3000)mm, com conexões | C122: und | D122: =L122 -> 67.9 | E122: 2020-01-07 | F122: implemaq | G122: 75 | H122: guaruja | I122: 33.9 | J122: GONÇAVES | K122: 67.9 | L122: 67.9
A123: COT.ELE.2.1 | B123: Eletrocalha perfurada tipo U com tampa (50x100x3000)mm, com conexões | C123: und | D123: 89 | E123: 2020-01-08 | F123: implemaq | G123: 101.2 | H123: guaruja | I123: 52.9 | J123: GONÇAVES | K123: 89 | L123: 89
A124: COT.ELE.2.2 | B124: Eletrocalha perfurada tipo U com tampa (100x100x3000)mm, com conexões | C124: und | D124: =L124 -> 101.2 | E124: 2020-01-09 | F124: implemaq | G124: 137 | H124: guaruja | I124: 63.2 | J124: GONÇAVES | K124: 101.2 | L124: 101.2
A125: COT.ELE.3 | B125: Exaustor de teto para banheiro | C125: und | D125: 230 | E125: 2020-01-10 | F125: implemaq | G125: 230 | H125: guaruja | I125: 143 | J125: GONÇAVES | K125: 251.9 | L125: 230
A126: COT.ELE.4 | B126: Lâmpada, fluorescente compacta, cor branca, 23w-127vca | C126: und | D126: 21 | E126: 2020-01-10 | F126: implemaq | G126: 21 | H126: guaruja | I126: 18.7 | J126: GONÇAVES | K126: 22.5 | L126: 21
A127: COT.ELE.5 | B127: Lâmpada, fluorescente compacta, cor branca, 25w-127vca | C127: und | D127: 19.8 | E127: 2020-01-10 | F127: implemaq | G127: 21.12 | H127: guaruja | I127: 18.7 | J127: GONÇAVES | K127: 19.8 | L127: 19.8
A128: COT.ELE.6 | B128: Lâmpada, fluorescente compacta, cor branca, 30w-127vca | C128: und | D128: 28.6 | E128: 2020-01-10 | F128: implemaq | G128: 29.8 | H128: guaruja | I128: 22 | J128: GONÇAVES | K128: 28.6 | L128: 28.6
A129: COT.ELE.7 | B129: Lâmpada halógena 50W PAR20 | C129: und
A130: COT.ELE.8 | B130: Luminária calha sobrepor 2x20W, corpo em chapa de aço fosfatizado, cor branca, refletor parabólico e aletas em alumínio anodizado | C130: und | D130: 52.5 | E130: 2019-05-15 | F130: implemaq | G130: 116.01 | H130: guaruja | I130: 52.5 | J130: GONÇAVES | K130: 42.5 | L130: 52.5
A131: COT.ELE.9 | B131: Luminária pendente prismática 16" bocal E27 para 1 lâmpada fluorescente. | C131: und | D131: 110.6 | E131: 2020-01-10 | F131: implemaq | G131: 115.55 | H131: guaruja | I131: 110.6 | J131: GONÇAVES | K131: 100.6 | L131: 110.6
A132: COT.ELE.10 | B132: Luminária quadrada para 2 lâmpadas fluorescentes. | C132: und | D132: 48 | E132: 2019-05-15 | F132: implemaq | G132: 60 | H132: guaruja | I132: 48 | J132: GONÇAVES | K132: 39.6 | L132: 48
A133: COT.ELE.11 | B133: Luminária Embutir no Solo PAR 20 | C133: und | D133: 215.22 | E133: 2020-01-10 | F133: implemaq | G133: 215.22 | H133: guaruja | I133: 294.2 | J133: GONÇAVES | K133: 179.2 | L133: 215.22
A134: COT.ELE.12 | B134: Ventilador de teto | C134: und | D134: 149 | E134: 2019-11-03 | G134: 112.2 | I134: 149 | K134: 159 | L134: 149
A135: COT.ELE.13 | B135: Luminária plafon | C135: und
A136: COT.ELE.14 | B136: Cabo triplex de alumínio 16 mm² | C136: m | D136: 5.65 | E136: 2019-05-15 | G136: 5.65 | I136: 4.9 | K136: 6.99 | L136: 5.65
A137: COT.ELE.15 | B137: Poste de concreto duplo T, 600 kg, h =11 m | C137: und
A138: COT.ELE.16 | B138: Quadro de comando formato retangular dim. 800x600x250mm, dotado de porta articulada e trincho de fecho rápido, juntas de vedação, flanges, fornecido com placa metálica para montagem de equipamentos, acabamento esterno cor cinza (ral 7032) e interno na cor laranja (ral 2004) | C138: und | D138: 490.99 | E138: 2020-01-10 | F138: implemaq | G138: 592.83 | H138: guaruja | I138: 398.5 | J138: GONÇAVES | K138: 490.99 | L138: 490.99
A139: COT.ELE.16.1 | B139: Quadro de comando formato retangular dim. 1000x600x350mm, dotado de porta articulada e trincho de fecho rápido, juntas de vedação, flanges, fornecido com placa metálica para montagem de equipamentos, acabamento esterno cor cinza (ral 7032) e interno na cor laranja (ral 2004) | C139: und | D139: 655.9 | E139: 2020-01-10 | F139: implemaq | G139: 643.5 | H139: guaruja | I139: 655.9 | J139: GONÇAVES | K139: 667.72 | L139: 655.9
A140: COT.ELE.16.2 | B140: Quadro de comando formato retangular dim. 1200x800x350mm, dotado de porta articulada e trincho de fecho rápido, juntas de vedação, flanges, fornecido com placa metálica para montagem de equipamentos, acabamento esterno cor cinza (ral 7032) e interno na cor laranja (ral 2004) | C140: und | D140: =L140 -> 890 | E140: 2020-01-10 | F140: implemaq | G140: 786.7 | H140: guaruja | I140: 978.5 | J140: GONÇAVES | K140: 890 | L140: 890
A141: COT.ELE.17 | B141: Cabo Quadriplex de alumínio 16 mm² | C141: m | D141: 8 | E141: 2019-05-15 | G141: 8 | I141: 6.85 | K141: 8.99 | L141: 8
A142: COT.ELE.18 | B142: Cabo Quadriplex de alumínio 25 mm² | C142: m | D142: 12 | E142: 2019-05-15 | G142: 12 | I142: 10.8 | K142: 15.99 | L142: 12
A143: COT.ELE.19 | B143: Cabo Quadriplex de alumínio 35 mm² | C143: m | D143: 15.5 | E143: 2019-05-15 | G143: 15.5 | I143: 14.7 | K143: 19.99 | L143: 15.5
A144: COT.ELE.20 | B144: Cabo Quadriplex de alumínio 50 mm² | C144: m | D144: 19.75 | E144: 2019-05-15 | G144: 19.75 | I144: 19.1 | K144: 24 | L144: 19.75
A145: COT.ELE.21 | B145: Transformador monofásico, tipo distribuição, potência 15 kVA, 60Hz classe 15kV, relação de transformação 7,97kV/0,230-0,115V, núcleo imerso em óleo isolante (naftênico), dotado de comutador de "taps" sem carga, com suporte para fixação em poste duplo "T" fornecido completo com buchas de AT e BT, terminal de aterramento, fabricado e testado de acordo com a ABNT (NBR 5356,5380 e 5440) | C145: und
A146: COT.ELE.22 | B146: Transformador monofásico, tipo distribuição, potência 5 kVA, 60Hz classe 15kV, relação de transformação 7,97kV/0,230-0,115V, núcleo imerso em óleo isolante (naftênico), dotado de comutador de "taps" sem carga, com suporte para fixação em poste duplo "T" fornecido completo com buchas de AT e BT, terminal de aterramento, fabricado e testado de acordo com a ABNT (NBR 5356,5380 e 5440) | C146: und
A147: COT.ELE.23 | B147: Transformador monofásico, tipo distribuição, potência 25 kVA, 60Hz classe 15kV, relação de transformação 7,97kV/0,230-0,115V, núcleo imerso em óleo isolante (naftênico), dotado de comutador de "taps" sem carga, com suporte para fixação em poste duplo "T" fornecido completo com buchas de AT e BT, terminal de aterramento, fabricado e testado de acordo com a ABNT (NBR 5356,5380 e 5440) | C147: und
A148: COT.ELE.24 | B148: Luminaria LED sobrepor quadrada de 18w | C148: und | D148: 44.3 | E148: 2020-01-10 | F148: implemaq | G148: 31.9 | H148: guaruja | I148: 44.3 | J148: GONÇAVES | K148: 49.5 | L148: 44.3
A149: COT.ELE.24.1 | B149: Luminaria LED sobrepor quadrada de 24w | C149: und | D149: 58.2 | E149: 2020-01-10 | F149: implemaq | G149: 46.4 | H149: guaruja | I149: 58.2 | J149: GONÇAVES | K149: 60.5 | L149: 58.2
A150: COT.ELE.25 | B150: Lâmpada led 12 w bivolt branca, formato tradicional (base e27) | C150: und | D150: 14 | E150: 2020-01-10 | F150: implemaq | G150: 14 | H150: guaruja | I150: 10.57 | J150: GONÇAVES | K150: 15.5 | L150: 14
A151: COT.ELE.26 | B151: Lâmpada led 16 w bivolt branca, formato tradicional (base e27) | C151: und | D151: 39 | E151: 2020-01-10 | F151: implemaq | G151: 39 | H151: guaruja | I151: 42.9 | J151: GONÇAVES | K151: 25.9 | L151: 39
A152: COT.ELE.27 | B152: Refletor LED 200W holofote | C152: und | D152: 349.8 | E152: 2020-01-10 | F152: implemaq | G152: 349.8 | H152: guaruja | I152: 361.2 | J152: GONÇAVES | K152: 342.5 | L152: 349.8
A153: COT.ELE.28 | B153: Refletor LED 400W holofote | C153: und | D153: 1009.8 | E153: 2020-01-10 | F153: implemaq | G153: 1009.8 | H153: guaruja | I153: 833 | J153: GONÇAVES | K153: 1980.2 | L153: 1009.8
A154: COT.ELE.32 | B154: Poste De Concreto Duplo T, 1500 Kg,H = 11 M | C154: und | D154: 7100 | E154: 2020-01-10 | F154: implemaq | G154: 6800 | H154: guaruja | I154: 7100 | J154: GONÇAVES | K154: 7548 | L154: 7100
A156: Código | B156: CABEAMENTO. | C156: Unidade | D156: Preço | E156: Datas | F156: LOJAS
A157: COT.CAB.1 | B157: Channel bank tdmoe AX600 com Suporte até 32 canais de voz FXS/FXO, 1 porta serial console (RJ-45) e Ethernet: 2 portas 10/100 Mbits (RJ-45) | C157: und | D157: =L157 -> 3100 | E157: 2018-07-01 | F157: Cyber | G157: 3100 | H157: KK | I157: 3100 | J157: KK | K157: 1 | L157: =IF(K157+I157+G157=0,"",MEDIAN(K157,I157,G157)) -> 3100
A158: COT.CAB.2 | B158: Placa com cartão com 8 canais de voz FXO(APX280) | C158: und | D158: 799 | E158: 2018-07-01 | F158: Cyber | G158: 799 | H158: KK | I158: 799 | J158: KK | K158: 0 | L158: 799
A159: COT.CAB.3 | B159: Dio 48 fibras cor preta com 24 alinhadores duplex lc/pc sm e 48 extensão ópitica 1,5 mt duplex sm sc-spc 9/125 | C159: und | D159: 766.665 | E159: 2018-07-01 | F159: EuroInfo | G159: 726.6 | H159: ConectWi | I159: 806.73 | L159: 766.665
A160: COT.CAB.4 | B160: Dio 24 fibras cor preta com 12 alinhadores duplex lc/pc sm e 24 extensão ópitica 1,5 mt duplex sm sc-spc 9/125 | C160: und | D160: 537.98 | E160: 2018-07-01 | F160: SubMarino | G160: 537.98 | H160: Americanas | I160: 699 | J160: NetComputadores | K160: 507.33 | L160: 537.98
A161: COT.CAB.5 | B161: Cabo óptico - (CFOA) -AS80-12FO 9/125 SM MT (Bobina 2KM) | C161: m | D161: 4.9 | E161: 2018-07-01 | F161: SubMarino | G161: 3.22 | H161: Cyber | I161: 11 | J161: EuroInfo | K161: 4.9 | L161: 4.9
A162: COT.CAB.6 | B162: Cordão duplex sm 9/125 lc 2,5 mt | C162: und | D162: 133 | E162: 2018-07-01 | F162: SubMarino | G162: 101.07 | H162: Cyber | I162: 270 | J162: EuroInfo | K162: 133 | L162: 133
A163: COT.CAB.7 | B163: Módulo GBIC Giga KGM 2105 Multi 0,5 Km Intelbras | C163: und | D163: 278.6 | E163: 2018-07-01 | F163: EletroInfo | G163: 247.9 | H163: Cyber | I163: 360 | J163: EuroInfo | K163: 278.6 | L163: 278.6
A164: COT.CAB.8 | B164: Switch gerenciável L2+ 48 portas gigabit ethernet com 4 portas mini-gbic | C164: und | D164: 3314.15 | E164: 2021-07-20 | F164: ShopTelbras | G164: 2957.5 | H164: Proccestec | I164: 3371.24 | J164: FourSev | K164: 3314.15 | L164: 3314.15
A165: COT.CAB.9 | B165: Switch gerenciável L2 24 portas gigabit ethernet com 4 portas mini-gbic | C165: und | D165: 2169 | E165: 2021-01-20 | F165: UpperSeg | G165: 2019.16 | H165: Procestec | I165: 2169 | J165: ShowDigital | K165: 2488.77 | L165: 2169
A166: COT.CAB.10 | B166: Switch gerenciável L2 PoE 24 portas gigabit ethernet com 4 portas mini-gbic | C166: und | D166: 3338.78 | E166: 2020-01-20 | F166: UpperSeg | G166: 3338.78 | H166: Procestec | I166: 3168.17 | J166: ShowDigital | K166: 3692.1 | L166: 3338.78
A167: COT.CAB.11 | B167: Bloco de engate rápido M10B Bargoa | C167: und | D167: 29.9 | E167: 2021-01-08 | F167: NetComputadores | G167: 40.51 | H167: Eletropeças | I167: 22.63 | J167: LojaEletrica | K167: 29.9 | L167: 29.9
A168: COT.CAB.12 | B168: Bastidor M10 para 10 blocos BLI de 10 pares | C168: und | D168: 25.74 | E168: 2021-01-08 | F168: NetComputadores | G168: 24.58 | H168: Eletropeças | I168: 25.74 | J168: LojaEletrica | K168: 29.9 | L168: 25.74
A169: COT.CAB.13 | B169: Barra de aterramento M10 (haste) | C169: und | D169: 8.4 | E169: 2021-01-08 | F169: LojaMetal | G169: 11.9 | H169: SeiTec | I169: 7 | J169: ArtEre | K169: 8.4 | L169: 8.4
A170: COT.CAB.14 | B170: Módulo protetor para blocoM10 mini PEI | C170: und | D170: 8.54 | E170: 2021-01-08 | F170: NetComputadores | G170: 8.54 | H170: Eletropeças | I170: 8.7 | J170: LojaMetal | K170: 6.2 | L170: 8.54
A171: COT.CAB.15 | B171: Guia “de cabo horizontal fechado 1u 19” preto | C171: und | D171: 35.9 | E171: 2021-07-20 | F171: NetComputadores | G171: 35.9 | H171: CentralCabos | I171: 39 | J171: LojaEletrica | K171: 33.8 | L171: 35.9
A172: COT.CAB.16 | B172: Painel de fechamento 19" 1 U preto | C172: und | D172: 10 | E172: 2021-07-20 | F172: NetComputadores | G172: 10 | H172: CentralCabos | I172: 10.9 | J172: Ciclops | K172: 8.9 | L172: 10
A173: COT.CAB.17 | B173: Bandeja fixação simples 400mm | C173: und | D173: 105.8 | E173: 2021-07-20 | F173: NetComputadores | G173: 78.1 | H173: UperSeg | I173: 119.61 | J173: LojaEletrica | K173: 105.8 | L173: 105.8
A174: COT.CAB.18 | B174: Bandeja fixa 800mm preto | C174: und | D174: 148.23 | E174: 2020-01-22 | F174: NetComputadores | G174: 148.23 | H174: Ciclops | I174: 126.9 | J174: LojaEletrica | K174: 175.48 | L174: 148.23
A175: COT.CAB.19 | B175: Bandeja móvél 19” x 800 mm de profundidade. | C175: und | D175: 239.7 | E175: 2020-01-22 | F175: NetComputadores | G175: 222.94 | H175: Ciclops | I175: 239.7 | J175: LojaEletrica | K175: 257.15 | L175: 239.7
A176: COT.CAB.20 | B176: kit porca / gaiola embalagem c/ 50 pçs | C176: und | D176: 52.07 | E176: 2021-07-20 | F176: NetComputadores | G176: 51.57 | H176: LojaMetal | I176: 52.79 | J176: ItComTech | K176: 52.07 | L176: 52.07
A177: COT.CAB.21 | B177: Regua de tomadas com 8 posições | C177: und | D177: 91.8 | E177: 2021-07-20 | F177: NetComputadores | G177: 132.5 | H177: Ciclops | I177: 91.8 | J177: LojaEletrica | K177: 89.87 | L177: 91.8
A178: COT.CAB.22 | B178: Kit de ventilação c/ 2 ventiladires | C178: und | D178: 312.72 | E178: 2021-01-08 | F178: NetComputadores | G178: 226.14 | H178: Ciclops | I178: 334.9 | J178: LojaEletrica | K178: 312.72 | L178: 312.72
A179: COT.CAB.23 | B179: No-break de 3,2kva | C179: und | D179: 3781.65 | E179: 2020-01-22 | F179: Proccestec | G179: 3951.28 | H179: TrueData | I179: 3599.01 | J179: FourSev | K179: 3781.65 | L179: 3781.65
A180: COT.CAB.24 | B180: Velcro dupla façe 20mm RL 3 metros - preto | C180: und | D180: 19.9 | E180: 2021-07-20 | F180: NetComputadores | G180: 16.9 | H180: LojaMetal | I180: 19.9 | J180: LojaEletrica | K180: 22.2 | L180: 19.9
A181: COT.CAB.25 | B181: Espelho 4x2 p/keystone rj45 2 saidas cor branca | C181: und | D181: 5 | E181: 2021-07-20 | F181: NetComputadores | G181: 10.74 | H181: LojaMetal | I181: 3.9 | J181: CentralCabos | K181: 5 | L181: 5
A182: COT.CAB.26 | B182: Espelho 4x4 p/keystone rj45 4 saidas cor branca | C182: und | D182: 8.5 | E182: 2021-07-20 | F182: NetComputadores | G182: 12.29 | H182: LojaEletrica | I182: 8.5 | J182: CentralCabos | K182: 4.9 | L182: 8.5
A183: COT.CAB.27 | B183: Espelho 4x4 p/keystone rj45 6 saidas cor branca | C183: und | D183: 19.15 | E183: 2021-07-20 | F183: NetComputadores | G183: 19.15 | H183: SoluçãoCabos | I183: 13 | J183: LojaMetal | K183: 23.9 | L183: 19.15
A184: COT.CAB.28 | B184: Caixa de passagem de embutir no piso em liga de alumínio silício 15x15x12mm | C184: und | D184: 160 | E184: 2020-01-22 | F184: Hilgert | G184: 122.2 | H184: Jose da Silva | I184: 160 | J184: Guaruja | K184: 173.5 | L184: 160
A185: COT.CAB.29 | B185: Caixa de piso em liga de alúmino 4X2 fechada e baixa | C185: und | D185: 9.18 | E185: 2020-01-22 | F185: CopaFer | G185: 13.06 | H185: Secal | I185: 9.18 | J185: LojaEletrica | K185: 9.1 | L185: 9.18
A186: COT.CAB.30 | B186: Placa inox 4x2 piso, para 2 RJ45 | C186: und | D186: 19.94 | E186: 2020-01-22 | F186: Santil | G186: 17.63 | H186: SuperEletrica | I186: 19.94 | J186: LojaEletrica | K186: 24.97 | L186: 19.94
A187: COT.CAB.31 | B187: Cabo Coaxial RG59 | C187: und | D187: 74.9 | E187: 2020-01-22 | F187: NetComputadores | G187: 88.04 | H187: UperSeg | I187: 72.11 | J187: ShopTelbras | K187: 74.9 | L187: 74.9
A188: COT.CAB.32 | B188: Rack fechado 19" 44 Us x 1000mm profundidade, providos de base soleira com flange para passagem de cabos, aletas de ventilação com laterais em baixo relevo, lateral bi-partida com tampas removíveis porta frontal em vidro fumê temperado, base com altura de 120mm do chão para acomodação de cabos, fechaduras nas porta e nos fechamentos, pés niveladores. | C188: und | D188: 1992.81 | E188: 2020-01-22 | F188: NetComputadores | G188: 1992.81 | H188: CentralCabos | I188: 1990 | J188: Ciclops | K188: 2139.9 | L188: 1992.81
A189: COT.CAB.33 | B189: RACK - ABERTO 19" 44 Us preto com pés niveladores, base e teto em pintura eletrostática, fornecido com dois guias de cabos laterais de 44 Us e um Guia de cabos superior. | C189: und | D189: 584.9 | E189: 2021-07-20 | F189: NetComputadores | G189: 522.09 | H189: CentralCabos | I189: 665 | J189: Ciclops | K189: 584.9 | L189: 584.9
A190: COT.CAB.34 | B190: Guia “de cabo vertical fechado 44u 19” preto | C190: und | D190: 221.02 | E190: 2021-07-20 | F190: NetComputadores | G190: 221.02 | H190: CentralCabos | I190: 259 | J190: IoRedes | K190: 168 | L190: 221.02
A191: COT.CAB.35 | B191: RACK - ABERTO 19" 36 Us preto com pés niveladores, base e teto em pintura eletrostática, fornecido com dois guias de cabos laterais de 36 Us e um Guia de cabos superior. | C191: und | D191: =L191 -> 432.8 | E191: 2020-01-22 | F191: NetComputadores | G191: 363.21 | H191: InfoRack | I191: 608 | J191: Ciclops | K191: 432.8 | L191: 432.8
A192: COT.CAB.36 | B192: Rack fechado 19" 6 Us x 450mm profundidade, para fixação em parede. | C192: und | D192: =L192 -> 287.58 | E192: 2020-01-22 | F192: NetComputadores | G192: 287.58 | H192: CentralCabos | I192: 239 | J192: Ciclops | K192: 335.8 | L192: 287.58
A193: COT.CAB.37 | B193: Switch 8 portas gigabit 10/100/1000 ethernet | C193: und | D193: =L193 -> 957.42 | E193: 2020-01-22 | F193: ShopTelbras | G193: 811.11 | H193: Proccestec | I193: 957.42 | J193: FourServ | K193: 985.15 | L193: 957.42
A194: COT.CAB.38 | B194: Mini RACK de Parede Padrão 19'' 12U X 570mm Preto Texturizado, Aço Sae 1010/1020, porta frontal embuda com visor em acrílico, fecho e chave, laterais e portas removíveis, com abertura para ventilação e fechos de engate rápido, pintura epóxi pó texturizada | C194: und | D194: =L194 -> 470.13 | E194: 2021-01-08 | F194: NetComputadores | G194: 470.13 | H194: CentralCabos | I194: 399 | J194: Ciclops | K194: 599.8 | L194: 470.13
A195: COT.CAB.39 | B195: Caixa de piso em liga de alúmino 4X4 fechada e alta | C195: und | D195: =L195 -> 14.48 | E195: 2020-01-22 | F195: CopaFer | G195: 18.27 | H195: Santil | I195: 11.05 | J195: LojaEletrica | K195: 14.48 | L195: 14.48
A200: Código | B200: CFTV/ALARME. | C200: Unidade | D200: Preço | E200: Datas | F200: LOJAS
A201: COT.CFT.1 | B201: Câmera burlet IP, resoluções de 3 MP com Lente de 3,6 alcance de 30 metros com suporte a PoE, proteção IP 66 | C201: und | D201: =L201 -> 720 | E201: 2019-02-01 | F201: TudoFort | G201: 529.64 | H201: Cyber | I201: 720 | J201: EuroInfo | K201: 885 | L201: =IF(K201+I201+G201=0,"",MEDIAN(K201,I201,G201)) -> 720
A202: COT.CFT.2 | B202: Câmera burlet IP, resoluções de 4 MP com Lente de 2,7 a 12mm alcance de 50 metros com suporte a PoE, proteção IP 67 | C202: und | D202: 2500 | E202: 2019-02-01 | F202: NetComputadores | G202: 2568.54 | H202: Cyber | I202: 2500 | J202: EuroInfo | K202: 2295.8 | L202: 2500
A203: COT.CFT.3 | B203: Câmera burlet IP, resoluções de 4 MP PTZ, com Lente de 1,18mm com suporte a PoE, proteção IP 67 | C203: und | D203: 2113.8 | E203: 2019-02-01 | F203: AsSeg | G203: 1680 | H203: EletroInfo | I203: 2113.8 | J203: SafeAll | K203: 2339.9 | L203: 2113.8
A204: COT.CFT.4 | B204: Gravador digital de video em rede 16 cameras IP, compressão H.265, capacidade para até 2 HDS com uma interface de rede gigabite ethernet | C204: und | D204: 2080.47 | E204: 2019-02-01 | F204: ShopTelbras | G204: 2080.47 | H204: UpperSeg | I204: 1417.64 | J204: EuroInfo | K204: 2377.2 | L204: 2080.47
A205: COT.CFT.5 | B205: Gravador digital de video em rede 24 cameras IP, compressão H.265, capacidade para até 8 HDS com duas interface de rede gigabite ethernet | C205: und | D205: 2645.11 | E205: 2019-02-01 | F205: ShopTelbras | G205: 2645.11 | H205: UpperSeg | I205: 2621.91 | J205: EuroInfo | K205: 4399.8 | L205: 2645.11
A206: COT.CFT.6 | B206: Central de alarme monitorada com 18 zonas (8 + 8 + 2 com fio + 24 sem fio) | C206: und | D206: 617.8 | E206: 2019-02-01 | F206: Extra | G206: 626.11 | H206: Cyber | I206: 508 | J206: EuroInfo | K206: 617.8 | L206: 617.8
A207: COT.CFT.7 | B207: Sensor infravermelho passivo com agulo de cobertura 115º e alcance 12m | C207: und | D207: 47.2 | E207: 2019-02-01 | F207: Extra | G207: 29.9 | H207: Cyber | I207: 69 | J207: EuroInfo | K207: 47.2 | L207: 47.2
A208: COT.CFT.8 | B208: Teclado LCD para central de alarme monitorada | C208: und | D208: 199 | E208: 2019-02-01 | F208: Seg. Telecom | G208: 163.23 | H208: Cyber | I208: 199 | J208: EuroInfo | K208: 251.2 | L208: 199
A209: COT.CFT.9 | B209: Sirene Piezoelétrica para alarmes com potência de120 Db | C209: und | D209: 24 | E209: 2019-02-01 | F209: PontoFrio | G209: 18.57 | H209: Cyber | I209: 24 | J209: EuroInfo | K209: 24 | L209: 24
A210: COT.CFT.10 | B210: Bateria de chumbo-ácido 12 V para sistemas de segurança | C210: und | D210: 74.96 | E210: 2019-02-01 | F210: UperSeg | G210: 74.96 | H210: Cyber | I210: 98 | J210: EuroInfo | K210: 74.96 | L210: 74.96
A211: COT.CFT.11 | B211: Rack fechado 19" 36 Us x 800mm profundidade, providos de base soleira com flange para passagem de cabos, aletas de ventilação com laterais em baixo relevo, lateral bi-partida com tampas removíveis porta frontal em vidro fumê temperado, base com altura de 120mm do chão para acomodação de cabos, fechaduras nas porta e nos fechamentos, pés niveladores. | C211: und | D211: 2750 | E211: 2019-02-01 | F211: ethBazer | G211: 1606.77 | H211: Cyber | I211: 7600 | J211: EuroInfo | K211: 2750 | L211: 2750
A213: Código | B213: COTAÇÕES INCÊNDIO. | C213: Unidade | D213: Preço | E213: Datas | F213: LOJAS
A214: COT.INC.1 | B214: Extintor Pó ABC - portátil - 3A-20BC - 06 Kg. | C214: und | D214: =L214 -> 180 | E214: 2020-07-14 | F214: HIDRANTEX | G214: 160 | H214: MFS | I214: =124.03+160.9 -> 284.93 | J214: JWM | K214: 180 | L214: =IF(K214+I214+G214=0,"",MEDIAN(K214,I214,G214)) -> 180
A215: COT.INC.2 | B215: Chave de fluxo, tipo palheta rotativa, entradas roscáveis de Ø 2.1/2" (65mm), rosca BSP, corpo fabricado em ferro fundido | C215: und | D215: =L215 -> 412 | E215: 2020-07-14 | F215: MFS | G215: 412 | H215: HIDRANTEX | I215: 414 | J215: GUARUJA | K215: 348 | L215: 412
A216: COT.INC.3 | B216: Acionador manual de sistema de hidrante, tipo liga-desliga. (botoeira) | C216: und | D216: 50.16 | E216: 2020-07-14 | F216: MFS | G216: 50.16 | H216: HIDRANTEX | I216: 42.9 | J216: ILUMAC | K216: =39.9+79.5 -> 119.4 | L216: 50.16
A217: COT.INC.4 | B217: Bomba Multiestágio ME 32150 B154 15-CV. | C217: und | D217: 9150 | E217: 2019-07-12 | F217: BS | G217: 7971.06 | H217: IBM | I217: 13898 | J217: HIDRANTEX | K217: 9150 | L217: 9150
... 43 more rows

Sheet CRONOGRAMA
A1: EXECUTIVA SERVIÇOS COMÉRCIO IMPORTAÇÃO EXPORTAÇÃO LTDA | L1: EXECUTIVA SERVIÇOS COMÉRCIO IMPORTAÇÃO EXPORTAÇÃO LTDA | Y1: EXECUTIVA SERVIÇOS COMÉRCIO IMPORTAÇÃO EXPORTAÇÃO LTDA
A3: CRONOGRAMA FÍSICO FINANCEIRO ATUALIZADO | L3: CRONOGRAMA FÍSICO FINANCEIRO ATUALIZADO | Y3: CRONOGRAMA FÍSICO FINANCEIRO ATUALIZADO
A5: OBRA.: | B5: CONSTRUÇÃO DA SEDE DA CÂMARA MUNICIPAL DE IPIRANGA DO NORTE-MT | G5: BDI: | H5: 0.2619 | I5: DATA: | J5: 2025-07-22 | L5: OBRA.: | M5: CONSTRUÇÃO DA SEDE DA CÂMARA MUNICIPAL DE IPIRANGA DO NORTE-MT | R5: BDI: | S5: 0.2619 | T5: DATA: | U5: 2025-07-22 | Y5: OBRA.: | Z5: CONSTRUÇÃO DA SEDE DA CÂMARA MUNICIPAL DE IPIRANGA DO NORTE-MT | AE5: BDI: | AF5: 0.2619 | AG5: DATA: | AH5: 2025-07-22
A6: CONT.: | B6: 020/2024 | G6: DESCONTO: | H6: 0.25 | L6: CONT.: | M6: 020/2024 | R6: DESCONTO: | S6: 0.25 | Y6: CONT.: | Z6: 020/2024 | AE6: DESCONTO: | AF6: 0.25
A8: ITEM | B8: DISCRIMINAÇÃO | C8: EXECUTADO ATÉ 5ª MEDIÇÃO (28/11/2024 a 28/06/2025, 7 meses) | D8: PRAZO DE EXECUÇÃO | AG8: TOTAL A EXECUTAR | AH8: % | AI8: TOTAL GERAL | AJ8: % | AL8: TOTAL
D9: 8º MÊS | E9: 9º MÊS | F9: 10º MÊS | G9: 11º MÊS | H9: 12º MÊS | I9: 13º MÊS | J9: 14º MÊS | K9: 15º MÊS | L9: 16º MÊS | M9: 17º MÊS | N9: 18º MÊS | O9: 19º MÊS | P9: 20º MÊS | Q9: 21º MÊS | R9: 22º MÊS | S9: 23º MÊS | T9: 24º MÊS | U9: 25º MÊS | V9: 26º MÊS | W9: 27º MÊS | X9: 28º MÊS | Y9: 29º MÊS | Z9: 30º MÊS | AA9: 31º MÊS | AB9: 32º MÊS | AC9: 33º MÊS | AD9: 34º MÊS | AE9: 35º MÊS | AF9: 36º MÊS
A10: 1.0 | B10: SERVIÇOS PRELIMINARES | C10: =C11/B11 -> 1 | D10: =D11/$AI10 -> 0 | E10: =E11/$AI10 -> 0 | F10: =F11/$AI10 -> 0 | G10: =G11/$AI10 -> 0 | H10: =H11/$AI10 -> 0 | I10: =I11/$AI10 -> 0 | J10: =J11/$AI10 -> 0 | K10: =K11/$AI10 -> 0 | L10: =L11/$AI10 -> 0 | M10: =M11/$AI10 -> 0 | N10: =N11/$AI10 -> 0 | O10: =O11/$AI10 -> 0 | P10: =P11/$AI10 -> 0 | Q10: =Q11/$AI10 -> 0 | R10: =R11/$AI10 -> 0 | S10: =S11/$AI10 -> 0 | T10: =T11/$AI10 -> 0 | U10: =U11/$AI10 -> 0 | V10: =V11/$AI10 -> 0 | W10: =W11/$AI10 -> 0 | X10: =X11/$AI10 -> 0 | Y10: =Y11/$AI10 -> 0 | Z10: =Z11/$AI10 -> 0 | AA10: =AA11/$AI10 -> 0 | AB10: =AB11/$AI10 -> 0 | AC10: =AC11/$AI10 -> 0 | AD10: =AD11/$AI10 -> 0 | AE10: =AE11/$AI10 -> 0 | AF10: =AF11/$AI10 -> 0 | AG10: =SUM(D11:AF11) -> 0 | AH10: =AG10/B11 -> 0 | AI10: =SUM(C11:AF11) -> 28110.97 | AJ10: =C10+D10+E10+F10+G10+H10+I10+J10+K10+L10+M10+N10+O10+P10+Q10+R10+S10+T10+U10+V10+W10+X10+Y10+Z10+AA10+AB10+AC10+AD10+AE10+AF10 -> 1 | AK10: =SUM(D10:F10) -> 0 | AL10: =B11-C11 -> 0 | AM10: =B11-AI10 -> 0
B11: 28110.97 | C11: =B11 -> 28110.97 | D11: 0 | E11: 0 | F11: 0 | G11: 0 | H11: 0 | I11: 0 | J11: 0 | K11: 0 | L11: 0 | M11: 0 | N11: 0 | O11: 0 | P11: 0 | Q11: 0 | R11: 0 | S11: 0 | T11: 0 | U11: 0 | V11: 0 | W11: 0 | X11: 0 | Y11: 0 | Z11: 0 | AA11: 0 | AB11: 0 | AC11: 0 | AD11: 0 | AE11: 0 | AF11: 0
A12: 2.0 | B12: CANTEIRO DE OBRAS | C12: =C13/B13 -> 0.736338466 | D12: =D13/$AI12 -> 0.009091777036 | E12: =E13/$AI12 -> 0.009091777036 | F12: =F13/$AI12 -> 0.009091777036 | G12: =G13/$AI12 -> 0.009091777036 | H12: =H13/$AI12 -> 0.009091777036 | I12: =I13/$AI12 -> 0.009091777036 | J12: =J13/$AI12 -> 0.009091777036 | K12: =K13/$AI12 -> 0.009091777036 | L12: =L13/$AI12 -> 0.009091777036 | M12: =M13/$AI12 -> 0.009091777036 | N12: =N13/$AI12 -> 0.009091777036 | O12: =O13/$AI12 -> 0.009091777036 | P12: =P13/$AI12 -> 0.009091777036 | Q12: =Q13/$AI12 -> 0.009091777036 | R12: =R13/$AI12 -> 0.009091777036 | S12: =S13/$AI12 -> 0.009091777036 | T12: =T13/$AI12 -> 0.009091777036 | U12: =U13/$AI12 -> 0.009091777036 | V12: =V13/$AI12 -> 0.009091777036 | W12: =W13/$AI12 -> 0.009091777036 | X12: =X13/$AI12 -> 0.009091777036 | Y12: =Y13/$AI12 -> 0.009091777036 | Z12: =Z13/$AI12 -> 0.009091777036 | AA12: =AA13/$AI12 -> 0.009091777036 | AB12: =AB13/$AI12 -> 0.009091777036 | AC12: =AC13/$AI12 -> 0.009091777036 | AD12: =AD13/$AI12 -> 0.009091777036 | AE12: =AE13/$AI12 -> 0.009091777036 | AF12: =AF13/$AI12 -> 0.009091777036 | AG12: =SUM(D13:AF13) -> 29685.37 | AH12: =AG12/B13 -> 0.263661534 | AI12: =SUM(C13:AF13) -> 112588.93 | AJ12: =C12+D12+E12+F12+G12+H12+I12+J12+K12+L12+M12+N12+O12+P12+Q12+R12+S12+T12+U12+V12+W12+X12+Y12+Z12+AA12+AB12+AC12+AD12+AE12+AF12 -> 1 | AK12: =SUM(D12:F12) -> 0.02727533111 | AL12: =B13-C13 -> 29685.37 | AM12: =B13-AI12 -> -1.89174898e-10
B13: 112588.93 | C13: 82903.56 | D13: =(B13-C13)/29 -> 1023.633448 | E13: =D13 -> 1023.633448 | F13: =E13 -> 1023.633448 | G13: 1023.633448 | H13: 1023.633448 | I13: 1023.633448 | J13: 1023.633448 | K13: 1023.633448 | L13: 1023.633448 | M13: 1023.633448 | N13: 1023.633448 | O13: 1023.633448 | P13: 1023.633448 | Q13: 1023.633448 | R13: 1023.633448 | S13: 1023.633448 | T13: 1023.633448 | U13: 1023.633448 | V13: 1023.633448 | W13: 1023.633448 | X13: 1023.633448 | Y13: 1023.633448 | Z13: 1023.633448 | AA13: 1023.633448 | AB13: 1023.633448 | AC13: 1023.633448 | AD13: 1023.633448 | AE13: 1023.633448 | AF13: 1023.633448
A14: 3.0 | B14: ADMINISTRAÇÃO DA OBRA | C14: =C15/B15 -> 0.1923794423 | D14: =D15/$AI14 -> 0.02784898475 | E14: =E15/$AI14 -> 0.02784898475 | F14: =F15/$AI14 -> 0.02784898475 | G14: =G15/$AI14 -> 0.02784898475 | H14: =H15/$AI14 -> 0.02784898475 | I14: =I15/$AI14 -> 0.02784898475 | J14: =J15/$AI14 -> 0.02784898475 | K14: =K15/$AI14 -> 0.02784898475 | L14: =L15/$AI14 -> 0.02784898475 | M14: =M15/$AI14 -> 0.02784898475 | N14: =N15/$AI14 -> 0.02784898475 | O14: =O15/$AI14 -> 0.02784898475 | P14: =P15/$AI14 -> 0.02784898475 | Q14: =Q15/$AI14 -> 0.02784898475 | R14: =R15/$AI14 -> 0.02784898475 | S14: =S15/$AI14 -> 0.02784898475 | T14: =T15/$AI14 -> 0.02784898475 | U14: =U15/$AI14 -> 0.02784898475 | V14: =V15/$AI14 -> 0.02784898475 | W14: =W15/$AI14 -> 0.02784898475 | X14: =X15/$AI14 -> 0.02784898475 | Y14: =Y15/$AI14 -> 0.02784898475 | Z14: =Z15/$AI14 -> 0.02784898475 | AA14: =AA15/$AI14 -> 0.02784898475 | AB14: =AB15/$AI14 -> 0.02784898475 | AC14: =AC15/$AI14 -> 0.02784898475 | AD14: =AD15/$AI14 -> 0.02784898475 | AE14: =AE15/$AI14 -> 0.02784898475 | AF14: =AF15/$AI14 -> 0.02784898475 | AG14: =SUM(D15:AF15) -> 836115.22 | AH14: =AG14/B15 -> 0.8076205577 | AI14: =SUM(C15:AF15) -> 1035282.24 | AJ14: =C14+D14+E14+F14+G14+H14+I14+J14+K14+L14+M14+N14+O14+P14+Q14+R14+S14+T14+U14+V14+W14+X14+Y14+Z14+AA14+AB14+AC14+AD14+AE14+AF14 -> 1 | AK14: =SUM(D14:F14) -> 0.08354695424 | AL14: =B15-C15 -> 836115.22 | AM14: =B15-AI14 -> 0
B15: 1035282.24 | C15: 199167.02 | D15: =(B15-C15)/29 -> 28831.55931 | E15: =D15 -> 28831.55931 | F15: =E15 -> 28831.55931 | G15: 28831.55931 | H15: 28831.55931 | I15: 28831.55931 | J15: 28831.55931 | K15: 28831.55931 | L15: 28831.55931 | M15: 28831.55931 | N15: 28831.55931 | O15: 28831.55931 | P15: 28831.55931 | Q15: 28831.55931 | R15: 28831.55931 | S15: 28831.55931 | T15: 28831.55931 | U15: 28831.55931 | V15: 28831.55931 | W15: 28831.55931 | X15: 28831.55931 | Y15: 28831.55931 | Z15: 28831.55931 | AA15: 28831.55931 | AB15: 28831.55931 | AC15: 28831.55931 | AD15: 28831.55931 | AE15: 28831.55931 | AF15: 28831.55931
A16: 4.0 | B16: MOVIMENTAÇÃO DE TERRA | C16: =C17/B17 -> 1 | D16: =D17/$AI16 -> 0 | E16: =E17/$AI16 -> 0 | F16: =F17/$AI16 -> 0 | G16: =G17/$AI16 -> 0 | H16: =H17/$AI16 -> 0 | I16: =I17/$AI16 -> 0 | J16: =J17/$AI16 -> 0 | K16: =K17/$AI16 -> 0 | L16: =L17/$AI16 -> 0 | M16: =M17/$AI16 -> 0 | N16: =N17/$AI16 -> 0 | O16: =O17/$AI16 -> 0 | P16: =P17/$AI16 -> 0 | Q16: =Q17/$AI16 -> 0 | R16: =R17/$AI16 -> 0 | S16: =S17/$AI16 -> 0 | T16: =T17/$AI16 -> 0 | U16: =U17/$AI16 -> 0 | V16: =V17/$AI16 -> 0 | W16: =W17/$AI16 -> 0 | X16: =X17/$AI16 -> 0 | Y16: =Y17/$AI16 -> 0 | Z16: =Z17/$AI16 -> 0 | AA16: =AA17/$AI16 -> 0 | AB16: =AB17/$AI16 -> 0 | AC16: =AC17/$AI16 -> 0 | AD16: =AD17/$AI16 -> 0 | AE16: =AE17/$AI16 -> 0 | AF16: =AF17/$AI16 -> 0 | AG16: =SUM(D17:AF17) -> 0 | AH16: =AG16/B17 -> 0 | AI16: =SUM(C17:AF17) -> 184764.4 | AJ16: =C16+D16+E16+F16+G16+H16+I16+J16+K16+L16+M16+N16+O16+P16+Q16+R16+S16+T16+U16+V16+W16+X16+Y16+Z16+AA16+AB16+AC16+AD16+AE16+AF16 -> 1 | AK16: =SUM(D16:F16) -> 0 | AL16: =B17-C17 -> 0 | AM16: =B17-AI16 -> 0
B17: =75726.58+109037.82 -> 184764.4 | C17: =75726.58+109037.82 -> 184764.4 | D17: 0 | E17: 0 | F17: 0 | G17: 0 | H17: 0 | I17: 0 | J17: 0 | K17: 0 | L17: 0 | M17: 0 | N17: 0 | O17: 0 | P17: 0 | Q17: 0 | R17: 0 | S17: 0 | T17: 0 | U17: 0 | V17: 0 | W17: 0 | X17: 0 | Y17: 0 | Z17: 0 | AA17: 0 | AB17: 0 | AC17: 0 | AD17: 0 | AE17: 0 | AF17: 0
A18: 5.0 | B18: FUNDAÇÕES | C18: =C19/B19 -> 1 | D18: =D19/$AI18 -> 0 | E18: =E19/$AI18 -> 0 | F18: =F19/$AI18 -> 0 | G18: =G19/$AI18 -> 0 | H18: =H19/$AI18 -> 0 | I18: =I19/$AI18 -> 0 | J18: =J19/$AI18 -> 0 | K18: =K19/$AI18 -> 0 | L18: =L19/$AI18 -> 0 | M18: =M19/$AI18 -> 0 | N18: =N19/$AI18 -> 0 | O18: =O19/$AI18 -> 0 | P18: =P19/$AI18 -> 0 | Q18: =Q19/$AI18 -> 0 | R18: =R19/$AI18 -> 0 | S18: =S19/$AI18 -> 0 | T18: =T19/$AI18 -> 0 | U18: =U19/$AI18 -> 0 | V18: =V19/$AI18 -> 0 | W18: =W19/$AI18 -> 0 | X18: =X19/$AI18 -> 0 | Y18: =Y19/$AI18 -> 0 | Z18: =Z19/$AI18 -> 0 | AA18: =AA19/$AI18 -> 0 | AB18: =AB19/$AI18 -> 0 | AC18: =AC19/$AI18 -> 0 | AD18: =AD19/$AI18 -> 0 | AE18: =AE19/$AI18 -> 0 | AF18: =AF19/$AI18 -> 0 | AG18: =SUM(D19:AF19) -> 0 | AH18: =AG18/B19 -> 0 | AI18: =SUM(C19:AF19) -> 262347.72 | AJ18: =C18+D18+E18+F18+G18+H18+I18+J18+K18+L18+M18+N18+O18+P18+Q18+R18+S18+T18+U18+V18+W18+X18+Y18+Z18+AA18+AB18+AC18+AD18+AE18+AF18 -> 1 | AK18: =SUM(D18:F18) -> 0 | AL18: =B19-C19 -> 0 | AM18: =B19-AI18 -> 0
B19: 262347.72 | C19: 262347.72 | D19: 0 | E19: 0 | F19: 0 | G19: 0 | H19: 0 | I19: 0 | J19: 0 | K19: 0 | L19: 0 | M19: 0 | N19: 0 | O19: 0 | P19: 0 | Q19: 0 | R19: 0 | S19: 0 | T19: 0 | U19: 0 | V19: 0 | W19: 0 | X19: 0 | Y19: 0 | Z19: 0 | AA19: 0 | AB19: 0 | AC19: 0 | AD19: 0 | AE19: 0 | AF19: 0
A20: 6.0 | B20: CONTENÇÕES | C20: =C21/B21 -> 1 | D20: =D21/$AI20 -> 0 | E20: =E21/$AI20 -> 0 | F20: =F21/$AI20 -> 0 | G20: =G21/$AI20 -> 0 | H20: =H21/$AI20 -> 0 | I20: =I21/$AI20 -> 0 | J20: =J21/$AI20 -> 0 | K20: =K21/$AI20 -> 0 | L20: =L21/$AI20 -> 0 | M20: =M21/$AI20 -> 0 | N20: =N21/$AI20 -> 0 | O20: =O21/$AI20 -> 0 | P20: =P21/$AI20 -> 0 | Q20: =Q21/$AI20 -> 0 | R20: =R21/$AI20 -> 0 | S20: =S21/$AI20 -> 0 | T20: =T21/$AI20 -> 0 | U20: =U21/$AI20 -> 0 | V20: =V21/$AI20 -> 0 | W20: =W21/$AI20 -> 0 | X20: =X21/$AI20 -> 0 | Y20: =Y21/$AI20 -> 0 | Z20: =Z21/$AI20 -> 0 | AA20: =AA21/$AI20 -> 0 | AB20: =AB21/$AI20 -> 0 | AC20: =AC21/$AI20 -> 0 | AD20: =AD21/$AI20 -> 0 | AE20: =AE21/$AI20 -> 0 | AF20: =AF21/$AI20 -> 0 | AG20: =SUM(D21:AF21) -> 0 | AH20: =AG20/B21 -> 0 | AI20: =SUM(C21:AF21) -> 24706.24 | AJ20: =C20+D20+E20+F20+G20+H20+I20+J20+K20+L20+M20+N20+O20+P20+Q20+R20+S20+T20+U20+V20+W20+X20+Y20+Z20+AA20+AB20+AC20+AD20+AE20+AF20 -> 1 | AK20: =SUM(D20:F20) -> 0 | AL20: =B21-C21 -> 0 | AM20: =B21-AI20 -> 0
B21: 24706.24 | C21: 24706.24 | D21: 0 | E21: 0 | F21: 0 | G21: 0 | H21: 0 | I21: 0 | J21: 0 | K21: 0 | L21: 0 | M21: 0 | N21: 0 | O21: 0 | P21: 0 | Q21: 0 | R21: 0 | S21: 0 | T21: 0 | U21: 0 | V21: 0 | W21: 0 | X21: 0 | Y21: 0 | Z21: 0 | AA21: 0 | AB21: 0 | AC21: 0 | AD21: 0 | AE21: 0 | AF21: 0
A22: 7.0 | B22: IMPERMEABILIZAÇÕES | C22: =C23/B23 -> 0.3395755478 | D22: =D23/$AI22 -> 0 | E22: =E23/$AI22 -> 0 | F22: =F23/$AI22 -> 0.165106113 | G22: =G23/$AI22 -> 0.165106113 | H22: =H23/$AI22 -> 0.165106113 | I22: =I23/$AI22 -> 0.165106113 | J22: =J23/$AI22 -> 0 | K22: =K23/$AI22 -> 0 | L22: =L23/$AI22 -> 0 | M22: =M23/$AI22 -> 0 | N22: =N23/$AI22 -> 0 | O22: =O23/$AI22 -> 0 | P22: =P23/$AI22 -> 0 | Q22: =Q23/$AI22 -> 0 | R22: =R23/$AI22 -> 0 | S22: =S23/$AI22 -> 0 | T22: =T23/$AI22 -> 0 | U22: =U23/$AI22 -> 0 | V22: =V23/$AI22 -> 0 | W22: =W23/$AI22 -> 0 | X22: =X23/$AI22 -> 0 | Y22: =Y23/$AI22 -> 0 | Z22: =Z23/$AI22 -> 0 | AA22: =AA23/$AI22 -> 0 | AB22: =AB23/$AI22 -> 0 | AC22: =AC23/$AI22 -> 0 | AD22: =AD23/$AI22 -> 0 | AE22: =AE23/$AI22 -> 0 | AF22: =AF23/$AI22 -> 0 | AG22: =SUM(D23:AF23) -> 34482.24 | AH22: =AG22/B23 -> 0.6604244522 | AI22: =SUM(C23:AF23) -> 52212.24 | AJ22: =C22+D22+E22+F22+G22+H22+I22+J22+K22+L22+M22+N22+O22+P22+Q22+R22+S22+T22+U22+V22+W22+X22+Y22+Z22+AA22+AB22+AC22+AD22+AE22+AF22 -> 1 | AK22: =SUM(D22:F22) -> 0.165106113 | AL22: =B23-C23 -> 34482.24 | AM22: =B23-AI22 -> 0
B23: 52212.24 | C23: 17730 | D23: 0 | E23: 0 | F23: =(B23-C23)/4 -> 8620.56 | G23: =F23 -> 8620.56 | H23: =G23 -> 8620.56 | I23: =H23 -> 8620.56 | J23: 0 | K23: 0 | L23: 0 | M23: 0 | N23: 0 | O23: 0 | P23: 0 | Q23: 0 | R23: 0 | S23: 0 | T23: 0 | U23: 0 | V23: 0 | W23: 0 | X23: 0 | Y23: 0 | Z23: 0 | AA23: 0 | AB23: 0 | AC23: 0 | AD23: 0 | AE23: 0 | AF23: 0
A24: 8.0 | B24: SUPRAESTRUTURA | C24: =C25/B25 -> 1 | D24: =D25/$AI24 -> 0 | E24: =E25/$AI24 -> 0 | F24: =F25/$AI24 -> 0 | G24: =G25/$AI24 -> 0 | H24: =H25/$AI24 -> 0 | I24: =I25/$AI24 -> 0 | J24: =J25/$AI24 -> 0 | K24: =K25/$AI24 -> 0 | L24: =L25/$AI24 -> 0 | M24: =M25/$AI24 -> 0 | N24: =N25/$AI24 -> 0 | O24: =O25/$AI24 -> 0 | P24: =P25/$AI24 -> 0 | Q24: =Q25/$AI24 -> 0 | R24: =R25/$AI24 -> 0 | S24: =S25/$AI24 -> 0 | T24: =T25/$AI24 -> 0 | U24: =U25/$AI24 -> 0 | V24: =V25/$AI24 -> 0 | W24: =W25/$AI24 -> 0 | X24: =X25/$AI24 -> 0 | Y24: =Y25/$AI24 -> 0 | Z24: =Z25/$AI24 -> 0 | AA24: =AA25/$AI24 -> 0 | AB24: =AB25/$AI24 -> 0 | AC24: =AC25/$AI24 -> 0 | AD24: =AD25/$AI24 -> 0 | AE24: =AE25/$AI24 -> 0 | AF24: =AF25/$AI24 -> 0 | AG24: =SUM(D25:AF25) -> 0 | AH24: =AG24/B25 -> 0 | AI24: =SUM(C25:AF25) -> 433728.9 | AJ24: =C24+D24+E24+F24+G24+H24+I24+J24+K24+L24+M24+N24+O24+P24+Q24+R24+S24+T24+U24+V24+W24+X24+Y24+Z24+AA24+AB24+AC24+AD24+AE24+AF24 -> 1 | AK24: =SUM(D24:F24) -> 0 | AL24: =B25-C25 -> 0 | AM24: =B25-AI24 -> 0
B25: 433728.9 | C25: 433728.9 | D25: 0 | E25: 0 | F25: 0 | G25: 0 | H25: 0 | I25: 0 | J25: 0 | K25: 0 | L25: 0 | M25: 0 | N25: 0 | O25: 0 | P25: 0 | Q25: 0 | R25: 0 | S25: 0 | T25: 0 | U25: 0 | V25: 0 | W25: 0 | X25: 0 | Y25: 0 | Z25: 0 | AA25: 0 | AB25: 0 | AC25: 0 | AD25: 0 | AE25: 0 | AF25: 0
A26: 9.0 | B26: ESTRUTURA METÁLICA | C26: =C27/B27 -> 0.8581785484 | D26: =D27/$AI26 -> 0.1418214516 | E26: =E27/$AI26 -> 0 | F26: =F27/$AI26 -> 0 | G26: =G27/$AI26 -> 0 | H26: =H27/$AI26 -> 0 | I26: =I27/$AI26 -> 0 | J26: =J27/$AI26 -> 0 | K26: =K27/$AI26 -> 0 | L26: =L27/$AI26 -> 0 | M26: =M27/$AI26 -> 0 | N26: =N27/$AI26 -> 0 | O26: =O27/$AI26 -> 0 | P26: =P27/$AI26 -> 0 | Q26: =Q27/$AI26 -> 0 | R26: =R27/$AI26 -> 0 | S26: =S27/$AI26 -> 0 | T26: =T27/$AI26 -> 0 | U26: =U27/$AI26 -> 0 | V26: =V27/$AI26 -> 0 | W26: =W27/$AI26 -> 0 | X26: =X27/$AI26 -> 0 | Y26: =Y27/$AI26 -> 0 | Z26: =Z27/$AI26 -> 0 | AA26: =AA27/$AI26 -> 0 | AB26: =AB27/$AI26 -> 0 | AC26: =AC27/$AI26 -> 0 | AD26: =AD27/$AI26 -> 0 | AE26: =AE27/$AI26 -> 0 | AF26: =AF27/$AI26 -> 0 | AG26: =SUM(D27:AF27) -> 37321.39 | AH26: =AG26/B27 -> 0.1418214516 | AI26: =SUM(C27:AF27) -> 263157.58 | AJ26: =C26+D26+E26+F26+G26+H26+I26+J26+K26+L26+M26+N26+O26+P26+Q26+R26+S26+T26+U26+V26+W26+X26+Y26+Z26+AA26+AB26+AC26+AD26+AE26+AF26 -> 1 | AK26: =SUM(D26:F26) -> 0.1418214516 | AL26: =B27-C27 -> 37321.39 | AM26: =B27-AI26 -> 0
B27: 263157.58 | C27: 225836.19 | D27: =B27-C27 -> 37321.39 | E27: 0 | F27: 0 | G27: 0 | H27: 0 | I27: 0 | J27: 0 | K27: 0 | L27: 0 | M27: 0 | N27: 0 | O27: 0 | P27: 0 | Q27: 0 | R27: 0 | S27: 0 | T27: 0 | U27: 0 | V27: 0 | W27: 0 | X27: 0 | Y27: 0 | Z27: 0 | AA27: 0 | AB27: 0 | AC27: 0 | AD27: 0 | AE27: 0 | AF27: 0
A28: 10.0 | B28: PAREDES E PAINÉIS | C28: =C29/B29 -> 0.6009202123 | D28: =D29/$AI28 -> 0.04389877664 | E28: =E29/$AI28 -> 0.2633926599 | F28: =F29/$AI28 -> 0.09178835116 | G28: =G29/$AI28 -> 0 | H28: =H29/$AI28 -> 0 | I28: =I29/$AI28 -> 0 | J28: =J29/$AI28 -> 0 | K28: =K29/$AI28 -> 0 | L28: =L29/$AI28 -> 0 | M28: =M29/$AI28 -> 0 | N28: =N29/$AI28 -> 0 | O28: =O29/$AI28 -> 0 | P28: =P29/$AI28 -> 0 | Q28: =Q29/$AI28 -> 0 | R28: =R29/$AI28 -> 0 | S28: =S29/$AI28 -> 0 | T28: =T29/$AI28 -> 0 | U28: =U29/$AI28 -> 0 | V28: =V29/$AI28 -> 0 | W28: =W29/$AI28 -> 0 | X28: =X29/$AI28 -> 0 | Y28: =Y29/$AI28 -> 0 | Z28: =Z29/$AI28 -> 0 | AA28: =AA29/$AI28 -> 0 | AB28: =AB29/$AI28 -> 0 | AC28: =AC29/$AI28 -> 0 | AD28: =AD29/$AI28 -> 0 | AE28: =AE29/$AI28 -> 0 | AF28: =AF29/$AI28 -> 0 | AG28: =SUM(D29:AF29) -> 219527.37 | AH28: =AG28/B29 -> 0.3990797877 | AI28: =SUM(C29:AF29) -> 550083.91 | AJ28: =C28+D28+E28+F28+G28+H28+I28+J28+K28+L28+M28+N28+O28+P28+Q28+R28+S28+T28+U28+V28+W28+X28+Y28+Z28+AA28+AB28+AC28+AD28+AE28+AF28 -> 1 | AK28: =SUM(D28:F28) -> 0.3990797877 | AL28: =B29-C29 -> 219527.37 | AM28: =B29-AI28 -> 0
B29: 550083.91 | C29: 330556.54 | D29: =(B29-C29)*0.11 -> 24148.0107 | E29: =(B29-C29)*0.66 -> 144888.0642 | F29: =(B29-C29)*0.23 -> 50491.2951 | G29: 0 | H29: 0 | I29: 0 | J29: 0 | K29: 0 | L29: 0 | M29: 0 | N29: 0 | O29: 0 | P29: 0 | Q29: 0 | R29: 0 | S29: 0 | T29: 0 | U29: 0 | V29: 0 | W29: 0 | X29: 0 | Y29: 0 | Z29: 0 | AA29: 0 | AB29: 0 | AC29: 0 | AD29: 0 | AE29: 0 | AF29: 0
A30: 11.0 | B30: ESQUADRIAS | C30: =C31/B31 -> 0 | D30: =D31/$AI30 -> 0 | E30: =E31/$AI30 -> 0 | F30: =F31/$AI30 -> 0 | G30: =G31/$AI30 -> 0 | H30: =H31/$AI30 -> 0 | I30: =I31/$AI30 -> 0 | J30: =J31/$AI30 -> 0 | K30: =K31/$AI30 -> 0 | L30: =L31/$AI30 -> 0 | M30: =M31/$AI30 -> 0 | N30: =N31/$AI30 -> 0 | O30: =O31/$AI30 -> 0 | P30: =P31/$AI30 -> 0 | Q30: =Q31/$AI30 -> 0 | R30: =R31/$AI30 -> 0.25 | S30: =S31/$AI30 -> 0.25 | T30: =T31/$AI30 -> 0.25 | U30: =U31/$AI30 -> 0.25 | V30: =V31/$AI30 -> 0 | W30: =W31/$AI30 -> 0 | X30: =X31/$AI30 -> 0 | Y30: =Y31/$AI30 -> 0 | Z30: =Z31/$AI30 -> 0 | AA30: =AA31/$AI30 -> 0 | AB30: =AB31/$AI30 -> 0 | AC30: =AC31/$AI30 -> 0 | AD30: =AD31/$AI30 -> 0 | AE30: =AE31/$AI30 -> 0 | AF30: =AF31/$AI30 -> 0 | AG30: =SUM(D31:AF31) -> 271519.34 | AH30: =AG30/B31 -> 1 | AI30: =SUM(C31:AF31) -> 271519.34 | AJ30: =C30+D30+E30+F30+G30+H30+I30+J30+K30+L30+M30+N30+O30+P30+Q30+R30+S30+T30+U30+V30+W30+X30+Y30+Z30+AA30+AB30+AC30+AD30+AE30+AF30 -> 1 | AK30: =SUM(D30:F30) -> 0 | AL30: =B31-C31 -> 271519.34 | AM30: =B31-AI30 -> 0
B31: 271519.34 | C31: 0 | D31: 0 | E31: 0 | F31: 0 | G31: 0 | H31: 0 | I31: 0 | J31: 0 | K31: 0 | L31: 0 | M31: 0 | N31: 0 | O31: 0 | P31: 0 | Q31: 0 | R31: =B31*0.25 -> 67879.835 | S31: =B31*0.25 -> 67879.835 | T31: =B31*0.25 -> 67879.835 | U31: =B31*0.25 -> 67879.835 | V31: 0 | W31: 0 | X31: 0 | Y31: 0 | Z31: 0 | AA31: 0 | AB31: 0 | AC31: 0 | AD31: 0 | AE31: 0 | AF31: 0
A32: 12.0 | B32: FORRO | C32: =C33/B33 -> 0 | D32: =D33/$AI32 -> 0 | E32: =E33/$AI32 -> 0 | F32: =F33/$AI32 -> 0 | G32: =G33/$AI32 -> 0 | H32: =H33/$AI32 -> 0 | I32: =I33/$AI32 -> 0 | J32: =J33/$AI32 -> 0 | K32: =K33/$AI32 -> 0 | L32: =L33/$AI32 -> 0 | M32: =M33/$AI32 -> 0 | N32: =N33/$AI32 -> 0.1 | O32: =O33/$AI32 -> 0.3 | P32: =P33/$AI32 -> 0.3 | Q32: =Q33/$AI32 -> 0.3 | R32: =R33/$AI32 -> 0 | S32: =S33/$AI32 -> 0 | T32: =T33/$AI32 -> 0 | U32: =U33/$AI32 -> 0 | V32: =V33/$AI32 -> 0 | W32: =W33/$AI32 -> 0 | X32: =X33/$AI32 -> 0 | Y32: =Y33/$AI32 -> 0 | Z32: =Z33/$AI32 -> 0 | AA32: =AA33/$AI32 -> 0 | AB32: =AB33/$AI32 -> 0 | AC32: =AC33/$AI32 -> 0 | AD32: =AD33/$AI32 -> 0 | AE32: =AE33/$AI32 -> 0 | AF32: =AF33/$AI32 -> 0 | AG32: =SUM(D33:AF33) -> 199100.88 | AH32: =AG32/B33 -> 1 | AI32: =SUM(C33:AF33) -> 199100.88 | AJ32: =C32+D32+E32+F32+G32+H32+I32+J32+K32+L32+M32+N32+O32+P32+Q32+R32+S32+T32+U32+V32+W32+X32+Y32+Z32+AA32+AB32+AC32+AD32+AE32+AF32 -> 1 | AK32: =SUM(D32:F32) -> 0 | AL32: =B33-C33 -> 199100.88 | AM32: =B33-AI32 -> 0
B33: 199100.88 | C33: 0 | D33: 0 | E33: 0 | F33: 0 | G33: 0 | H33: 0 | I33: 0 | J33: 0 | K33: 0 | L33: 0 | M33: 0 | N33: =B33*0.1 -> 19910.088 | O33: =B33*0.3 -> 59730.264 | P33: =B33*0.3 -> 59730.264 | Q33: =B33*0.3 -> 59730.264 | R33: 0 | S33: 0 | T33: 0 | U33: 0 | V33: 0 | W33: 0 | X33: 0 | Y33: 0 | Z33: 0 | AA33: 0 | AB33: 0 | AC33: 0 | AD33: 0 | AE33: 0 | AF33: 0
A34: 13.0 | B34: REVESTIMENTOS | C34: =C35/B35 -> 0 | D34: =D35/$AI34 -> 0 | E34: =E35/$AI34 -> 0 | F34: =F35/$AI34 -> 0.2188229413 | G34: =G35/$AI34 -> 0.1208968667 | H34: =H35/$AI34 -> 0 | I34: 0 | J34: 0.05282241536 | K34: 0.165070048 | L34: 0.165070048 | M34: 0.165070048 | N34: 0.1122476326 | O34: 0 | P34: 0 | Q34: 0 | R34: 0 | S34: 0 | T34: 0 | U34: 0 | V34: 0 | W34: 0 | X34: 0 | Y34: 0 | Z34: 0 | AA34: 0 | AB34: 0 | AC34: 0 | AD34: 0 | AE34: 0 | AF34: 0 | AG34: =SUM(D35:AF35) -> 391877.65 | AH34: =AG34/B35 -> 1 | AI34: =SUM(C35:AF35) -> 391877.65 | AJ34: =C34+D34+E34+F34+G34+H34+I34+J34+K34+L34+M34+N34+O34+P34+Q34+R34+S34+T34+U34+V34+W34+X34+Y34+Z34+AA34+AB34+AC34+AD34+AE34+AF34 -> 1 | AK34: =SUM(D34:F34) -> 0.2188229413 | AL34: =B35-C35 -> 391877.65 | AM34: =B35-AI34 -> 0
B35: 391877.65 | C35: 0 | D35: 0 | E35: 0 | F35: =95279.8*0.9 -> 85751.82 | G35: =95279.8*0.1+37848.8 -> 47376.78 | H35: 0 | I35: 0 | J35: =(B35-F35-G35)*0.08 -> 20699.924 | K35: =(B35-F35-G35)*0.25 -> 64687.2625 | L35: =(B35-F35-G35)*0.25 -> 64687.2625 | M35: =(B35-F35-G35)*0.25 -> 64687.2625 | N35: =(B35-F35-G35)*0.17 -> 43987.3385 | O35: 0 | P35: 0 | Q35: 0 | R35: 0 | S35: 0 | T35: 0 | U35: 0 | V35: 0 | W35: 0 | X35: 0 | Y35: 0 | Z35: 0 | AA35: 0 | AB35: 0 | AC35: 0 | AD35: 0 | AE35: 0 | AF35: 0
A36: 14.0 | B36: COBERTURA | C36: =C37/B37 -> 0.70828722 | D36: =D37/$AI36 -> 0.29171278 | E36: =E37/$AI36 -> 0 | F36: =F37/$AI36 -> 0 | G36: =G37/$AI36 -> 0 | H36: =H37/$AI36 -> 0 | I36: 0 | J36: 0 | K36: 0 | L36: 0 | M36: 0 | N36: 0 | O36: 0 | P36: 0 | Q36: 0 | R36: 0 | S36: 0 | T36: 0 | U36: 0 | V36: 0 | W36: 0 | X36: 0 | Y36: 0 | Z36: 0 | AA36: 0 | AB36: 0 | AC36: 0 | AD36: 0 | AE36: 0 | AF36: 0 | AG36: =SUM(D37:AF37) -> 82485.75 | AH36: =AG36/B37 -> 0.29171278 | AI36: =SUM(C37:AF37) -> 282763.58 | AJ36: =C36+D36+E36+F36+G36+H36+I36+J36+K36+L36+M36+N36+O36+P36+Q36+R36+S36+T36+U36+V36+W36+X36+Y36+Z36+AA36+AB36+AC36+AD36+AE36+AF36 -> 1 | AK36: =SUM(D36:F36) -> 0.29171278 | AL36: =B37-C37 -> 82485.75 | AM36: =B37-AI36 -> 0
B37: 282763.58 | C37: 200277.83 | D37: =B37-C37 -> 82485.75 | E37: 0 | F37: 0 | G37: 0 | H37: 0 | I37: 0 | J37: 0 | K37: 0 | L37: 0 | M37: 0 | N37: 0 | O37: 0 | P37: 0 | Q37: 0 | R37: 0 | S37: 0 | T37: 0 | U37: 0 | V37: 0 | W37: 0 | X37: 0 | Y37: 0 | Z37: 0 | AA37: 0 | AB37: 0 | AC37: 0 | AD37: 0 | AE37: 0 | AF37: 0
A38: 15.0 | B38: SPDA | C38: =C39/B39 -> 0 | D38: =D39/$AI38 -> 0 | E38: 0 | F38: 0 | G38: 1 | H38: 0 | I38: 0 | J38: 0 | K38: 0 | L38: 0 | M38: 0 | N38: 0 | O38: 0 | P38: 0 | Q38: 0 | R38: 0 | S38: 0 | T38: 0 | U38: 0 | V38: 0 | W38: 0 | X38: 0 | Y38: 0 | Z38: 0 | AA38: 0 | AB38: 0 | AC38: 0 | AD38: 0 | AE38: 0 | AF38: 0 | AG38: =SUM(D39:AF39) -> 31773.95 | AH38: =AG38/B39 -> 1 | AI38: =SUM(C39:AF39) -> 31773.95 | AJ38: =C38+D38+E38+F38+G38+H38+I38+J38+K38+L38+M38+N38+O38+P38+Q38+R38+S38+T38+U38+V38+W38+X38+Y38+Z38+AA38+AB38+AC38+AD38+AE38+AF38 -> 1 | AK38: =SUM(D38:F38) -> 0 | AL38: =B39-C39 -> 31773.95 | AM38: =B39-AI38 -> 0
B39: 31773.95 | C39: 0 | D39: 0 | E39: 0 | F39: 0 | G39: 31773.95 | H39: 0 | I39: 0 | J39: 0 | K39: 0 | L39: 0 | M39: 0 | N39: 0 | O39: 0 | P39: 0 | Q39: 0 | R39: 0 | S39: 0 | T39: 0 | U39: 0 | V39: 0 | W39: 0 | X39: 0 | Y39: 0 | Z39: 0 | AA39: 0 | AB39: 0 | AC39: 0 | AD39: 0 | AE39: 0 | AF39: 0
A40: 16.0 | B40: INSTALAÇÕES HIDROSSANITÁRIAS | C40: =C41/B41 -> 0 | D40: =D41/$AI40 -> 0 | E40: 0 | F40: 0 | G40: 0.25 | H40: 0.25 | I40: 0.25 | J40: 0.25 | K40: 0 | L40: 0 | M40: 0 | N40: 0 | O40: 0 | P40: 0 | Q40: 0 | R40: 0 | S40: 0 | T40: 0 | U40: 0 | V40: 0 | W40: 0 | X40: 0 | Y40: 0 | Z40: 0 | AA40: 0 | AB40: 0 | AC40: 0 | AD40: 0 | AE40: 0 | AF40: 0 | AG40: =SUM(D41:AF41) -> 76978 | AH40: =AG40/B41 -> 1 | AI40: =SUM(C41:AF41) -> 76978 | AJ40: =C40+D40+E40+F40+G40+H40+I40+J40+K40+L40+M40+N40+O40+P40+Q40+R40+S40+T40+U40+V40+W40+X40+Y40+Z40+AA40+AB40+AC40+AD40+AE40+AF40 -> 1 | AK40: =SUM(D40:F40) -> 0 | AL40: =B41-C41 -> 76978 | AM40: =B41-AI40 -> 0
B41: 76978 | C41: 0 | D41: 0 | E41: 0 | F41: 0 | G41: =B41*0.25 -> 19244.5 | H41: =G41 -> 19244.5 | I41: =H41 -> 19244.5 | J41: =I41 -> 19244.5 | K41: 0 | L41: 0 | M41: 0 | N41: 0 | O41: 0 | P41: 0 | Q41: 0 | R41: 0 | S41: 0 | T41: 0 | U41: 0 | V41: 0 | W41: 0 | X41: 0 | Y41: 0 | Z41: 0 | AA41: 0 | AB41: 0 | AC41: 0 | AD41: 0 | AE41: 0 | AF41: 0
A42: 17.0 | B42: INSTALAÇÕES ELÉTRICAS | C42: =C43/B43 -> 0 | D42: =D43/$AI42 -> 0 | E42: 0 | F42: 0 | G42: 0.1098299696 | H42: 0.3632837455 | I42: 0.3041445311 | J42: 0.06758767359 | K42: 0 | L42: 0 | M42: 0 | N42: 0 | O42: 0 | P42: 0 | Q42: 0 | R42: 0 | S42: 0 | T42: 0 | U42: 0 | V42: 0 | W42: 0 | X42: 0 | Y42: 0 | Z42: 0 | AA42: 0 | AB42: 0 | AC42: 0.07757704008 | AD42: 0.07757704008 | AE42: 0 | AF42: 0 | AG42: =SUM(D43:AF43) -> 323486.82 | AH42: =AG42/B43 -> 1 | AI42: =SUM(C43:AF43) -> 323486.82 | AJ42: =C42+D42+E42+F42+G42+H42+I42+J42+K42+L42+M42+N42+O42+P42+Q42+R42+S42+T42+U42+V42+W42+X42+Y42+Z42+AA42+AB42+AC42+AD42+AE42+AF42 -> 1 | AK42: =SUM(D42:F42) -> 0 | AL42: =B43-C43 -> 323486.82 | AM42: =B43-AI42 -> 0
B43: 323486.82 | C43: 0 | D43: 0 | E43: 0 | F43: 0 | G43: =273296.52*0.13 -> 35528.5476 | H43: =273296.52*0.43 -> 117517.5036 | I43: =273296.52*0.36 -> 98386.7472 | J43: =273296.52*0.08 -> 21863.7216 | K43: 0 | L43: 0 | M43: 0 | N43: 0 | O43: 0 | P43: 0 | Q43: 0 | R43: 0 | S43: 0 | T43: 0 | U43: 0 | V43: 0 | W43: 0 | X43: 0 | Y43: 0 | Z43: 0 | AA43: 0 | AB43: 0 | AC43: =50190.3/2 -> 25095.15 | AD43: =50190.3/2 -> 25095.15 | AE43: 0 | AF43: 0
A44: 18.0 | B44: LOUÇAS E METAIS | C44: =C45/B45 -> 0 | D44: =D45/$AI44 -> 0 | E44: 0 | F44: 0 | G44: 0 | H44: 0 | I44: 0 | J44: 0 | K44: 0 | L44: 0 | M44: 0 | N44: 0 | O44: 0 | P44: 0 | Q44: 0 | R44: 0 | S44: 0 | T44: 0 | U44: 0 | V44: 0 | W44: 0 | X44: 0.2 | Y44: 0.8 | Z44: 0 | AA44: 0 | AB44: 0 | AC44: 0 | AD44: 0 | AE44: 0 | AF44: 0 | AG44: =SUM(D45:AF45) -> 40644.93 | AH44: =AG44/B45 -> 1 | AI44: =SUM(C45:AF45) -> 40644.93 | AJ44: =C44+D44+E44+F44+G44+H44+I44+J44+K44+L44+M44+N44+O44+P44+Q44+R44+S44+T44+U44+V44+W44+X44+Y44+Z44+AA44+AB44+AC44+AD44+AE44+AF44 -> 1 | AK44: =SUM(D44:F44) -> 0 | AL44: =B45-C45 -> 40644.93 | AM44: =B45-AI44 -> 0
B45: 40644.93 | C45: 0 | D45: 0 | E45: 0 | F45: 0 | G45: 0 | H45: 0 | I45: 0 | J45: 0 | K45: 0 | L45: 0 | M45: 0 | N45: 0 | O45: 0 | P45: 0 | Q45: 0 | R45: 0 | S45: 0 | T45: 0 | U45: 0 | V45: 0 | W45: 0 | X45: =B45*0.2 -> 8128.986 | Y45: =B45*0.8 -> 32515.944 | Z45: 0 | AA45: 0 | AB45: 0 | AC45: 0 | AD45: 0 | AE45: 0 | AF45: 0
A46: 19.0 | B46: CLIMATIZAÇÃO | C46: =C47/B47 -> 0 | D46: =D47/$AI46 -> 0 | E46: =E47/$AI46 -> 0 | F46: =F47/$AI46 -> 0 | G46: =G47/$AI46 -> 0 | H46: =H47/$AI46 -> 0 | I46: =I47/$AI46 -> 0.08653975364 | J46: =J47/$AI46 -> 0 | K46: =K47/$AI46 -> 0 | L46: =L47/$AI46 -> 0 | M46: =M47/$AI46 -> 0 | N46: =N47/$AI46 -> 0 | O46: =O47/$AI46 -> 0 | P46: =P47/$AI46 -> 0 | Q46: =Q47/$AI46 -> 0 | R46: =R47/$AI46 -> 0 | S46: 0 | T46: 0 | U46: 0 | V46: 0 | W46: 0 | X46: =X47/$AI46 -> 0 | Y46: =Y47/$AI46 -> 0 | Z46: =Z47/$AI46 -> 0.3197110862 | AA46: =AA47/$AI46 -> 0.3197110862 | AB46: =AB47/$AI46 -> 0.2740380739 | AC46: =AC47/$AI46 -> 0 | AD46: =AD47/$AI46 -> 0 | AE46: =AE47/$AI46 -> 0 | AF46: =AF47/$AI46 -> 0 | AG46: =SUM(D47:AF47) -> 200925 | AH46: =AG46/B47 -> 1 | AI46: =SUM(C47:AF47) -> 200925 | AJ46: =C46+D46+E46+F46+G46+H46+I46+J46+K46+L46+M46+N46+O46+P46+Q46+R46+S46+T46+U46+V46+W46+X46+Y46+Z46+AA46+AB46+AC46+AD46+AE46+AF46 -> 1 | AK46: =SUM(D46:F46) -> 0 | AL46: =B47-C47 -> 200925 | AM46: =B47-AI46 -> 0
B47: 200925 | C47: 0 | D47: 0 | E47: 0 | F47: 0 | G47: 0 | H47: 0 | I47: 17388 | J47: 0 | K47: 0 | L47: 0 | M47: 0 | N47: 0 | O47: 0 | P47: 0 | Q47: 0 | R47: 0 | S47: 0 | T47: 0 | U47: 0 | V47: 0 | W47: 0 | X47: 0 | Y47: 0 | Z47: =(B47-17388)*0.35 -> 64237.95 | AA47: =(B47-17388)*0.35 -> 64237.95 | AB47: =(B47-17388)*0.3 -> 55061.1 | AC47: 0 | AD47: 0 | AE47: 0 | AF47: 0
A48: 20.0 | B48: PINTURA | C48: =C49/B49 -> 0 | D48: =D49/$AI48 -> 0 | E48: 0 | F48: 0 | G48: 0 | H48: 0 | I48: 0 | J48: 0 | K48: 0 | L48: 0 | M48: 0 | N48: 0 | O48: 0 | P48: 0 | Q48: 0 | R48: 0 | S48: 0 | T48: 0 | U48: 0 | V48: 0 | W48: 0 | X48: 0 | Y48: 0 | Z48: 0 | AA48: 0 | AB48: 0 | AC48: 0.5 | AD48: 0.5 | AE48: 0 | AF48: 0 | AG48: =SUM(D49:AF49) -> 83127.05 | AH48: =AG48/B49 -> 1 | AI48: =SUM(C49:AF49) -> 83127.05 | AJ48: =C48+D48+E48+F48+G48+H48+I48+J48+K48+L48+M48+N48+O48+P48+Q48+R48+S48+T48+U48+V48+W48+X48+Y48+Z48+AA48+AB48+AC48+AD48+AE48+AF48 -> 1 | AK48: =SUM(D48:F48) -> 0 | AL48: =B49-C49 -> 83127.05 | AM48: =B49-AI48 -> 0
B49: 83127.05 | C49: 0 | D49: 0 | E49: 0 | F49: 0 | G49: 0 | H49: 0 | I49: 0 | J49: 0 | K49: 0 | L49: 0 | M49: 0 | N49: 0 | O49: 0 | P49: 0 | Q49: 0 | R49: 0 | S49: 0 | T49: 0 | U49: 0 | V49: 0 | W49: 0 | X49: 0 | Y49: 0 | Z49: 0 | AA49: 0 | AB49: 0 | AC49: =B49/2 -> 41563.525 | AD49: =AC49 -> 41563.525 | AE49: 0 | AF49: 0
A50: 21.0 | B50: CALÇADA | C50: =C51/B51 -> 0 | D50: =D51/$AI50 -> 0 | E50: 0 | F50: 0 | G50: 0 | H50: 0 | I50: 0 | J50: 0 | K50: 0 | L50: 0 | M50: 0 | N50: 0 | O50: 0 | P50: 0 | Q50: 0 | R50: 0 | S50: 0 | T50: 0 | U50: 0 | V50: 0.35 | W50: 0.35 | X50: 0.3 | Y50: 0 | Z50: 0 | AA50: 0 | AB50: 0 | AC50: 0 | AD50: 0 | AE50: 0 | AF50: 0 | AG50: =SUM(D51:AF51) -> 177778.5 | AH50: =AG50/B51 -> 1 | AI50: =SUM(C51:AF51) -> 177778.5 | AJ50: =C50+D50+E50+F50+G50+H50+I50+J50+K50+L50+M50+N50+O50+P50+Q50+R50+S50+T50+U50+V50+W50+X50+Y50+Z50+AA50+AB50+AC50+AD50+AE50+AF50 -> 1 | AK50: =SUM(D50:F50) -> 0 | AL50: =B51-C51 -> 177778.5 | AM50: =B51-AI50 -> 0
B51: 177778.5 | C51: 0 | D51: 0 | E51: 0 | F51: 0 | G51: 0 | H51: 0 | I51: 0 | J51: 0 | K51: 0 | L51: 0 | M51: 0 | N51: 0 | O51: 0 | P51: 0 | Q51: 0 | R51: 0 | S51: 0 | T51: 0 | U51: 0 | V51: =B51*0.35 -> 62222.475 | W51: =B51*0.35 -> 62222.475 | X51: =B51*0.3 -> 53333.55 | Y51: 0 | Z51: 0 | AA51: 0 | AB51: 0 | AC51: 0 | AD51: 0 | AE51: 0 | AF51: 0
A52: 22.0 | B52: PAISAGISMO | C52: =C53/B53 -> 0 | D52: =D53/$AI52 -> 0 | E52: 0 | F52: 0 | G52: 0 | H52: 0 | I52: 0 | J52: 0 | K52: 0 | L52: 0 | M52: 0 | N52: 0 | O52: 0 | P52: 0 | Q52: 0 | R52: 0 | S52: 0 | T52: 0 | U52: 0 | V52: 0 | W52: 0 | X52: 0 | Y52: 0 | Z52: 0 | AA52: 0 | AB52: 0 | AC52: 0 | AD52: 0 | AE52: 0 | AF52: 1 | AG52: =SUM(D53:AF53) -> 22289.4 | AH52: =AG52/B53 -> 1 | AI52: =SUM(C53:AF53) -> 22289.4 | AJ52: =C52+D52+E52+F52+G52+H52+I52+J52+K52+L52+M52+N52+O52+P52+Q52+R52+S52+T52+U52+V52+W52+X52+Y52+Z52+AA52+AB52+AC52+AD52+AE52+AF52 -> 1 | AK52: =SUM(D52:F52) -> 0 | AL52: =B53-C53 -> 22289.4 | AM52: =B53-AI52 -> 0
B53: 22289.4 | C53: 0 | D53: 0 | E53: 0 | F53: 0 | G53: 0 | H53: 0 | I53: 0 | J53: 0 | K53: 0 | L53: 0 | M53: 0 | N53: 0 | O53: 0 | P53: 0 | Q53: 0 | R53: 0 | S53: 0 | T53: 0 | U53: 0 | V53: 0 | W53: 0 | X53: 0 | Y53: 0 | Z53: 0 | AA53: 0 | AB53: 0 | AC53: 0 | AD53: 0 | AE53: 0 | AF53: =B53 -> 22289.4
A54: 23.0 | B54: SERVIÇOS COMPLEMENTARES | C54: =C55/B55 -> 0 | D54: =D55/$AI54 -> 0 | E54: 0 | F54: 0 | G54: 0 | H54: 0 | I54: 0 | J54: 0 | K54: 0 | L54: 0 | M54: 0 | N54: 0 | O54: 0 | P54: 0 | Q54: 0 | R54: 0 | S54: 0 | T54: 0 | U54: 0 | V54: 0 | W54: 0 | X54: 0 | Y54: 0.3 | Z54: 0 | AA54: 0 | AB54: 0.1 | AC54: 0 | AD54: 0 | AE54: 0.55 | AF54: 0.05 | AG54: =SUM(D55:AF55) -> 105678.24 | AH54: =AG54/B55 -> 1 | AI54: =SUM(C55:AF55) -> 105678.24 | AJ54: =C54+D54+E54+F54+G54+H54+I54+J54+K54+L54+M54+N54+O54+P54+Q54+R54+S54+T54+U54+V54+W54+X54+Y54+Z54+AA54+AB54+AC54+AD54+AE54+AF54 -> 1 | AK54: =SUM(D54:F54) -> 0 | AL54: =B55-C55 -> 105678.24 | AM54: =B55-AI54 -> 0
B55: 105678.24 | C55: 0 | D55: 0 | E55: 0 | F55: 0 | G55: 0 | H55: 0 | I55: 0 | J55: 0 | K55: 0 | L55: 0 | M55: 0 | N55: 0 | O55: 0 | P55: 0 | Q55: 0 | R55: 0 | S55: 0 | T55: 0 | U55: 0 | V55: 0 | W55: 0 | X55: 0 | Y55: =B55*0.3 -> 31703.472 | Z55: 0 | AA55: 0 | AB55: =B55*0.1 -> 10567.824 | AC55: 0 | AD55: 0 | AE55: =B55*0.55 -> 58123.032 | AF55: =B55*0.05 -> 5283.912
A56: 24.0 | B56: LIMPEZA DE OBRA | C56: =C57/B57 -> 0 | D56: =D57/$AI56 -> 0 | E56: 0 | F56: 0 | G56: 0 | H56: 0 | I56: 0 | J56: 0 | K56: 0 | L56: 0 | M56: 0 | N56: 0 | O56: 0 | P56: 0 | Q56: 0 | R56: 0 | S56: 0 | T56: 0 | U56: 0 | V56: 0 | W56: 0 | X56: 0 | Y56: 0 | Z56: 0 | AA56: 0 | AB56: 0 | AC56: 0 | AD56: 0 | AE56: 0 | AF56: 1 | AG56: =SUM(D57:AF57) -> 27398.41 | AH56: =AG56/B57 -> 1 | AI56: =SUM(C57:AF57) -> 27398.41 | AJ56: =C56+D56+E56+F56+G56+H56+I56+J56+K56+L56+M56+N56+O56+P56+Q56+R56+S56+T56+U56+V56+W56+X56+Y56+Z56+AA56+AB56+AC56+AD56+AE56+AF56 -> 1 | AK56: =SUM(D56:F56) -> 0 | AL56: =B57-C57 -> 27398.41 | AM56: =B57-AI56 -> 0
B57: 27398.41 | C57: 0 | D57: 0 | E57: 0 | F57: 0 | G57: 0 | H57: 0 | I57: 0 | J57: 0 | K57: 0 | L57: 0 | M57: 0 | N57: 0 | O57: 0 | P57: 0 | Q57: 0 | R57: 0 | S57: 0 | T57: 0 | U57: 0 | V57: 0 | W57: 0 | X57: 0 | Y57: 0 | Z57: 0 | AA57: 0 | AB57: 0 | AC57: 0 | AD57: 0 | AE57: 0 | AF57: =B57 -> 27398.41
B58: VALOR TOTAL | C58: =C11+C13+C15+C17+C19+C21+C23+C25++C39+C41+C43+C45+C47+C49+C51+C53+C55+CC5727+C29+C35+C31+C33+C37+C57+C27 -> 1990129.37 | D58: =D11+D13+D15+D17+D19+D21+D23+D25++D39+D41+D43+D45+D47+D49+D51+D53+D55+CD5727+D29+D35+D31+D33+D37+D57+D27 -> 173810.3435 | E58: 174743.257 | F58: 174718.8679 | G58: 172399.5304 | H58: 175237.7564 | I58: 173495 | J58: 91663.33836 | K58: 94542.45526 | L58: 94542.45526 | M58: 94542.45526 | N58: 93752.61926 | O58: 89585.45676 | P58: 89585.45676 | Q58: 89585.45676 | R58: 97735.02776 | S58: 97735.02776 | T58: 97735.02776 | U58: 97735.02776 | V58: 92077.66776 | W58: 92077.66776 | X58: 91317.72876 | Y58: 94074.60876 | Z58: 94093.14276 | AA58: 94093.14276 | AB58: 95484.11676 | AC58: 96513.86776 | AD58: 96513.86776 | AE58: 87978.22476 | AF58: 84826.91476 | AG58: =SUM(AG10:AG57) -> 3192195.51 | AH58: =AG58/B67 -> 0.6159774973 | AI58: =SUM(AI10:AI57) -> 5182324.88 | AJ58: =AI58/B67 -> 1 | AL58: =ROUND(SUM(AL10:AL35),2) -> 2019629.46
B59: Percentual total | C59: =C58/$AI$58 -> 0.3840225027 | D59: =D58/$AI$58 -> 0.0335390674 | E59: 0.03371908574 | F59: 0.03371437953 | G59: 0.03326683185 | H59: 0.03381450612 | I59: =I58/$AI$58 -> 0.03347821759 | J59: 0.0176876866 | K59: 0.01824325133 | L59: =L58/$AI$58 -> 0.01824325133 | M59: 0.01824325133 | N59: 0.01809084174 | O59: 0.01728673112 | P59: 0.01728673112 | Q59: 0.01728673112 | R59: 0.01885930157 | S59: 0.01885930157 | T59: 0.01885930157 | U59: =U58/$AI$58 -> 0.01885930157 | V59: 0.01776763709 | W59: 0.01776763709 | X59: 0.01762099654 | Y59: 0.01815297399 | Z59: 0.01815655038 | AA59: 0.01815655038 | AB59: 0.01842495771 | AC59: 0.01862366216 | AD59: 0.01862366216 | AE59: =AE58/$AI$58 -> 0.01697659386 | AF59: 0.01636850578
B60: Valor parcial com BDI | C60: =C58 -> 1990129.37 | D60: =D58 -> 173810.3435 | E60: 174743.257 | F60: 174718.8679 | G60: 172399.5304 | H60: 175237.7564 | I60: 173495 | J60: 91663.33836 | K60: 94542.45526 | L60: 94542.45526 | M60: 94542.45526 | N60: 93752.61926 | O60: 89585.45676 | P60: 89585.45676 | Q60: 89585.45676 | R60: 97735.02776 | S60: 97735.02776 | T60: 97735.02776 | U60: 97735.02776 | V60: 92077.66776 | W60: 92077.66776 | X60: 91317.72876 | Y60: 94074.60876 | Z60: 94093.14276 | AA60: 94093.14276 | AB60: 95484.11676 | AC60: 96513.86776 | AD60: 96513.86776 | AE60: 87978.22476 | AF60: 84826.91476
B61: Percentual acumulado | C61: =C59 -> 0.3840225027 | D61: =D59 -> 0.0335390674 | E61: =D61+E59 -> 0.06725815314 | F61: 0.1009725327 | G61: 0.1342393645 | H61: 0.1680538706 | I61: =H61+I59 -> 0.2015320882 | J61: =I61+J59 -> 0.2192197748 | K61: =J61+K59 -> 0.2374630262 | L61: 0.2557062775 | M61: =M59 -> 0.01824325133 | N61: =M61+N59 -> 0.03633409307 | O61: =N61+O59 -> 0.05362082419 | P61: =O61+P59 -> 0.0709075553 | Q61: =P61+Q59 -> 0.08819428642 | R61: =Q61+R59 -> 0.107053588 | S61: =R61+S59 -> 0.1259128896 | T61: =S61+T59 -> 0.1447721911 | U61: =T61+U59 -> 0.1636314927 | V61: =U61+V59 -> 0.1813991298 | W61: =W59 -> 0.01776763709 | X61: =W61+X59 -> 0.03538863363 | Y61: =X61+Y59 -> 0.05354160762 | Z61: =Y61+Z59 -> 0.071698158 | AA61: =Z61+AA59 -> 0.08985470837 | AB61: =AA61+AB59 -> 0.1082796661 | AC61: =AB61+AC59 -> 0.1269033282 | AD61: =AC61+AD59 -> 0.1455269904 | AE61: =AD61+AE59 -> 0.1625035843 | AF61: 0.17887209
B62: Valor acumulado com BDI | C62: =C60 -> 1990129.37 | D62: =D60+C62 -> 2163939.713 | E62: 2338682.97 | F62: 2513401.838 | G62: 2685801.369 | H62: 2861039.125 | I62: 3034534.125 | J62: 3126197.463 | K62: 3220739.919 | L62: 3315282.374 | M62: 3409824.829 | N62: 3503577.448 | O62: 3593162.905 | P62: 3682748.362 | Q62: 3772333.819 | R62: 3870068.846 | S62: 3967803.874 | T62: 4065538.902 | U62: 4163273.93 | V62: 4255351.597 | W62: =V62+W60 -> 4347429.265 | X62: 4438746.994 | Y62: 4532821.603 | Z62: 4626914.745 | AA62: 4721007.888 | AB62: 4816492.005 | AC62: 4913005.873 | AD62: 5009519.74 | AE62: 5097497.965 | AF62: 5182324.88
AG64: =AI58-B64 -> 5182324.88
F65: =AG58+C58 -> 5182324.88 | I65: =AJ58+F58 -> 174719.8679 | O65: =AP58+L58 -> 94542.45526 | R65: =AS58+O58 -> 89585.45676 | Y65: =AZ58+V58 -> 92077.66776 | AB65: =BC58+Y58 -> 94074.60876 | AG65: =B67 -> 5182324.88 | AH65: =#REF! ->  | AJ65: =#REF! -> 
AG66: =AG65-AG64 -> 0 | AL66: =#REF! -> 
B67: =B37+B35+B33+B31+B29+B27+B25+B23+B21+B19+B17+B15+B13+B11+B39+B41+B43+B45+B47+B49+B51+B53+B55+B57 -> 5182324.88
AH68: 736083.61 | AJ68: 736083.61
I69: =B67-I62 -> 2147790.755 | AH69: 728655.05 | AJ69: 728655.05
I70: =I69/23 -> 93382.20674 | AH70: =AH69/AH68 -> 0.9899079943 | AJ70: =AJ69/AJ68 -> 0.9899079943
AH71: =AH70-1 -> -0.01009200572 | AJ71: =AJ70-1 -> -0.01009200572

Sheet BDI_DESO (hidden)
F1: ITEM | G1: NOME | H1: ISS
F2: 1 | G2: ARIQUEMES | H2: 0.05
F3: 2 | G3: ALTA FLORESTA | H3: 0.05
F4: 3 | G4: ALTO PARAÍSO | H4: 0.03
F5: 4 | G5: ALVORADA | H5: 0.05
F6: 5 | G6: BURITIS | H6: 0.03
A7: =#REF! -> 
A8: =#REF! ->  | F8: 6 | G8: CABIXI | H8: 0.02
F9: 7 | G9: CANDEIAS DO JAMARI | H9: 0.03
A10: COMPOSIÇÃO ANALÍTICA DO BDI | F10: 8 | G10: CEREJEIRAS | H10: 0.02
F11: 9 | G11: COSTA MARQUES | H11: 0.05
A12: ="OBRA: " &#REF! ->  | F12: 10 | G12: CORUMBIARA | H12: 0.05
A13: ="END.: " &#REF! ->  | F13: 11 | G13: CUJUBIM | H13: 0.05
A14: ="LOCAL: " &#REF! ->  | F14: 12 | G14: ESPIGÃO | H14: 0.05
A15: ="ÁREA : " &#REF! ->  | F15: 13 | G15: ITAPUÃ DO OESTE. | H15: 0.03
F16: 14 | G16: JI-PARANÁ | H16: 0.05
A17: VALORES DE BDI POR TIPO DE OBRA %
A18: TIPO DE OBRA | B18: 1 Quartil | C18: Médio | D18: 3 Quartil | F18: 16 | G18: MIRANTE DA SERRA | H18: 0.05
A19: Construção de Edifícios | B19: 20.34 | C19: 22.12 | D19: 25 | F19: 17 | G19: MONTE NEGRO | H19: 0.05
F20: 18 | G20: NOVA MAMORÉ | H20: 0.05
A21: DESCRIÇÃO | B21: VALORES DE REFERÊNCIA - % | E21: BDI ADOTADO % | F21: 19 | G21: PARECIS | H21: 0.05
B22: 1º QUARTIL | C22: MÉDIO | D22: 3º QUARTIL | F22: 20 | G22: PRESIDENTE MÉDICI | H22: 0.05
A23: Administração Central | B23: 3 | C23: 4 | D23: 5.5 | E23: =(VLOOKUP(A8,#REF!,2,FALSE)) ->  | F23: 21 | G23: PIMENTEIRAS | H23: 0.05
A24: Seguro e Garantia (*) | B24: 0.8 | C24: 0.8 | D24: 1 | E24: =(VLOOKUP(A8,#REF!,3,FALSE)) ->  | F24: 22 | G24: PRIMAVERA | H24: 0.05
A25: Risco | B25: 0.97 | C25: 1.27 | D25: 1.27 | E25: =(VLOOKUP(A8,#REF!,4,FALSE)) ->  | F25: 23 | G25: ROLIM DE MOURA | H25: 0.05
A26: Despesas Financeiras | B26: 0.59 | C26: 1.23 | D26: 1.39 | E26: =(VLOOKUP(A8,#REF!,5,FALSE)) ->  | F26: 24 | G26: SÃO FELIPE | H26: 0.05
A27: Lucro | B27: 6.16 | C27: 7.4 | D27: 8.96 | E27: =(VLOOKUP(A8,#REF!,6,FALSE)) ->  | F27: 25 | G27: SANTA LUZIA | H27: 0.05
A28: Tributos (Confins, PIS e ISSQN) + 4,5% INSS | B28: =SUM(B29:B32) -> 10.15 | C28: =SUM(C29:C32) -> 11.15 | D28: =SUM(D29:D32) -> 13.15 | E28: =SUM(E29:E32) ->  | F28: 26 | G28: SÃO FRANCISCO | H28: 0.05
A29: COFINS | B29: 3 | C29: 3 | D29: 3 | E29: =(VLOOKUP(A8,#REF!,7,FALSE)) ->  | F29: 27 | G29: SÃO MIGUEL | H29: 0.05
A30: PIS | B30: 0.65 | C30: 0.65 | D30: 0.65 | E30: =(VLOOKUP(A8,#REF!,8,FALSE)) ->  | F30: 28 | G30: TEIXEIRÓPOLIS | H30: 0.05 | I30: 5 | J30: =I30*G33 ->  | K30: =I30+J30 -> 
A31: ISSQN (**) | B31: 2 | C31: 3 | D31: 5 | E31: =(VLOOKUP(A8,#REF!,9,FALSE)*100) ->  | F31: 29 | G31: VALE DO PARAÍSO | H31: 0.05 | K31: =I30*H33 -> 
A32: CPRB (***) | B32: 4.5 | C32: 4.5 | D32: 4.5 | E32: 4.5
A33: TOTAL | E33: =ROUND((((((1+E23/100+E24/100+E25/100)*(1+E26/100)*(1+E27/100))/(1-E28/100))-1)*100),2) ->  | F33: =E33/100 ->  | G33: =E33/100 ->  | H33: =G33+1 -> 
A35: Fonte da composição, valores de referência e fórmula do BDI: Acórdão 2622/2013 - TCU - Plenário
A37: Os valores de BDI acima foram calculados com emprego da fórmula abaixo:
A42: Onde:
A43: AC = taxa de rateio da Administração Central;
A44: DF = taxa das despesas financeiras;
A45: S = taxa de seguro; R = taxa de risco e G = garantia do empreendimento;
A46: I = taxa de tributos;
A47: L = taxa de lucro.
A49: OBS:
A50: (*) - PODE HAVER GARANTIA DESDE QUE PREVISTO NO EDITAL DA LICITAÇÃO E NO CONTRATO DE EXECUÇÃO.
A51: (**) - PODEM SER ACEITOS OUTROS PERCENTUAIS DE ISS DESDE QUE DEVIDAMENTE EMBASADOS NA LEGISLAÇÃO MUNICIPAL.
A52: (***) - CONTRIBUIÇÃO PREVIDENCIÁRIA INSTITUÍDA PARA DESONERAR A FOLHA DE SALÁRIOS DE DIVERSAS ATIVIDADES ECONÔMICAS DA CONSTRUÇÃO CIVIL PODERÁ IMPACTAR AS TAXAS DE BDI MEDIANTE A MAJORAÇÃO DO PERCENTUAL CORRESPONDENTE A 4,5%

Sheet COM DESONERADO (hidden)
A2: 97141 | B2: Assentamento de tubo de ferro fundido para rede de água, dn 80 mm, junta elástica, instalado em local com nível alto de interferências (não inclui fornecimento). Af_11/2017 | C2: m | D2: 6.49 | E2: C
A3: 97142 | B3: Assentamento de tubo de ferro fundido para rede de água, dn 100 mm, junta elástica, instalado em local com nível alto de interferências (não inclui fornecimento). Af_11/2017 | C3: m | D3: 7.26 | E3: C
A4: 97143 | B4: Assentamento de tubo de ferro fundido para rede de água, dn 150 mm, junta elástica, instalado em local com nível alto de interferências (não inclui fornecimento). Af_11/2017 | C4: m | D4: 9.15 | E4: C
A5: 97144 | B5: Assentamento de tubo de ferro fundido para rede de água, dn 200 mm, junta elástica, instalado em local com nível alto de interferências (não inclui fornecimento). Af_11/2017 | C5: m | D5: 11.06 | E5: C
A6: 97145 | B6: Assentamento de tubo de ferro fundido para rede de água, dn 250 mm, junta elástica, instalado em local com nível alto de interferências (não inclui fornecimento). Af_11/2017 | C6: m | D6: 12.98 | E6: C
A7: 97146 | B7: Assentamento de tubo de ferro fundido para rede de água, dn 300 mm, junta elástica, instalado em local com nível alto de interferências (não inclui fornecimento). Af_11/2017 | C7: m | D7: 14.89 | E7: C
A8: 97147 | B8: Assentamento de tubo de ferro fundido para rede de água, dn 350 mm, junta elástica, instalado em local com nível alto de interferências (não inclui fornecimento). Af_11/2017 | C8: m | D8: 16.82 | E8: C
A9: 97148 | B9: Assentamento de tubo de ferro fundido para rede de água, dn 400 mm, junta elástica, instalado em local com nível alto de interferências (não inclui fornecimento). Af_11/2017 | C9: m | D9: 18.73 | E9: C
A10: 97149 | B10: Assentamento de tubo de ferro fundido para rede de água, dn 450 mm, junta elástica, instalado em local com nível alto de interferências (não inclui fornecimento). Af_11/2017 | C10: m | D10: 20.67 | E10: C
A11: 97150 | B11: Assentamento de tubo de ferro fundido para rede de água, dn 500 mm, junta elástica, instalado em local com nível alto de interferências (não inclui fornecimento). Af_11/2017 | C11: m | D11: 27.18 | E11: C
A12: 97151 | B12: Assentamento de tubo de ferro fundido para rede de água, dn 600 mm, junta elástica, instalado em local com nível alto de interferências (não inclui fornecimento). Af_11/2017 | C12: m | D12: 31.7 | E12: C
A13: 97152 | B13: Assentamento de tubo de ferro fundido para rede de água, dn 700 mm, junta elástica, instalado em local com nível alto de interferências (não inclui fornecimento). Af_11/2017 | C13: m | D13: 36 | E13: C
A14: 97153 | B14: Assentamento de tubo de ferro fundido para rede de água, dn 800 mm, junta elástica, instalado em local com nível alto de interferências (não inclui fornecimento). Af_11/2017 | C14: m | D14: 40.46 | E14: C
A15: 97154 | B15: Assentamento de tubo de ferro fundido para rede de água, dn 900 mm, junta elástica, instalado em local com nível alto de interferências (não inclui fornecimento). Af_11/2017 | C15: m | D15: 44.92 | E15: C
A16: 97155 | B16: Assentamento de tubo de ferro fundido para rede de água, dn 1000 mm, junta elástica, instalado em local com nível alto de interferências (não inclui fornecimento). Af_11/2017 | C16: m | D16: 49.4 | E16: C
A17: 97156 | B17: Assentamento de tubo de ferro fundido para rede de água, dn 1200 mm, junta elástica, instalado em local com nível alto de interferências (não inclui fornecimento). Af_11/2017 | C17: m | D17: 58.71 | E17: C
A18: 97157 | B18: Assentamento de tubo de ferro fundido para rede de água, dn 80 mm, junta elástica, instalado em local com nível baixo de interferências (não inclui fornecimento). Af_11/2017 | C18: m | D18: 3.99 | E18: C
A19: 97158 | B19: Assentamento de tubo de ferro fundido para rede de água, dn 100 mm, junta elástica, instalado em local com nível baixo de interferências (não inclui fornecimento). Af_11/2017 | C19: m | D19: 4.45 | E19: C
A20: 97159 | B20: Assentamento de tubo de ferro fundido para rede de água, dn 150 mm, junta elástica, instalado em local com nível baixo de interferências (não inclui fornecimento). Af_11/2017 | C20: m | D20: 5.62 | E20: C
A21: 97160 | B21: Assentamento de tubo de ferro fundido para rede de água, dn 200 mm, junta elástica, instalado em local com nível baixo de interferências (não inclui fornecimento). Af_11/2017 | C21: m | D21: 6.79 | E21: C
A22: 97161 | B22: Assentamento de tubo de ferro fundido para rede de água, dn 250 mm, junta elástica, instalado em local com nível baixo de interferências (não inclui fornecimento). Af_11/2017 | C22: m | D22: 7.98 | E22: C
A23: 97162 | B23: Assentamento de tubo de ferro fundido para rede de água, dn 300 mm, junta elástica, instalado em local com nível baixo de interferências (não inclui fornecimento). Af_11/2017 | C23: m | D23: 9.16 | E23: C
A24: 97163 | B24: Assentamento de tubo de ferro fundido para rede de água, dn 350 mm, junta elástica, instalado em local com nível baixo de interferências (não inclui fornecimento). Af_11/2017 | C24: m | D24: 10.36 | E24: C
A25: 97164 | B25: Assentamento de tubo de ferro fundido para rede de água, dn 400 mm, junta elástica, instalado em local com nível baixo de interferências (não inclui fornecimento). Af_11/2017 | C25: m | D25: 11.54 | E25: C
A26: 97165 | B26: Assentamento de tubo de ferro fundido para rede de água, dn 450 mm, junta elástica, instalado em local com nível baixo de interferências (não inclui fornecimento). Af_11/2017 | C26: m | D26: 12.75 | E26: C
A27: 97166 | B27: Assentamento de tubo de ferro fundido para rede de água, dn 500 mm, junta elástica, instalado em local com nível baixo de interferências (não inclui fornecimento). Af_11/2017 | C27: m | D27: 16.69 | E27: C
A28: 97167 | B28: Assentamento de tubo de ferro fundido para rede de água, dn 600 mm, junta elástica, instalado em local com nível baixo de interferências (não inclui fornecimento). Af_11/2017 | C28: m | D28: 19.5 | E28: C
A29: 97168 | B29: Assentamento de tubo de ferro fundido para rede de água, dn 700 mm, junta elástica, instalado em local com nível baixo de interferências (não inclui fornecimento). Af_11/2017 | C29: m | D29: 22.08 | E29: C
A30: 97169 | B30: Assentamento de tubo de ferro fundido para rede de água, dn 800 mm, junta elástica, instalado em local com nível baixo de interferências (não inclui fornecimento). Af_11/2017 | C30: m | D30: 24.81 | E30: C
A31: 97170 | B31: Assentamento de tubo de ferro fundido para rede de água, dn 900 mm, junta elástica, instalado em local com nível baixo de interferências (não inclui fornecimento). Af_11/2017 | C31: m | D31: 27.55 | E31: C
A32: 97171 | B32: Assentamento de tubo de ferro fundido para rede de água, dn 1000 mm, junta elástica, instalado em local com nível baixo de interferências (não inclui fornecimento). Af_11/2017 | C32: m | D32: 30.32 | E32: C
A33: 97172 | B33: Assentamento de tubo de ferro fundido para rede de água, dn 1200 mm, junta elástica, instalado em local com nível baixo de interferências (não inclui fornecimento). Af_11/2017 | C33: m | D33: 36.18 | E33: C
A34: 97173 | B34: Assentamento de tubo de aço carbono para rede de água, dn 600 mm (24), junta soldada, instalado em local com nível alto de interferências (não inclui fornecimento). Af_11/2017 | C34: m | D34: 28.75 | E34: C
A35: 97174 | B35: Assentamento de tubo de aço carbono para rede de água, dn 700 mm (28), junta soldada, instalado em local com nível alto de interferências (não inclui fornecimento). Af_11/2017 | C35: m | D35: 33.27 | E35: C
A36: 97175 | B36: Assentamento de tubo de aço carbono para rede de água, dn 800 mm (32), junta soldada, instalado em local com nível alto de interferências (não inclui fornecimento). Af_11/2017 | C36: m | D36: 37.78 | E36: C
A37: 97176 | B37: Assentamento de tubo de aço carbono para rede de água, dn 900 mm (36), junta soldada, instalado em local com nível alto de interferências (não inclui fornecimento). Af_11/2017 | C37: m | D37: 42.29 | E37: C
A38: 97177 | B38: Assentamento de tubo de aço carbono para rede de água, dn 1000 mm (40) ou dn 1100 mm (44), junta soldada, instalado em local com nível alto de interferências (não inclui fornecimento). Af_11/2017 | C38: m | D38: 51.29 | E38: C
A39: 97178 | B39: Assentamento de tubo de aço carbono para rede de água, dn 1200 mm (48) ou dn 1300 mm (52), junta soldada, instalado em local com nível alto de interferências (não inclui fornecimento). Af_11/2017 | C39: m | D39: 60.31 | E39: C
A40: 97179 | B40: Assentamento de tubo de aço carbono para rede de água, dn 1400 mm (56'') ou dn 1500 mm (60), junta soldada, instalado em local com nível alto de interferências (não inclui fornecimento). Af_11/2017 | C40: m | D40: 69.31 | E40: C
A41: 97180 | B41: Assentamento de tubo de aço carbono para rede de água, dn 1600 mm (64) ou dn 1700 mm (68), junta soldada, instalado em local com nível alto de interferências (não inclui fornecimento). Af_11/2017 | C41: m | D41: 78.31 | E41: C
A42: 97181 | B42: Assentamento de tubo de aço carbono para rede de água, dn 1800 mm (72) ou dn 1900 mm (76), junta soldada, instalado em local com nível alto de interferências (não inclui fornecimento). Af_11/2017 | C42: m | D42: 91.07 | E42: C
A43: 97182 | B43: Assentamento de tubo de aço carbono para rede de água, dn 2000 mm (80) ou dn 2100 mm (84), junta soldada, instalado em local com nível alto de interferências (não inclui fornecimento). Af_11/2017 | C43: m | D43: 100.48 | E43: C
A44: 97183 | B44: Assentamento de tubo de aço carbono para rede de água, dn 600 mm (24), junta soldada, instalado em local com nível baixo de interferências (não inclui fornecimento). Af_11/2017 | C44: m | D44: 23.13 | E44: C
A45: 97184 | B45: Assentamento de tubo de aço carbono para rede de água, dn 700 mm (28), junta soldada, instalado em local com nível baixo de interferências (não inclui fornecimento). Af_11/2017 | C45: m | D45: 26.82 | E45: C
A46: 97185 | B46: Assentamento de tubo de aço carbono para rede de água, dn 800 mm (32), junta soldada, instalado em local com nível baixo de interferências (não inclui fornecimento). Af_11/2017 | C46: m | D46: 30.5 | E46: C
A47: 97186 | B47: Assentamento de tubo de aço carbono para rede de água, dn 900 mm (36), junta soldada, instalado em local com nível baixo de interferências (não inclui fornecimento). Af_11/2017 | C47: m | D47: 34.19 | E47: C
A48: 97187 | B48: Assentamento de tubo de aço carbono para rede de água, dn 1000 mm (40 ) ou dn 1100 mm (44 ), junta soldada, instalado em local com nível baixo de interferências (não inclui fornecimento). Af_11/2017 | C48: m | D48: 41.55 | E48: C
A49: 97188 | B49: Assentamento de tubo de aço carbono para rede de água, dn 1200 mm (48) ou dn 1300 mm (52), junta soldada, instalado em local com nível baixo de interferências (não inclui fornecimento). Af_11/2017 | C49: m | D49: 48.93 | E49: C
A50: 97189 | B50: Assentamento de tubo de aço carbono para rede de água, dn 1400 mm (56'') ou dn 1500 mm (60), junta soldada, instalado em local com nível baixo de interferências (não inclui fornecimento). Af_11/2017 | C50: m | D50: 56.27 | E50: C
A51: 97190 | B51: Assentamento de tubo de aço carbono para rede de água, dn 1600 mm (64) ou dn 1700 mm (68), junta soldada, instalado em local com nível baixo de interferências (não inclui fornecimento). Af_11/2017 | C51: m | D51: 63.64 | E51: C
A52: 97191 | B52: Assentamento de tubo de aço carbono para rede de água, dn 1800 mm (72) ou dn 1900 mm (76), junta soldada, instalado em local com nível baixo de interferências (não inclui fornecimento). Af_11/2017 | C52: m | D52: 73.77 | E52: C
A53: 97192 | B53: Assentamento de tubo de aço carbono para rede de água, dn 2000 mm (80) ou dn 2100 mm (84), junta soldada, instalado em local com nível baixo de interferências (não inclui fornecimento). Af_11/2017 | C53: m | D53: 81.42 | E53: C
A54: 90694 | B54: Tubo de pvc para rede coletora de esgoto de parede maciça, dn 100 mm, junta elástica - fornecimento e assentamento. Af_01/2021 | C54: m | D54: 41.78 | E54: C
A55: 90695 | B55: Tubo de pvc para rede coletora de esgoto de parede maciça, dn 150 mm, junta elástica - fornecimento e assentamento. Af_01/2021 | C55: m | D55: 87.12 | E55: C
A56: 90696 | B56: Tubo de pvc para rede coletora de esgoto de parede maciça, dn 200 mm, junta elástica - fornecimento e assentamento. Af_01/2021 | C56: m | D56: 129.5 | E56: C
A57: 90697 | B57: Tubo de pvc para rede coletora de esgoto de parede maciça, dn 250 mm, junta elástica - fornecimento e assentamento. Af_01/2021 | C57: m | D57: 218.4 | E57: C
A58: 90698 | B58: Tubo de pvc para rede coletora de esgoto de parede maciça, dn 300 mm, junta elástica, fornecimento e assentamento. Af_01/2021 | C58: m | D58: 350.35 | E58: C
A59: 90699 | B59: Tubo de pvc para rede coletora de esgoto de parede maciça, dn 350 mm, junta elástica - fornecimento e assentamento. Af_01/2021 | C59: m | D59: 433.21 | E59: C
A60: 90700 | B60: Tubo de pvc para rede coletora de esgoto de parede maciça, dn 400 mm, junta elástica fornecimento e assentamento. Af_01/2021 | C60: m | D60: 560.86 | E60: C
A61: 90701 | B61: Tubo de pvc corrugado de dupla parede para rede coletora de esgoto, dn 150 mm, junta elástica - fornecimento e assentamento. Af_01/2021 | C61: m | D61: 70.84 | E61: C
A62: 90702 | B62: Tubo de pvc corrugado de dupla parede para rede coletora de esgoto, dn 200 mm, junta elástica - fornecimento e assentamento. Af_01/2021 | C62: m | D62: 112.99 | E62: C
A63: 90703 | B63: Tubo de pvc corrugado de dupla parede para rede coletora de esgoto, dn 250 mm, junta elástica - fornecimento e assentamento. Af_01/2021 | C63: m | D63: 185.23 | E63: C
A64: 90704 | B64: Tubo de pvc corrugado de dupla parede para rede coletora de esgoto, dn 300 mm, junta elástica - fornecimento e assentamento. Af_01/2021 | C64: m | D64: 256.32 | E64: C
A65: 90705 | B65: Tubo de pvc corrugado de dupla parede para rede coletora de esgoto, dn 350 mm, junta elástica - fornecimento e assentamento. Af_01/2021 | C65: m | D65: 360.67 | E65: C
A66: 90706 | B66: Tubo de pvc corrugado de dupla parede para rede coletora de esgoto, dn 400 mm, junta elástica - fornecimento e assentamento. Af_01/2021 | C66: m | D66: 420.22 | E66: C
A67: 90708 | B67: Tubo de pead corrugado de dupla parede para rede coletora de esgoto, dn 600 mm, junta elástica integrada - fornecimento e assentamento. Af_01/2021 | C67: m | D67: 1190.83 | E67: C
A68: 90724 | B68: Junta argamassada entre tubo dn 100 mm e o poço de visita/ caixa de concreto ou alvenaria em redes de esgoto. Af_01/2021 | C68: un | D68: 20.6 | E68: C
A69: 90725 | B69: Junta argamassada entre tubo dn 150 mm e o poço de visita/ caixa de concreto ou alvenaria em redes de esgoto. Af_01/2021 | C69: un | D69: 25.38 | E69: C
A70: 90726 | B70: Junta argamassada entre tubo dn 200 mm e o poço/ caixa de concreto ou alvenaria em redes de esgoto. Af_01/2021 | C70: un | D70: 30.23 | E70: C
A71: 90727 | B71: Junta argamassada entre tubo dn 250 mm e o poço de visita/ caixa de concreto ou alvenaria em redes de esgoto. Af_01/2021 | C71: un | D71: 35.01 | E71: C
A72: 90728 | B72: Junta argamassada entre tubo dn 300 mm e o poço de visita/ caixa de concreto ou alvenaria em redes de esgoto. Af_01/2021 | C72: un | D72: 39.78 | E72: C
A73: 90729 | B73: Junta argamassada entre tubo dn 350 mm e o poço de visita/ caixa de concreto ou alvenaria em redes de esgoto. Af_01/2021 | C73: un | D73: 44.56 | E73: C
A74: 90730 | B74: Junta argamassada entre tubo dn 400 mm e o poço de visita/ caixa de concreto ou alvenaria em redes de esgoto. Af_01/2021 | C74: un | D74: 49.35 | E74: C
A75: 90731 | B75: Junta argamassada entre tubo dn 450 mm e o poço de visita/ caixa de concreto ou alvenaria em redes de esgoto. Af_01/2021 | C75: un | D75: 54.12 | E75: C
A76: 90732 | B76: Junta argamassada entre tubo dn 600 mm e o poço de visita/ caixa de concreto ou alvenaria em redes de esgoto. Af_01/2021 | C76: un | D76: 68.45 | E76: C
A77: 90733 | B77: Assentamento de tubo de pvc para rede coletora de esgoto de parede maciça, dn 100 mm, junta elástica (não inclui fornecimento). Af_01/2021 | C77: m | D77: 2.87 | E77: C
A78: 90734 | B78: Assentamento de tubo de pvc para rede coletora de esgoto de parede maciça, dn 150 mm, junta elástica, (não inclui fornecimento). Af_01/2021 | C78: m | D78: 3.4 | E78: C
A79: 90735 | B79: Assentamento de tubo de pvc para rede coletora de esgoto de parede maciça, dn 200 mm, junta elástica (não inclui fornecimento). Af_01/2021 | C79: m | D79: 3.93 | E79: C
A80: 90736 | B80: Assentamento de tubo de pvc para rede coletora de esgoto de parede maciça, dn 250 mm, junta elástica (não inclui fornecimento). Af_01/2021 | C80: m | D80: 4.46 | E80: C
A81: 90737 | B81: Assentamento de tubo de pvc para rede coletora de esgoto de parede maciça, dn 300 mm, junta elástica (não inclui fornecimento). Af_01/2021 | C81: m | D81: 5 | E81: C
A82: 90738 | B82: Assentamento de tubo de pvc para rede coletora de esgoto de parede maciça, dn 350 mm, junta elástica (não inclui fornecimento). Af_01/2021 | C82: m | D82: 5.52 | E82: C
A83: 90739 | B83: Assentamento de tubo de pvc para rede coletora de esgoto de parede maciça, dn 400 mm, junta elástica (não inclui fornecimento). Af_01/2021 | C83: m | D83: 7 | E83: C
A84: 90740 | B84: Assentamento de tubo de pvc corrugado de dupla parede para rede coletora de esgoto, dn 150 mm, junta elástica (não inclui fornecimento). Af_01/2021 | C84: m | D84: 3.79 | E84: C
A85: 90741 | B85: Assentamento de tubo de pvc corrugado de dupla parede para rede coletora de esgoto, dn 200 mm, junta elástica (não inclui fornecimento). Af_01/2021 | C85: m | D85: 4.32 | E85: C
A86: 90742 | B86: Assentamento de tubo de pvc corrugado de dupla parede para rede coletora de esgoto, dn 250 mm, junta elástica (não inclui fornecimento). Af_01/2021 | C86: m | D86: 4.86 | E86: C
A87: 90743 | B87: Assentamento de tubo de pvc corrugado de dupla parede para rede coletora de esgoto, dn 300 mm, junta elástica (não inclui fornecimento). Af_01/2021 | C87: m | D87: 5.38 | E87: C
A88: 90744 | B88: Assentamento de tubo de pvc corrugado de dupla parede para rede coletora de esgoto, dn 350 mm, junta elástica (não inclui fornecimento). Af_01/2021 | C88: m | D88: 5.91 | E88: C
A89: 90745 | B89: Assentamento de tubo de pvc corrugado de dupla parede para rede coletora de esgoto, dn 400 mm, junta elástica (não inclui fornecimento). Af_01/2021 | C89: m | D89: 7.82 | E89: C
A90: 90746 | B90: Assentamento de tubo de pead corrugado de dupla parede para rede coletora de esgoto, dn 450 mm, junta elástica integrada (não inclui fornecimento). Af_01/2021 | C90: m | D90: 3.1 | E90: C
A91: 90747 | B91: Assentamento de tubo de pead corrugado de dupla parede para rede coletora de esgoto, dn 600 mm, junta elástica integrada (não inclui fornecimento). Af_01/2021 | C91: m | D91: 13.78 | E91: C
A92: 94869 | B92: Tubo de pead corrugado de dupla parede para rede coletora de esgoto, dn 250 mm, junta elástica integrada - fornecimento e assentamento. Af_01/2021 | C92: m | D92: 242.72 | E92: C
A93: 94870 | B93: Assentamento de tubo de pead corrugado de dupla parede para rede coletora de esgoto, dn 250 mm, junta elástica integrada (não inclui fornecimento). Af_01/2021 | C93: m | D93: 1.63 | E93: C
A94: 94871 | B94: Tubo de pead corrugado de dupla parede para rede coletora de esgoto, dn 300 mm, junta elástica integrada - fornecimento e assentamento. Af_01/2021 | C94: m | D94: 287.43 | E94: C
A95: 94872 | B95: Assentamento de tubo de pead corrugado de dupla parede para rede coletora de esgoto, dn 300 mm, junta elástica integrada (não inclui fornecimento). Af_01/2021 | C95: m | D95: 2.29 | E95: C
A96: 94875 | B96: Tubo de pead corrugado de dupla parede para rede coletora de esgoto, dn 800 mm, junta elástica integrada - fornecimento e assentamento. Af_01/2021 | C96: m | D96: 1682.05 | E96: C
A97: 94876 | B97: Assentamento de tubo de pead corrugado de dupla parede para rede coletora de esgoto, dn 800 mm, junta elástica integrada (não inclui fornecimento). Af_01/2021 | C97: m | D97: 23.25 | E97: C
A98: 94878 | B98: Assentamento de tubo de pead corrugado de dupla parede para rede coletora de esgoto, dn 900 mm, junta elástica integrada (não inclui fornecimento). Af_01/2021 | C98: m | D98: 26.89 | E98: C
A99: 94879 | B99: Tubo de pead corrugado de dupla parede para rede coletora de esgoto, dn 1000 mm, junta elástica integrada - fornecimento e assentamento. Af_01/2021 | C99: m | D99: 2239.6 | E99: C
A100: 94880 | B100: Assentamento de tubo de pead corrugado de dupla parede para rede coletora de esgoto, dn 1000 mm, junta elástica integrada (não inclui fornecimento). Af_01/2021 | C100: m | D100: 34.79 | E100: C
A101: 94881 | B101: Tubo de pead corrugado de dupla parede para rede coletora de esgoto, dn 1200 mm, junta elástica integrada - fornecimento e assentamento. Af_01/2021 | C101: m | D101: 3500.79 | E101: C
A102: 94882 | B102: Assentamento de tubo de pead corrugado de dupla parede para rede coletora de esgoto, dn 1200 mm, junta elástica integrada (não inclui fornecimento). Af_01/2021 | C102: m | D102: 40.36 | E102: C
A103: 94884 | B103: Assentamento de tubo de pead corrugado de dupla parede para rede coletora de esgoto, dn 1500 mm, junta elástica integrada (não inclui fornecimento). Af_01/2021 | C103: m | D103: 51.67 | E103: C
A104: 97121 | B104: Assentamento de tubo de pvc pba para rede de água, dn 50 mm, junta elástica integrada, instalado em local com nível alto de interferências (não inclui fornecimento). Af_11/2017 | C104: m | D104: 1.71 | E104: C
A105: 97122 | B105: Assentamento de tubo de pvc pba para rede de água, dn 75 mm, junta elástica integrada, instalado em local com nível alto de interferências (não inclui fornecimento). Af_11/2017 | C105: m | D105: 2.39 | E105: C
A106: 97123 | B106: Assentamento de tubo de pvc pba para rede de água, dn 100 mm, junta elástica integrada, instalado em local com nível alto de interferências (não inclui fornecimento). Af_11/2017 | C106: m | D106: 3.02 | E106: C
A107: 97124 | B107: Assentamento de tubo de pvc pba para rede de água, dn 50 mm, junta elástica integrada, instalado em local com nível baixo de interferências (não inclui fornecimento). Af_11/2017 | C107: m | D107: 0.75 | E107: C
A108: 97125 | B108: Assentamento de tubo de pvc pba para rede de água, dn 75 mm, junta elástica integrada, instalado em local com nível baixo de interferências (não inclui fornecimento). Af_11/2017 | C108: m | D108: 1.08 | E108: C
A109: 97126 | B109: Assentamento de tubo de pvc pba para rede de água, dn 100 mm, junta elástica integrada, instalado em local com nível baixo de interferências (não inclui fornecimento). Af_11/2017 | C109: m | D109: 1.37 | E109: C
A110: 102264 | B110: Tubo de pvc branco para rede coletora de esgoto condominial de parede maciça, dn 100 mm, junta elástica - fornecimento e assentamento. Af_01/2021 | C110: m | D110: 16.57 | E110: C
A111: 102265 | B111: Junta argamassada entre tubo dn 800 mm e o poço de visita/ caixa de concreto ou alvenaria em redes de esgoto. Af_01/2021 | C111: un | D111: 87.58 | E111: C
A112: 102266 | B112: Junta argamassada entre tubo dn 900 mm e o poço de visita/ caixa de concreto ou alvenaria em redes de esgoto. Af_01/2021 | C112: un | D112: 97.14 | E112: C
A113: 102267 | B113: Junta argamassada entre tubo dn 1000 mm e o poço de visita/ caixa de concreto ou alvenaria em redes de esgoto. Af_01/2021 | C113: un | D113: 111.54 | E113: C
A114: 102268 | B114: Junta argamassada entre tubo dn 1200 mm e o poço de visita/ caixa de concreto ou alvenaria em redes de esgoto. Af_01/2021 | C114: un | D114: 125.88 | E114: C
A115: 102269 | B115: Junta argamassada entre tubo dn 1500 mm e o poço de visita/ caixa de concreto ou alvenaria em redes de esgoto. Af_01/2021 | C115: un | D115: 154.56 | E115: C
A116: 92833 | B116: Tubo de concreto para redes coletoras de esgoto sanitário, diâmetro de 300 mm, junta elástica, instalado em local com baixo nível de interferências - fornecimento e assentamento. Af_12/2015 | C116: m | D116: 173.01 | E116: C
A117: 92834 | B117: Assentamento de tubo de concreto para redes coletoras de esgoto sanitário, diâmetro de 300 mm, junta elástica, instalado em local com baixo nível de interferências (não inclui fornecimento). Af_12/2015 | C117: m | D117: 7.37 | E117: C
A118: 92835 | B118: Tubo de concreto para redes coletoras de esgoto sanitário, diâmetro de 400 mm, junta elástica, instalado em local com baixo nível de interferências - fornecimento e assentamento. Af_12/2015 | C118: m | D118: 186.93 | E118: C
A119: 92836 | B119: Assentamento de tubo de concreto para redes coletoras de esgoto sanitário, diâmetro de 400 mm, junta elástica, instalado em local com baixo nível de interferências (não inclui fornecimento). Af_12/2015 | C119: m | D119: 9.42 | E119: C
A120: 92837 | B120: Tubo de concreto para redes coletoras de esgoto sanitário, diâmetro de 500 mm, junta elástica, instalado em local com baixo nível de interferências - fornecimento e assentamento. Af_12/2015 | C120: m | D120: 306.83 | E120: C
A121: 92838 | B121: Assentamento de tubo de concreto para redes coletoras de esgoto sanitário, diâmetro de 500 mm, junta elástica, instalado em local com baixo nível de interferências (não inclui fornecimento). Af_12/2015 | C121: m | D121: 11.3 | E121: C
A122: 92839 | B122: Tubo de concreto para redes coletoras de esgoto sanitário, diâmetro de 600 mm, junta elástica, instalado em local com baixo nível de interferências - fornecimento e assentamento. Af_12/2015 | C122: m | D122: 375.91 | E122: C
A123: 92840 | B123: Assentamento de tubo de concreto para redes coletoras de esgoto sanitário, diâmetro de 600 mm, junta elástica, instalado em local com baixo nível de interferências (não inclui fornecimento). Af_12/2015 | C123: m | D123: 13.4 | E123: C
A124: 92841 | B124: Tubo de concreto para redes coletoras de esgoto sanitário, diâmetro de 700 mm, junta elástica, instalado em local com baixo nível de interferências - fornecimento e assentamento. Af_12/2015 | C124: m | D124: 467.25 | E124: C
A125: 92842 | B125: Assentamento de tubo de concreto para redes coletoras de esgoto sanitário, diâmetro de 700 mm, junta elástica, instalado em local com baixo nível de interferências (não inclui fornecimento). Af_12/2015 | C125: m | D125: 15.29 | E125: C
A126: 92843 | B126: Tubo de concreto para redes coletoras de esgoto sanitário, diâmetro de 800 mm, junta elástica, instalado em local com baixo nível de interferências - fornecimento e assentamento. Af_12/2015 | C126: m | D126: 497.27 | E126: C
A127: 92844 | B127: Assentamento de tubo de concreto para redes coletoras de esgoto sanitário, diâmetro de 800 mm, junta elástica, instalado em local com baixo nível de interferências (não inclui fornecimento). Af_12/2015 | C127: m | D127: 17.39 | E127: C
A128: 92845 | B128: Tubo de concreto para redes coletoras de esgoto sanitário, diâmetro de 900 mm, junta elástica, instalado em local com baixo nível de interferências - fornecimento e assentamento. Af_12/2015 | C128: m | D128: 682.05 | E128: C
A129: 92846 | B129: Assentamento de tubo de concreto para redes coletoras de esgoto sanitário, diâmetro de 900 mm, junta elástica, instalado em local com baixo nível de interferências (não inclui fornecimento). Af_12/2015 | C129: m | D129: 19.27 | E129: C
A130: 92847 | B130: Tubo de concreto para redes coletoras de esgoto sanitário, diâmetro de 1000 mm, junta elástica, instalado em local com baixo nível de interferências - fornecimento e assentamento. Af_12/2015 | C130: m | D130: 720.49 | E130: C
A131: 92848 | B131: Assentamento de tubo de concreto para redes coletoras de esgoto sanitário, diâmetro de 1000 mm, junta elástica, instalado em local com baixo nível de interferências (não inclui fornecimento). Af_12/2015 | C131: m | D131: 21.38 | E131: C
A132: 92849 | B132: Tubo de concreto para redes coletoras de esgoto sanitário, diâmetro de 300 mm, junta elástica, instalado em local com alto nível de interferências - fornecimento e assentamento. Af_12/2015 | C132: m | D132: 180.64 | E132: C
A133: 92850 | B133: Assentamento de tubo de concreto para redes coletoras de esgoto sanitário, diâmetro de 300 mm, junta elástica, instalado em local com alto nível de interferências (não inclui fornecimento). Af_12/2015 | C133: m | D133: 13.96 | E133: C
A134: 92851 | B134: Tubo de concreto para redes coletoras de esgoto sanitário, diâmetro de 400 mm, junta elástica, instalado em local com alto nível de interferências - fornecimento e assentamento. Af_12/2015 | C134: m | D134: 196.45 | E134: C
A135: 92852 | B135: Assentamento de tubo de concreto para redes coletoras de esgoto sanitário, diâmetro de 400 mm, junta elástica, instalado em local com alto nível de interferências (não inclui fornecimento). Af_12/2015 | C135: m | D135: 17.62 | E135: C
A136: 92853 | B136: Tubo de concreto para redes coletoras de esgoto sanitário, diâmetro de 500 mm, junta elástica, instalado em local com alto nível de interferências - fornecimento e assentamento. Af_12/2015 | C136: m | D136: 318.58 | E136: C
A137: 92854 | B137: Assentamento de tubo de concreto para redes coletoras de esgoto sanitário, diâmetro de 500 mm, junta elástica, instalado em local com alto nível de interferências (não inclui fornecimento). Af_12/2015 | C137: m | D137: 21.45 | E137: C
A138: 92855 | B138: Tubo de concreto para redes coletoras de esgoto sanitário, diâmetro de 600 mm, junta elástica, instalado em local com alto nível de interferências - fornecimento e assentamento. Af_12/2015 | C138: m | D138: 389.71 | E138: C
A139: 92856 | B139: Assentamento de tubo de concreto para redes coletoras de esgoto sanitário, diâmetro de 600 mm, junta elástica, instalado em local com alto nível de interferências (não inclui fornecimento). Af_12/2015 | C139: m | D139: 25.29 | E139: C
A140: 92857 | B140: Tubo de concreto para redes coletoras de esgoto sanitário, diâmetro de 700 mm, junta elástica, instalado em local com alto nível de interferências - fornecimento e assentamento. Af_12/2015 | C140: m | D140: 483.07 | E140: C
A141: 92858 | B141: Assentamento de tubo de concreto para redes coletoras de esgoto sanitário, diâmetro de 700 mm, junta elástica, instalado em local com alto nível de interferências (não inclui fornecimento). Af_12/2015 | C141: m | D141: 28.94 | E141: C
A142: 92859 | B142: Tubo de concreto para redes coletoras de esgoto sanitário, diâmetro de 800 mm, junta elástica, instalado em local com alto nível de interferências - fornecimento e assentamento. Af_12/2015 | C142: m | D142: 512.74 | E142: C
A143: 92860 | B143: Assentamento de tubo de concreto para redes coletoras de esgoto sanitário, diâmetro de 800 mm, junta elástica, instalado em local com alto nível de interferências (não inclui fornecimento). Af_12/2015 | C143: m | D143: 32.86 | E143: C
A144: 92861 | B144: Tubo de concreto para redes coletoras de esgoto sanitário, diâmetro de 900 mm, junta elástica, instalado em local com alto nível de interferências - fornecimento e assentamento. Af_12/2015 | C144: m | D144: 699.45 | E144: C
A145: 92862 | B145: Assentamento de tubo de concreto para redes coletoras de esgoto sanitário, diâmetro de 900 mm, junta elástica, instalado em local com alto nível de interferências (não inclui fornecimento). Af_12/2015 | C145: m | D145: 36.67 | E145: C
A146: 92863 | B146: Tubo de concreto para redes coletoras de esgoto sanitário, diâmetro de 1000 mm, junta elástica, instalado em local com alto nível de interferências - fornecimento e assentamento. Af_12/2015 | C146: m | D146: 742.65 | E146: C
A147: 92864 | B147: Assentamento de tubo de concreto para redes coletoras de esgoto sanitário, diâmetro de 1000 mm, junta elástica, instalado em local com alto nível de interferências (não inclui fornecimento). Af_12/2015 | C147: m | D147: 40.51 | E147: C
A148: 92210 | B148: Tubo de concreto para redes coletoras de águas pluviais, diâmetro de 400 mm, junta rígida, instalado em local com baixo nível de interferências - fornecimento e assentamento. Af_12/2015 | C148: m | D148: 117.41 | E148: C
A149: 92211 | B149: Tubo de concreto para redes coletoras de águas pluviais, diâmetro de 500 mm, junta rígida, instalado em local com baixo nível de interferências - fornecimento e assentamento. Af_12/2015 | C149: m | D149: 141.34 | E149: C
A150: 92212 | B150: Tubo de concreto para redes coletoras de águas pluviais, diâmetro de 600 mm, junta rígida, instalado em local com baixo nível de interferências - fornecimento e assentamento. Af_12/2015 | C150: m | D150: 206.66 | E150: C
A151: 92213 | B151: Tubo de concreto para redes coletoras de águas pluviais, diâmetro de 700 mm, junta rígida, instalado em local com baixo nível de interferências - fornecimento e assentamento. Af_12/2015 | C151: m | D151: 269.04 | E151: C
A152: 92214 | B152: Tubo de concreto para redes coletoras de águas pluviais, diâmetro de 800 mm, junta rígida, instalado em local com baixo nível de interferências - fornecimento e assentamento. Af_12/2015 | C152: m | D152: 324.55 | E152: C
A153: 92215 | B153: Tubo de concreto para redes coletoras de águas pluviais, diâmetro de 900 mm, junta rígida, instalado em local com baixo nível de interferências - fornecimento e assentamento. Af_12/2015 | C153: m | D153: 373.09 | E153: C
A154: 92216 | B154: Tubo de concreto para redes coletoras de águas pluviais, diâmetro de 1000 mm, junta rígida, instalado em local com baixo nível de interferências - fornecimento e assentamento. Af_12/2015 | C154: m | D154: 393.68 | E154: C
A155: 92219 | B155: Tubo de concreto para redes coletoras de águas pluviais, diâmetro de 400 mm, junta rígida, instalado em local com alto nível de interferências - fornecimento e assentamento. Af_12/2015 | C155: m | D155: 125.61 | E155: C
A156: 92220 | B156: Tubo de concreto para redes coletoras de águas pluviais, diâmetro de 500 mm, junta rígida, instalado em local com alto nível de interferências - fornecimento e assentamento. Af_12/2015 | C156: m | D156: 151.49 | E156: C
A157: 92221 | B157: Tubo de concreto para redes coletoras de águas pluviais, diâmetro de 600 mm, junta rígida, instalado em local com alto nível de interferências - fornecimento e assentamento. Af_12/2015 | C157: m | D157: 218.56 | E157: C
A158: 92222 | B158: Tubo de concreto para redes coletoras de águas pluviais, diâmetro de 700 mm, junta rígida, instalado em local com alto nível de interferências - fornecimento e assentamento. Af_12/2015 | C158: m | D158: 282.86 | E158: C
A159: 92223 | B159: Tubo de concreto para redes coletoras de águas pluviais, diâmetro de 800 mm, junta rígida, instalado em local com alto nível de interferências - fornecimento e assentamento. Af_12/2015 | C159: m | D159: 340.03 | E159: C
A160: 92224 | B160: Tubo de concreto para redes coletoras de águas pluviais, diâmetro de 900 mm, junta rígida, instalado em local com alto nível de interferências - fornecimento e assentamento. Af_12/2015 | C160: m | D160: 390.25 | E160: C
A161: 92226 | B161: Tubo de concreto para redes coletoras de águas pluviais, diâmetro de 1000 mm, junta rígida, instalado em local com alto nível de interferências - fornecimento e assentamento. Af_12/2015 | C161: m | D161: 412.9 | E161: C
A162: 92808 | B162: Assentamento de tubo de concreto para redes coletoras de águas pluviais, diâmetro de 300 mm, junta rígida, instalado em local com baixo nível de interferências (não inclui fornecimento). Af_12/2015 | C162: m | D162: 33.37 | E162: C
A163: 92809 | B163: Assentamento de tubo de concreto para redes coletoras de águas pluviais, diâmetro de 400 mm, junta rígida, instalado em local com baixo nível de interferências (não inclui fornecimento). Af_12/2015 | C163: m | D163: 42.89 | E163: C
A164: 92810 | B164: Assentamento de tubo de concreto para redes coletoras de águas pluviais, diâmetro de 500 mm, junta rígida, instalado em local com baixo nível de interferências (não inclui fornecimento). Af_12/2015 | C164: m | D164: 52.28 | E164: C
A165: 92811 | B165: Assentamento de tubo de concreto para redes coletoras de águas pluviais, diâmetro de 600 mm, junta rígida, instalado em local com baixo nível de interferências (não inclui fornecimento). Af_12/2015 | C165: m | D165: 62.46 | E165: C
A166: 92812 | B166: Assentamento de tubo de concreto para redes coletoras de águas pluviais, diâmetro de 700 mm, junta rígida, instalado em local com baixo nível de interferências (não inclui fornecimento). Af_12/2015 | C166: m | D166: 72.5 | E166: C
A167: 92813 | B167: Assentamento de tubo de concreto para redes coletoras de águas pluviais, diâmetro de 800 mm, junta rígida, instalado em local com baixo nível de interferências (não inclui fornecimento). Af_12/2015 | C167: m | D167: 84.63 | E167: C
A168: 92814 | B168: Assentamento de tubo de concreto para redes coletoras de águas pluviais, diâmetro de 900 mm, junta rígida, instalado em local com baixo nível de interferências (não inclui fornecimento). Af_12/2015 | C168: m | D168: 97.43 | E168: C
A169: 92815 | B169: Assentamento de tubo de concreto para redes coletoras de águas pluviais, diâmetro de 1000 mm, junta rígida, instalado em local com baixo nível de interferências (não inclui fornecimento). Af_12/2015 | C169: m | D169: 112.56 | E169: C
A170: 92816 | B170: Tubo de concreto para redes coletoras de águas pluviais, diâmetro de 1200 mm, junta rígida, instalado em local com baixo nível de interferências - fornecimento e assentamento. Af_12/2015 | C170: m | D170: 560.71 | E170: C
A171: 92817 | B171: Assentamento de tubo de concreto para redes coletoras de águas pluviais, diâmetro de 1200 mm, junta rígida, instalado em local com baixo nível de interferências (não inclui fornecimento). Af_12/2015 | C171: m | D171: 140.85 | E171: C
A172: 92818 | B172: Tubo de concreto para redes coletoras de águas pluviais, diâmetro de 1500 mm, junta rígida, instalado em local com baixo nível de interferências - fornecimento e assentamento. Af_12/2015 | C172: m | D172: 797.9 | E172: C
A173: 92819 | B173: Assentamento de tubo de concreto para redes coletoras de águas pluviais, diâmetro de 1500 mm, junta rígida, instalado em local com baixo nível de interferências (não inclui fornecimento). Af_12/2015 | C173: m | D173: 189.61 | E173: C
A174: 92820 | B174: Assentamento de tubo de concreto para redes coletoras de águas pluviais, diâmetro de 300 mm, junta rígida, instalado em local com alto nível de interferências (não inclui fornecimento). Af_12/2015 | C174: m | D174: 39.76 | E174: C
A175: 92821 | B175: Assentamento de tubo de concreto para redes coletoras de águas pluviais, diâmetro de 400 mm, junta rígida, instalado em local com alto nível de interferências (não inclui fornecimento). Af_12/2015 | C175: m | D175: 51.09 | E175: C
A176: 92822 | B176: Assentamento de tubo de concreto para redes coletoras de águas pluviais, diâmetro de 500 mm, junta rígida, instalado em local com alto nível de interferências (não inclui fornecimento). Af_12/2015 | C176: m | D176: 62.43 | E176: C
A177: 92824 | B177: Assentamento de tubo de concreto para redes coletoras de águas pluviais, diâmetro de 600 mm, junta rígida, instalado em local com alto nível de interferências (não inclui fornecimento). Af_12/2015 | C177: m | D177: 74.36 | E177: C
A178: 92825 | B178: Assentamento de tubo de concreto para redes coletoras de águas pluviais, diâmetro de 700 mm, junta rígida, instalado em local com alto nível de interferências (não inclui fornecimento). Af_12/2015 | C178: m | D178: 86.32 | E178: C
A179: 92826 | B179: Assentamento de tubo de concreto para redes coletoras de águas pluviais, diâmetro de 800 mm, junta rígida, instalado em local com alto nível de interferências (não inclui fornecimento). Af_12/2015 | C179: m | D179: 100.11 | E179: C
A180: 92827 | B180: Assentamento de tubo de concreto para redes coletoras de águas pluviais, diâmetro de 900 mm, junta rígida, instalado em local com alto nível de interferências (não inclui fornecimento). Af_12/2015 | C180: m | D180: 114.59 | E180: C
A181: 92828 | B181: Assentamento de tubo de concreto para redes coletoras de águas pluviais, diâmetro de 1000 mm, junta rígida, instalado em local com alto nível de interferências (não inclui fornecimento). Af_12/2015 | C181: m | D181: 131.78 | E181: C
A182: 92829 | B182: Tubo de concreto para redes coletoras de águas pluviais, diâmetro de 1200 mm, junta rígida, instalado em local com alto nível de interferências - fornecimento e assentamento. Af_12/2015 | C182: m | D182: 583.33 | E182: C
A183: 92830 | B183: Assentamento de tubo de concreto para redes coletoras de águas pluviais, diâmetro de 1200 mm, junta rígida, instalado em local com alto nível de interferências (não inclui fornecimento). Af_12/2015 | C183: m | D183: 163.47 | E183: C
A184: 92831 | B184: Tubo de concreto para redes coletoras de águas pluviais, diâmetro de 1500 mm, junta rígida, instalado em local com alto nível de interferências - fornecimento e assentamento. Af_12/2015 | C184: m | D184: 825.61 | E184: C
A185: 92832 | B185: Assentamento de tubo de concreto para redes coletoras de águas pluviais, diâmetro de 1500 mm, junta rígida, instalado em local com alto nível de interferências (não inclui fornecimento). Af_12/2015 | C185: m | D185: 217.32 | E185: C
A186: 95565 | B186: Tubo de concreto para redes coletoras de águas pluviais, diâmetro de 300mm, junta rígida, instalado em local com baixo nível de interferências - fornecimento e assentamento. Af_12/2015 | C186: m | D186: 104.6 | E186: C
A187: 95566 | B187: Tubo de concreto para redes coletoras de águas pluviais, diâmetro de 300mm, junta rígida, instalado em local com alto nível de interferências - fornecimento e assentamento. Af_12/2015 | C187: m | D187: 112.01 | E187: C
A188: 95567 | B188: Tubo de concreto (simples) para redes coletoras de águas pluviais, diâmetro de 300 mm, junta rígida, instalado em local com baixo nível de interferências - fornecimento e assentamento. Af_12/2015 | C188: m | D188: 90.07 | E188: C
A189: 95568 | B189: Tubo de concreto (simples) para redes coletoras de águas pluviais, diâmetro de 400 mm, junta rígida, instalado em local com baixo nível de interferências - fornecimento e assentamento. Af_12/2015 | C189: m | D189: 110.33 | E189: C
A190: 95569 | B190: Tubo de concreto (simples) para redes coletoras de águas pluviais, diâmetro de 500 mm, junta rígida, instalado em local com baixo nível de interferências - fornecimento e assentamento. Af_12/2015 | C190: m | D190: 150.84 | E190: C
A191: 95570 | B191: Tubo de concreto (simples) para redes coletoras de águas pluviais, diâmetro de 300 mm, junta rígida, instalado em local com alto nível de interferências - fornecimento e assentamento. Af_12/2015 | C191: m | D191: 97.48 | E191: C
A192: 95571 | B192: Tubo de concreto (simples) para redes coletoras de águas pluviais, diâmetro de 400 mm, junta rígida, instalado em local com alto nível de interferências - fornecimento e assentamento. Af_12/2015 | C192: m | D192: 119.84 | E192: C
A193: 95572 | B193: Tubo de concreto (simples) para redes coletoras de águas pluviais, diâmetro de 500 mm, junta rígida, instalado em local com alto nível de interferências - fornecimento e assentamento. Af_12/2015 | C193: m | D193: 162.59 | E193: C
A194: 97127 | B194: Assentamento de tubo de pvc defofo ou prfv ou rpvc para rede de água, dn 150 mm, junta elástica integrada, instalado em local com nível alto de interferências (não inclui fornecimento). Af_11/2017 | C194: m | D194: 4.33 | E194: C
A195: 97128 | B195: Assentamento de tubo de pvc defofo ou prfv ou rpvc para rede de água, dn 200 mm, junta elástica integrada, instalado em local com nível alto de interferências (não inclui fornecimento). Af_11/2017 | C195: m | D195: 8.19 | E195: C
A196: 97129 | B196: Assentamento de tubo de pvc defofo ou prfv ou rpvc para rede de água, dn 250 mm, junta elástica integrada, instalado em local com nível alto de interferências (não inclui fornecimento). Af_11/2017 | C196: m | D196: 10.07 | E196: C
A197: 97130 | B197: Assentamento de tubo de pvc defofo ou prfv ou rpvc para rede de água, dn 300 mm, junta elástica integrada, instalado em local com nível alto de interferências (não inclui fornecimento). Af_11/2017 | C197: m | D197: 11.95 | E197: C
A198: 97131 | B198: Assentamento de tubo de pvc defofo ou prfv ou rpvc para rede de água, dn 350 mm, junta elástica integrada, instalado em local com nível alto de interferências (não inclui fornecimento). Af_11/2017 | C198: m | D198: 13.83 | E198: C
A199: 97132 | B199: Assentamento de tubo de pvc defofo ou prfv ou rpvc para rede de água, dn 400 mm, junta elástica integrada, instalado em local com nível alto de interferências (não inclui fornecimento). Af_11/2017 | C199: m | D199: 15.7 | E199: C
A200: 97133 | B200: Assentamento de tubo de pvc defofo ou prfv ou rpvc para rede de água, dn 500 mm, junta elástica integrada, instalado em local com nível alto de interferências (não inclui fornecimento). Af_11/2017 | C200: m | D200: 19.46 | E200: C
A201: 97134 | B201: Assentamento de tubo de pvc defofo ou prfv ou rpvc para rede de água, dn 150 mm, junta elástica integrada, instalado em local com nível baixo de interferências (não inclui fornecimento). Af_11/2017 | C201: m | D201: 1.99 | E201: C
... 11878 more rows

Sheet SEM DESONERADO (hidden)
A2: 97141 | B2: Assentamento de tubo de ferro fundido para rede de água, dn 80 mm, junta elástica, instalado em local com nível alto de interferências (não inclui fornecimento). Af_11/2017 | C2: m | D2: 7.04 | E2: C
A3: 97142 | B3: Assentamento de tubo de ferro fundido para rede de água, dn 100 mm, junta elástica, instalado em local com nível alto de interferências (não inclui fornecimento). Af_11/2017 | C3: m | D3: 7.89 | E3: C
A4: 97143 | B4: Assentamento de tubo de ferro fundido para rede de água, dn 150 mm, junta elástica, instalado em local com nível alto de interferências (não inclui fornecimento). Af_11/2017 | C4: m | D4: 9.98 | E4: C
A5: 97144 | B5: Assentamento de tubo de ferro fundido para rede de água, dn 200 mm, junta elástica, instalado em local com nível alto de interferências (não inclui fornecimento). Af_11/2017 | C5: m | D5: 12.06 | E5: C
A6: 97145 | B6: Assentamento de tubo de ferro fundido para rede de água, dn 250 mm, junta elástica, instalado em local com nível alto de interferências (não inclui fornecimento). Af_11/2017 | C6: m | D6: 14.18 | E6: C
A7: 97146 | B7: Assentamento de tubo de ferro fundido para rede de água, dn 300 mm, junta elástica, instalado em local com nível alto de interferências (não inclui fornecimento). Af_11/2017 | C7: m | D7: 16.26 | E7: C
A8: 97147 | B8: Assentamento de tubo de ferro fundido para rede de água, dn 350 mm, junta elástica, instalado em local com nível alto de interferências (não inclui fornecimento). Af_11/2017 | C8: m | D8: 18.37 | E8: C
A9: 97148 | B9: Assentamento de tubo de ferro fundido para rede de água, dn 400 mm, junta elástica, instalado em local com nível alto de interferências (não inclui fornecimento). Af_11/2017 | C9: m | D9: 20.49 | E9: C
A10: 97149 | B10: Assentamento de tubo de ferro fundido para rede de água, dn 450 mm, junta elástica, instalado em local com nível alto de interferências (não inclui fornecimento). Af_11/2017 | C10: m | D10: 22.62 | E10: C
A11: 97150 | B11: Assentamento de tubo de ferro fundido para rede de água, dn 500 mm, junta elástica, instalado em local com nível alto de interferências (não inclui fornecimento). Af_11/2017 | C11: m | D11: 29.3 | E11: C
A12: 97151 | B12: Assentamento de tubo de ferro fundido para rede de água, dn 600 mm, junta elástica, instalado em local com nível alto de interferências (não inclui fornecimento). Af_11/2017 | C12: m | D12: 34.19 | E12: C
A13: 97152 | B13: Assentamento de tubo de ferro fundido para rede de água, dn 700 mm, junta elástica, instalado em local com nível alto de interferências (não inclui fornecimento). Af_11/2017 | C13: m | D13: 38.88 | E13: C
A14: 97153 | B14: Assentamento de tubo de ferro fundido para rede de água, dn 800 mm, junta elástica, instalado em local com nível alto de interferências (não inclui fornecimento). Af_11/2017 | C14: m | D14: 43.7 | E14: C
A15: 97154 | B15: Assentamento de tubo de ferro fundido para rede de água, dn 900 mm, junta elástica, instalado em local com nível alto de interferências (não inclui fornecimento). Af_11/2017 | C15: m | D15: 48.54 | E15: C
A16: 97155 | B16: Assentamento de tubo de ferro fundido para rede de água, dn 1000 mm, junta elástica, instalado em local com nível alto de interferências (não inclui fornecimento). Af_11/2017 | C16: m | D16: 53.39 | E16: C
A17: 97156 | B17: Assentamento de tubo de ferro fundido para rede de água, dn 1200 mm, junta elástica, instalado em local com nível alto de interferências (não inclui fornecimento). Af_11/2017 | C17: m | D17: 63.44 | E17: C
A18: 97157 | B18: Assentamento de tubo de ferro fundido para rede de água, dn 80 mm, junta elástica, instalado em local com nível baixo de interferências (não inclui fornecimento). Af_11/2017 | C18: m | D18: 4.3 | E18: C
A19: 97158 | B19: Assentamento de tubo de ferro fundido para rede de água, dn 100 mm, junta elástica, instalado em local com nível baixo de interferências (não inclui fornecimento). Af_11/2017 | C19: m | D19: 4.82 | E19: C
A20: 97159 | B20: Assentamento de tubo de ferro fundido para rede de água, dn 150 mm, junta elástica, instalado em local com nível baixo de interferências (não inclui fornecimento). Af_11/2017 | C20: m | D20: 6.1 | E20: C
A21: 97160 | B21: Assentamento de tubo de ferro fundido para rede de água, dn 200 mm, junta elástica, instalado em local com nível baixo de interferências (não inclui fornecimento). Af_11/2017 | C21: m | D21: 7.36 | E21: C
A22: 97161 | B22: Assentamento de tubo de ferro fundido para rede de água, dn 250 mm, junta elástica, instalado em local com nível baixo de interferências (não inclui fornecimento). Af_11/2017 | C22: m | D22: 8.69 | E22: C
A23: 97162 | B23: Assentamento de tubo de ferro fundido para rede de água, dn 300 mm, junta elástica, instalado em local com nível baixo de interferências (não inclui fornecimento). Af_11/2017 | C23: m | D23: 9.96 | E23: C
A24: 97163 | B24: Assentamento de tubo de ferro fundido para rede de água, dn 350 mm, junta elástica, instalado em local com nível baixo de interferências (não inclui fornecimento). Af_11/2017 | C24: m | D24: 11.26 | E24: C
A25: 97164 | B25: Assentamento de tubo de ferro fundido para rede de água, dn 400 mm, junta elástica, instalado em local com nível baixo de interferências (não inclui fornecimento). Af_11/2017 | C25: m | D25: 12.57 | E25: C
A26: 97165 | B26: Assentamento de tubo de ferro fundido para rede de água, dn 450 mm, junta elástica, instalado em local com nível baixo de interferências (não inclui fornecimento). Af_11/2017 | C26: m | D26: 13.89 | E26: C
A27: 97166 | B27: Assentamento de tubo de ferro fundido para rede de água, dn 500 mm, junta elástica, instalado em local com nível baixo de interferências (não inclui fornecimento). Af_11/2017 | C27: m | D27: 17.94 | E27: C
A28: 97167 | B28: Assentamento de tubo de ferro fundido para rede de água, dn 600 mm, junta elástica, instalado em local com nível baixo de interferências (não inclui fornecimento). Af_11/2017 | C28: m | D28: 20.97 | E28: C
A29: 97168 | B29: Assentamento de tubo de ferro fundido para rede de água, dn 700 mm, junta elástica, instalado em local com nível baixo de interferências (não inclui fornecimento). Af_11/2017 | C29: m | D29: 23.77 | E29: C
A30: 97169 | B30: Assentamento de tubo de ferro fundido para rede de água, dn 800 mm, junta elástica, instalado em local com nível baixo de interferências (não inclui fornecimento). Af_11/2017 | C30: m | D30: 26.72 | E30: C
A31: 97170 | B31: Assentamento de tubo de ferro fundido para rede de água, dn 900 mm, junta elástica, instalado em local com nível baixo de interferências (não inclui fornecimento). Af_11/2017 | C31: m | D31: 29.68 | E31: C
A32: 97171 | B32: Assentamento de tubo de ferro fundido para rede de água, dn 1000 mm, junta elástica, instalado em local com nível baixo de interferências (não inclui fornecimento). Af_11/2017 | C32: m | D32: 32.67 | E32: C
A33: 97172 | B33: Assentamento de tubo de ferro fundido para rede de água, dn 1200 mm, junta elástica, instalado em local com nível baixo de interferências (não inclui fornecimento). Af_11/2017 | C33: m | D33: 38.97 | E33: C
A34: 97173 | B34: Assentamento de tubo de aço carbono para rede de água, dn 600 mm (24), junta soldada, instalado em local com nível alto de interferências (não inclui fornecimento). Af_11/2017 | C34: m | D34: 30.73 | E34: C
A35: 97174 | B35: Assentamento de tubo de aço carbono para rede de água, dn 700 mm (28), junta soldada, instalado em local com nível alto de interferências (não inclui fornecimento). Af_11/2017 | C35: m | D35: 35.52 | E35: C
A36: 97175 | B36: Assentamento de tubo de aço carbono para rede de água, dn 800 mm (32), junta soldada, instalado em local com nível alto de interferências (não inclui fornecimento). Af_11/2017 | C36: m | D36: 40.32 | E36: C
A37: 97176 | B37: Assentamento de tubo de aço carbono para rede de água, dn 900 mm (36), junta soldada, instalado em local com nível alto de interferências (não inclui fornecimento). Af_11/2017 | C37: m | D37: 45.13 | E37: C
A38: 97177 | B38: Assentamento de tubo de aço carbono para rede de água, dn 1000 mm (40) ou dn 1100 mm (44), junta soldada, instalado em local com nível alto de interferências (não inclui fornecimento). Af_11/2017 | C38: m | D38: 54.72 | E38: C
A39: 97178 | B39: Assentamento de tubo de aço carbono para rede de água, dn 1200 mm (48) ou dn 1300 mm (52), junta soldada, instalado em local com nível alto de interferências (não inclui fornecimento). Af_11/2017 | C39: m | D39: 64.34 | E39: C
A40: 97179 | B40: Assentamento de tubo de aço carbono para rede de água, dn 1400 mm (56'') ou dn 1500 mm (60), junta soldada, instalado em local com nível alto de interferências (não inclui fornecimento). Af_11/2017 | C40: m | D40: 73.92 | E40: C
A41: 97180 | B41: Assentamento de tubo de aço carbono para rede de água, dn 1600 mm (64) ou dn 1700 mm (68), junta soldada, instalado em local com nível alto de interferências (não inclui fornecimento). Af_11/2017 | C41: m | D41: 83.53 | E41: C
A42: 97181 | B42: Assentamento de tubo de aço carbono para rede de água, dn 1800 mm (72) ou dn 1900 mm (76), junta soldada, instalado em local com nível alto de interferências (não inclui fornecimento). Af_11/2017 | C42: m | D42: 96.85 | E42: C
A43: 97182 | B43: Assentamento de tubo de aço carbono para rede de água, dn 2000 mm (80) ou dn 2100 mm (84), junta soldada, instalado em local com nível alto de interferências (não inclui fornecimento). Af_11/2017 | C43: m | D43: 106.85 | E43: C
A44: 97183 | B44: Assentamento de tubo de aço carbono para rede de água, dn 600 mm (24), junta soldada, instalado em local com nível baixo de interferências (não inclui fornecimento). Af_11/2017 | C44: m | D44: 24.75 | E44: C
A45: 97184 | B45: Assentamento de tubo de aço carbono para rede de água, dn 700 mm (28), junta soldada, instalado em local com nível baixo de interferências (não inclui fornecimento). Af_11/2017 | C45: m | D45: 28.67 | E45: C
A46: 97185 | B46: Assentamento de tubo de aço carbono para rede de água, dn 800 mm (32), junta soldada, instalado em local com nível baixo de interferências (não inclui fornecimento). Af_11/2017 | C46: m | D46: 32.62 | E46: C
A47: 97186 | B47: Assentamento de tubo de aço carbono para rede de água, dn 900 mm (36), junta soldada, instalado em local com nível baixo de interferências (não inclui fornecimento). Af_11/2017 | C47: m | D47: 36.56 | E47: C
A48: 97187 | B48: Assentamento de tubo de aço carbono para rede de água, dn 1000 mm (40 ) ou dn 1100 mm (44 ), junta soldada, instalado em local com nível baixo de interferências (não inclui fornecimento). Af_11/2017 | C48: m | D48: 44.41 | E48: C
A49: 97188 | B49: Assentamento de tubo de aço carbono para rede de água, dn 1200 mm (48) ou dn 1300 mm (52), junta soldada, instalado em local com nível baixo de interferências (não inclui fornecimento). Af_11/2017 | C49: m | D49: 52.28 | E49: C
A50: 97189 | B50: Assentamento de tubo de aço carbono para rede de água, dn 1400 mm (56'') ou dn 1500 mm (60), junta soldada, instalado em local com nível baixo de interferências (não inclui fornecimento). Af_11/2017 | C50: m | D50: 60.13 | E50: C
A51: 97190 | B51: Assentamento de tubo de aço carbono para rede de água, dn 1600 mm (64) ou dn 1700 mm (68), junta soldada, instalado em local com nível baixo de interferências (não inclui fornecimento). Af_11/2017 | C51: m | D51: 68.01 | E51: C
A52: 97191 | B52: Assentamento de tubo de aço carbono para rede de água, dn 1800 mm (72) ou dn 1900 mm (76), junta soldada, instalado em local com nível baixo de interferências (não inclui fornecimento). Af_11/2017 | C52: m | D52: 78.61 | E52: C
A53: 97192 | B53: Assentamento de tubo de aço carbono para rede de água, dn 2000 mm (80) ou dn 2100 mm (84), junta soldada, instalado em local com nível baixo de interferências (não inclui fornecimento). Af_11/2017 | C53: m | D53: 86.76 | E53: C
A54: 90694 | B54: Tubo de pvc para rede coletora de esgoto de parede maciça, dn 100 mm, junta elástica - fornecimento e assentamento. Af_01/2021 | C54: m | D54: 42.12 | E54: C
A55: 90695 | B55: Tubo de pvc para rede coletora de esgoto de parede maciça, dn 150 mm, junta elástica - fornecimento e assentamento. Af_01/2021 | C55: m | D55: 87.53 | E55: C
A56: 90696 | B56: Tubo de pvc para rede coletora de esgoto de parede maciça, dn 200 mm, junta elástica - fornecimento e assentamento. Af_01/2021 | C56: m | D56: 129.97 | E56: C
A57: 90697 | B57: Tubo de pvc para rede coletora de esgoto de parede maciça, dn 250 mm, junta elástica - fornecimento e assentamento. Af_01/2021 | C57: m | D57: 218.93 | E57: C
A58: 90698 | B58: Tubo de pvc para rede coletora de esgoto de parede maciça, dn 300 mm, junta elástica, fornecimento e assentamento. Af_01/2021 | C58: m | D58: 350.94 | E58: C
A59: 90699 | B59: Tubo de pvc para rede coletora de esgoto de parede maciça, dn 350 mm, junta elástica - fornecimento e assentamento. Af_01/2021 | C59: m | D59: 433.88 | E59: C
A60: 90700 | B60: Tubo de pvc para rede coletora de esgoto de parede maciça, dn 400 mm, junta elástica fornecimento e assentamento. Af_01/2021 | C60: m | D60: 561.37 | E60: C
A61: 90701 | B61: Tubo de pvc corrugado de dupla parede para rede coletora de esgoto, dn 150 mm, junta elástica - fornecimento e assentamento. Af_01/2021 | C61: m | D61: 71.3 | E61: C
A62: 90702 | B62: Tubo de pvc corrugado de dupla parede para rede coletora de esgoto, dn 200 mm, junta elástica - fornecimento e assentamento. Af_01/2021 | C62: m | D62: 113.5 | E62: C
A63: 90703 | B63: Tubo de pvc corrugado de dupla parede para rede coletora de esgoto, dn 250 mm, junta elástica - fornecimento e assentamento. Af_01/2021 | C63: m | D63: 185.8 | E63: C
A64: 90704 | B64: Tubo de pvc corrugado de dupla parede para rede coletora de esgoto, dn 300 mm, junta elástica - fornecimento e assentamento. Af_01/2021 | C64: m | D64: 256.97 | E64: C
A65: 90705 | B65: Tubo de pvc corrugado de dupla parede para rede coletora de esgoto, dn 350 mm, junta elástica - fornecimento e assentamento. Af_01/2021 | C65: m | D65: 361.39 | E65: C
A66: 90706 | B66: Tubo de pvc corrugado de dupla parede para rede coletora de esgoto, dn 400 mm, junta elástica - fornecimento e assentamento. Af_01/2021 | C66: m | D66: 420.79 | E66: C
A67: 90708 | B67: Tubo de pead corrugado de dupla parede para rede coletora de esgoto, dn 600 mm, junta elástica integrada - fornecimento e assentamento. Af_01/2021 | C67: m | D67: 1191.6 | E67: C
A68: 90724 | B68: Junta argamassada entre tubo dn 100 mm e o poço de visita/ caixa de concreto ou alvenaria em redes de esgoto. Af_01/2021 | C68: un | D68: 22.96 | E68: C
A69: 90725 | B69: Junta argamassada entre tubo dn 150 mm e o poço de visita/ caixa de concreto ou alvenaria em redes de esgoto. Af_01/2021 | C69: un | D69: 28.28 | E69: C
A70: 90726 | B70: Junta argamassada entre tubo dn 200 mm e o poço/ caixa de concreto ou alvenaria em redes de esgoto. Af_01/2021 | C70: un | D70: 33.64 | E70: C
A71: 90727 | B71: Junta argamassada entre tubo dn 250 mm e o poço de visita/ caixa de concreto ou alvenaria em redes de esgoto. Af_01/2021 | C71: un | D71: 38.96 | E71: C
A72: 90728 | B72: Junta argamassada entre tubo dn 300 mm e o poço de visita/ caixa de concreto ou alvenaria em redes de esgoto. Af_01/2021 | C72: un | D72: 44.26 | E72: C
A73: 90729 | B73: Junta argamassada entre tubo dn 350 mm e o poço de visita/ caixa de concreto ou alvenaria em redes de esgoto. Af_01/2021 | C73: un | D73: 49.57 | E73: C
A74: 90730 | B74: Junta argamassada entre tubo dn 400 mm e o poço de visita/ caixa de concreto ou alvenaria em redes de esgoto. Af_01/2021 | C74: un | D74: 54.87 | E74: C
A75: 90731 | B75: Junta argamassada entre tubo dn 450 mm e o poço de visita/ caixa de concreto ou alvenaria em redes de esgoto. Af_01/2021 | C75: un | D75: 60.19 | E75: C
A76: 90732 | B76: Junta argamassada entre tubo dn 600 mm e o poço de visita/ caixa de concreto ou alvenaria em redes de esgoto. Af_01/2021 | C76: un | D76: 76.11 | E76: C
A77: 90733 | B77: Assentamento de tubo de pvc para rede coletora de esgoto de parede maciça, dn 100 mm, junta elástica (não inclui fornecimento). Af_01/2021 | C77: m | D77: 3.21 | E77: C
A78: 90734 | B78: Assentamento de tubo de pvc para rede coletora de esgoto de parede maciça, dn 150 mm, junta elástica, (não inclui fornecimento). Af_01/2021 | C78: m | D78: 3.81 | E78: C
A79: 90735 | B79: Assentamento de tubo de pvc para rede coletora de esgoto de parede maciça, dn 200 mm, junta elástica (não inclui fornecimento). Af_01/2021 | C79: m | D79: 4.4 | E79: C
A80: 90736 | B80: Assentamento de tubo de pvc para rede coletora de esgoto de parede maciça, dn 250 mm, junta elástica (não inclui fornecimento). Af_01/2021 | C80: m | D80: 4.99 | E80: C
A81: 90737 | B81: Assentamento de tubo de pvc para rede coletora de esgoto de parede maciça, dn 300 mm, junta elástica (não inclui fornecimento). Af_01/2021 | C81: m | D81: 5.59 | E81: C
A82: 90738 | B82: Assentamento de tubo de pvc para rede coletora de esgoto de parede maciça, dn 350 mm, junta elástica (não inclui fornecimento). Af_01/2021 | C82: m | D82: 6.19 | E82: C
A83: 90739 | B83: Assentamento de tubo de pvc para rede coletora de esgoto de parede maciça, dn 400 mm, junta elástica (não inclui fornecimento). Af_01/2021 | C83: m | D83: 7.51 | E83: C
A84: 90740 | B84: Assentamento de tubo de pvc corrugado de dupla parede para rede coletora de esgoto, dn 150 mm, junta elástica (não inclui fornecimento). Af_01/2021 | C84: m | D84: 4.25 | E84: C
A85: 90741 | B85: Assentamento de tubo de pvc corrugado de dupla parede para rede coletora de esgoto, dn 200 mm, junta elástica (não inclui fornecimento). Af_01/2021 | C85: m | D85: 4.83 | E85: C
A86: 90742 | B86: Assentamento de tubo de pvc corrugado de dupla parede para rede coletora de esgoto, dn 250 mm, junta elástica (não inclui fornecimento). Af_01/2021 | C86: m | D86: 5.43 | E86: C
A87: 90743 | B87: Assentamento de tubo de pvc corrugado de dupla parede para rede coletora de esgoto, dn 300 mm, junta elástica (não inclui fornecimento). Af_01/2021 | C87: m | D87: 6.03 | E87: C
A88: 90744 | B88: Assentamento de tubo de pvc corrugado de dupla parede para rede coletora de esgoto, dn 350 mm, junta elástica (não inclui fornecimento). Af_01/2021 | C88: m | D88: 6.63 | E88: C
A89: 90745 | B89: Assentamento de tubo de pvc corrugado de dupla parede para rede coletora de esgoto, dn 400 mm, junta elástica (não inclui fornecimento). Af_01/2021 | C89: m | D89: 8.39 | E89: C
A90: 90746 | B90: Assentamento de tubo de pead corrugado de dupla parede para rede coletora de esgoto, dn 450 mm, junta elástica integrada (não inclui fornecimento). Af_01/2021 | C90: m | D90: 3.47 | E90: C
A91: 90747 | B91: Assentamento de tubo de pead corrugado de dupla parede para rede coletora de esgoto, dn 600 mm, junta elástica integrada (não inclui fornecimento). Af_01/2021 | C91: m | D91: 14.55 | E91: C
A92: 94869 | B92: Tubo de pead corrugado de dupla parede para rede coletora de esgoto, dn 250 mm, junta elástica integrada - fornecimento e assentamento. Af_01/2021 | C92: m | D92: 242.81 | E92: C
A93: 94870 | B93: Assentamento de tubo de pead corrugado de dupla parede para rede coletora de esgoto, dn 250 mm, junta elástica integrada (não inclui fornecimento). Af_01/2021 | C93: m | D93: 1.72 | E93: C
A94: 94871 | B94: Tubo de pead corrugado de dupla parede para rede coletora de esgoto, dn 300 mm, junta elástica integrada - fornecimento e assentamento. Af_01/2021 | C94: m | D94: 287.58 | E94: C
A95: 94872 | B95: Assentamento de tubo de pead corrugado de dupla parede para rede coletora de esgoto, dn 300 mm, junta elástica integrada (não inclui fornecimento). Af_01/2021 | C95: m | D95: 2.44 | E95: C
A96: 94875 | B96: Tubo de pead corrugado de dupla parede para rede coletora de esgoto, dn 800 mm, junta elástica integrada - fornecimento e assentamento. Af_01/2021 | C96: m | D96: 1683.22 | E96: C
A97: 94876 | B97: Assentamento de tubo de pead corrugado de dupla parede para rede coletora de esgoto, dn 800 mm, junta elástica integrada (não inclui fornecimento). Af_01/2021 | C97: m | D97: 24.42 | E97: C
A98: 94878 | B98: Assentamento de tubo de pead corrugado de dupla parede para rede coletora de esgoto, dn 900 mm, junta elástica integrada (não inclui fornecimento). Af_01/2021 | C98: m | D98: 28.25 | E98: C
A99: 94879 | B99: Tubo de pead corrugado de dupla parede para rede coletora de esgoto, dn 1000 mm, junta elástica integrada - fornecimento e assentamento. Af_01/2021 | C99: m | D99: 2241.26 | E99: C
A100: 94880 | B100: Assentamento de tubo de pead corrugado de dupla parede para rede coletora de esgoto, dn 1000 mm, junta elástica integrada (não inclui fornecimento). Af_01/2021 | C100: m | D100: 36.45 | E100: C
A101: 94881 | B101: Tubo de pead corrugado de dupla parede para rede coletora de esgoto, dn 1200 mm, junta elástica integrada - fornecimento e assentamento. Af_01/2021 | C101: m | D101: 3502.77 | E101: C
A102: 94882 | B102: Assentamento de tubo de pead corrugado de dupla parede para rede coletora de esgoto, dn 1200 mm, junta elástica integrada (não inclui fornecimento). Af_01/2021 | C102: m | D102: 42.34 | E102: C
A103: 94884 | B103: Assentamento de tubo de pead corrugado de dupla parede para rede coletora de esgoto, dn 1500 mm, junta elástica integrada (não inclui fornecimento). Af_01/2021 | C103: m | D103: 54.29 | E103: C
A104: 97121 | B104: Assentamento de tubo de pvc pba para rede de água, dn 50 mm, junta elástica integrada, instalado em local com nível alto de interferências (não inclui fornecimento). Af_11/2017 | C104: m | D104: 1.9 | E104: C
A105: 97122 | B105: Assentamento de tubo de pvc pba para rede de água, dn 75 mm, junta elástica integrada, instalado em local com nível alto de interferências (não inclui fornecimento). Af_11/2017 | C105: m | D105: 2.65 | E105: C
A106: 97123 | B106: Assentamento de tubo de pvc pba para rede de água, dn 100 mm, junta elástica integrada, instalado em local com nível alto de interferências (não inclui fornecimento). Af_11/2017 | C106: m | D106: 3.37 | E106: C
A107: 97124 | B107: Assentamento de tubo de pvc pba para rede de água, dn 50 mm, junta elástica integrada, instalado em local com nível baixo de interferências (não inclui fornecimento). Af_11/2017 | C107: m | D107: 0.83 | E107: C
A108: 97125 | B108: Assentamento de tubo de pvc pba para rede de água, dn 75 mm, junta elástica integrada, instalado em local com nível baixo de interferências (não inclui fornecimento). Af_11/2017 | C108: m | D108: 1.19 | E108: C
A109: 97126 | B109: Assentamento de tubo de pvc pba para rede de água, dn 100 mm, junta elástica integrada, instalado em local com nível baixo de interferências (não inclui fornecimento). Af_11/2017 | C109: m | D109: 1.52 | E109: C
A110: 102264 | B110: Tubo de pvc branco para rede coletora de esgoto condominial de parede maciça, dn 100 mm, junta elástica - fornecimento e assentamento. Af_01/2021 | C110: m | D110: 16.91 | E110: C
A111: 102265 | B111: Junta argamassada entre tubo dn 800 mm e o poço de visita/ caixa de concreto ou alvenaria em redes de esgoto. Af_01/2021 | C111: un | D111: 97.35 | E111: C
A112: 102266 | B112: Junta argamassada entre tubo dn 900 mm e o poço de visita/ caixa de concreto ou alvenaria em redes de esgoto. Af_01/2021 | C112: un | D112: 107.96 | E112: C
A113: 102267 | B113: Junta argamassada entre tubo dn 1000 mm e o poço de visita/ caixa de concreto ou alvenaria em redes de esgoto. Af_01/2021 | C113: un | D113: 123.96 | E113: C
A114: 102268 | B114: Junta argamassada entre tubo dn 1200 mm e o poço de visita/ caixa de concreto ou alvenaria em redes de esgoto. Af_01/2021 | C114: un | D114: 139.89 | E114: C
A115: 102269 | B115: Junta argamassada entre tubo dn 1500 mm e o poço de visita/ caixa de concreto ou alvenaria em redes de esgoto. Af_01/2021 | C115: un | D115: 171.73 | E115: C
A116: 92833 | B116: Tubo de concreto para redes coletoras de esgoto sanitário, diâmetro de 300 mm, junta elástica, instalado em local com baixo nível de interferências - fornecimento e assentamento. Af_12/2015 | C116: m | D116: 173.69 | E116: C
A117: 92834 | B117: Assentamento de tubo de concreto para redes coletoras de esgoto sanitário, diâmetro de 300 mm, junta elástica, instalado em local com baixo nível de interferências (não inclui fornecimento). Af_12/2015 | C117: m | D117: 7.87 | E117: C
A118: 92835 | B118: Tubo de concreto para redes coletoras de esgoto sanitário, diâmetro de 400 mm, junta elástica, instalado em local com baixo nível de interferências - fornecimento e assentamento. Af_12/2015 | C118: m | D118: 187.81 | E118: C
A119: 92836 | B119: Assentamento de tubo de concreto para redes coletoras de esgoto sanitário, diâmetro de 400 mm, junta elástica, instalado em local com baixo nível de interferências (não inclui fornecimento). Af_12/2015 | C119: m | D119: 10.06 | E119: C
A120: 92837 | B120: Tubo de concreto para redes coletoras de esgoto sanitário, diâmetro de 500 mm, junta elástica, instalado em local com baixo nível de interferências - fornecimento e assentamento. Af_12/2015 | C120: m | D120: 307.89 | E120: C
A121: 92838 | B121: Assentamento de tubo de concreto para redes coletoras de esgoto sanitário, diâmetro de 500 mm, junta elástica, instalado em local com baixo nível de interferências (não inclui fornecimento). Af_12/2015 | C121: m | D121: 12.07 | E121: C
A122: 92839 | B122: Tubo de concreto para redes coletoras de esgoto sanitário, diâmetro de 600 mm, junta elástica, instalado em local com baixo nível de interferências - fornecimento e assentamento. Af_12/2015 | C122: m | D122: 377.15 | E122: C
A123: 92840 | B123: Assentamento de tubo de concreto para redes coletoras de esgoto sanitário, diâmetro de 600 mm, junta elástica, instalado em local com baixo nível de interferências (não inclui fornecimento). Af_12/2015 | C123: m | D123: 14.3 | E123: C
A124: 92841 | B124: Tubo de concreto para redes coletoras de esgoto sanitário, diâmetro de 700 mm, junta elástica, instalado em local com baixo nível de interferências - fornecimento e assentamento. Af_12/2015 | C124: m | D124: 468.67 | E124: C
A125: 92842 | B125: Assentamento de tubo de concreto para redes coletoras de esgoto sanitário, diâmetro de 700 mm, junta elástica, instalado em local com baixo nível de interferências (não inclui fornecimento). Af_12/2015 | C125: m | D125: 16.32 | E125: C
A126: 92843 | B126: Tubo de concreto para redes coletoras de esgoto sanitário, diâmetro de 800 mm, junta elástica, instalado em local com baixo nível de interferências - fornecimento e assentamento. Af_12/2015 | C126: m | D126: 498.44 | E126: C
A127: 92844 | B127: Assentamento de tubo de concreto para redes coletoras de esgoto sanitário, diâmetro de 800 mm, junta elástica, instalado em local com baixo nível de interferências (não inclui fornecimento). Af_12/2015 | C127: m | D127: 18.56 | E127: C
A128: 92845 | B128: Tubo de concreto para redes coletoras de esgoto sanitário, diâmetro de 900 mm, junta elástica, instalado em local com baixo nível de interferências - fornecimento e assentamento. Af_12/2015 | C128: m | D128: 683.36 | E128: C
A129: 92846 | B129: Assentamento de tubo de concreto para redes coletoras de esgoto sanitário, diâmetro de 900 mm, junta elástica, instalado em local com baixo nível de interferências (não inclui fornecimento). Af_12/2015 | C129: m | D129: 20.58 | E129: C
A130: 92847 | B130: Tubo de concreto para redes coletoras de esgoto sanitário, diâmetro de 1000 mm, junta elástica, instalado em local com baixo nível de interferências - fornecimento e assentamento. Af_12/2015 | C130: m | D130: 722.47 | E130: C
A131: 92848 | B131: Assentamento de tubo de concreto para redes coletoras de esgoto sanitário, diâmetro de 1000 mm, junta elástica, instalado em local com baixo nível de interferências (não inclui fornecimento). Af_12/2015 | C131: m | D131: 22.82 | E131: C
A132: 92849 | B132: Tubo de concreto para redes coletoras de esgoto sanitário, diâmetro de 300 mm, junta elástica, instalado em local com alto nível de interferências - fornecimento e assentamento. Af_12/2015 | C132: m | D132: 181.93 | E132: C
A133: 92850 | B133: Assentamento de tubo de concreto para redes coletoras de esgoto sanitário, diâmetro de 300 mm, junta elástica, instalado em local com alto nível de interferências (não inclui fornecimento). Af_12/2015 | C133: m | D133: 14.89 | E133: C
A134: 92851 | B134: Tubo de concreto para redes coletoras de esgoto sanitário, diâmetro de 400 mm, junta elástica, instalado em local com alto nível de interferências - fornecimento e assentamento. Af_12/2015 | C134: m | D134: 198.09 | E134: C
A135: 92852 | B135: Assentamento de tubo de concreto para redes coletoras de esgoto sanitário, diâmetro de 400 mm, junta elástica, instalado em local com alto nível de interferências (não inclui fornecimento). Af_12/2015 | C135: m | D135: 18.82 | E135: C
A136: 92853 | B136: Tubo de concreto para redes coletoras de esgoto sanitário, diâmetro de 500 mm, junta elástica, instalado em local com alto nível de interferências - fornecimento e assentamento. Af_12/2015 | C136: m | D136: 320.57 | E136: C
A137: 92854 | B137: Assentamento de tubo de concreto para redes coletoras de esgoto sanitário, diâmetro de 500 mm, junta elástica, instalado em local com alto nível de interferências (não inclui fornecimento). Af_12/2015 | C137: m | D137: 22.9 | E137: C
A138: 92855 | B138: Tubo de concreto para redes coletoras de esgoto sanitário, diâmetro de 600 mm, junta elástica, instalado em local com alto nível de interferências - fornecimento e assentamento. Af_12/2015 | C138: m | D138: 392.06 | E138: C
A139: 92856 | B139: Assentamento de tubo de concreto para redes coletoras de esgoto sanitário, diâmetro de 600 mm, junta elástica, instalado em local com alto nível de interferências (não inclui fornecimento). Af_12/2015 | C139: m | D139: 27 | E139: C
A140: 92857 | B140: Tubo de concreto para redes coletoras de esgoto sanitário, diâmetro de 700 mm, junta elástica, instalado em local com alto nível de interferências - fornecimento e assentamento. Af_12/2015 | C140: m | D140: 485.75 | E140: C
A141: 92858 | B141: Assentamento de tubo de concreto para redes coletoras de esgoto sanitário, diâmetro de 700 mm, junta elástica, instalado em local com alto nível de interferências (não inclui fornecimento). Af_12/2015 | C141: m | D141: 30.89 | E141: C
A142: 92859 | B142: Tubo de concreto para redes coletoras de esgoto sanitário, diâmetro de 800 mm, junta elástica, instalado em local com alto nível de interferências - fornecimento e assentamento. Af_12/2015 | C142: m | D142: 514.96 | E142: C
A143: 92860 | B143: Assentamento de tubo de concreto para redes coletoras de esgoto sanitário, diâmetro de 800 mm, junta elástica, instalado em local com alto nível de interferências (não inclui fornecimento). Af_12/2015 | C143: m | D143: 35.08 | E143: C
A144: 92861 | B144: Tubo de concreto para redes coletoras de esgoto sanitário, diâmetro de 900 mm, junta elástica, instalado em local com alto nível de interferências - fornecimento e assentamento. Af_12/2015 | C144: m | D144: 701.93 | E144: C
A145: 92862 | B145: Assentamento de tubo de concreto para redes coletoras de esgoto sanitário, diâmetro de 900 mm, junta elástica, instalado em local com alto nível de interferências (não inclui fornecimento). Af_12/2015 | C145: m | D145: 39.15 | E145: C
A146: 92863 | B146: Tubo de concreto para redes coletoras de esgoto sanitário, diâmetro de 1000 mm, junta elástica, instalado em local com alto nível de interferências - fornecimento e assentamento. Af_12/2015 | C146: m | D146: 746.4 | E146: C
A147: 92864 | B147: Assentamento de tubo de concreto para redes coletoras de esgoto sanitário, diâmetro de 1000 mm, junta elástica, instalado em local com alto nível de interferências (não inclui fornecimento). Af_12/2015 | C147: m | D147: 43.24 | E147: C
A148: 92210 | B148: Tubo de concreto para redes coletoras de águas pluviais, diâmetro de 400 mm, junta rígida, instalado em local com baixo nível de interferências - fornecimento e assentamento. Af_12/2015 | C148: m | D148: 120.26 | E148: C
A149: 92211 | B149: Tubo de concreto para redes coletoras de águas pluviais, diâmetro de 500 mm, junta rígida, instalado em local com baixo nível de interferências - fornecimento e assentamento. Af_12/2015 | C149: m | D149: 144.79 | E149: C
A150: 92212 | B150: Tubo de concreto para redes coletoras de águas pluviais, diâmetro de 600 mm, junta rígida, instalado em local com baixo nível de interferências - fornecimento e assentamento. Af_12/2015 | C150: m | D150: 210.74 | E150: C
A151: 92213 | B151: Tubo de concreto para redes coletoras de águas pluviais, diâmetro de 700 mm, junta rígida, instalado em local com baixo nível de interferências - fornecimento e assentamento. Af_12/2015 | C151: m | D151: 273.74 | E151: C
A152: 92214 | B152: Tubo de concreto para redes coletoras de águas pluviais, diâmetro de 800 mm, junta rígida, instalado em local com baixo nível de interferências - fornecimento e assentamento. Af_12/2015 | C152: m | D152: 329.92 | E152: C
A153: 92215 | B153: Tubo de concreto para redes coletoras de águas pluviais, diâmetro de 900 mm, junta rígida, instalado em local com baixo nível de interferências - fornecimento e assentamento. Af_12/2015 | C153: m | D153: 379.18 | E153: C
A154: 92216 | B154: Tubo de concreto para redes coletoras de águas pluviais, diâmetro de 1000 mm, junta rígida, instalado em local com baixo nível de interferências - fornecimento e assentamento. Af_12/2015 | C154: m | D154: 400.52 | E154: C
A155: 92219 | B155: Tubo de concreto para redes coletoras de águas pluviais, diâmetro de 400 mm, junta rígida, instalado em local com alto nível de interferências - fornecimento e assentamento. Af_12/2015 | C155: m | D155: 129.01 | E155: C
A156: 92220 | B156: Tubo de concreto para redes coletoras de águas pluviais, diâmetro de 500 mm, junta rígida, instalado em local com alto nível de interferências - fornecimento e assentamento. Af_12/2015 | C156: m | D156: 155.63 | E156: C
A157: 92221 | B157: Tubo de concreto para redes coletoras de águas pluviais, diâmetro de 600 mm, junta rígida, instalado em local com alto nível de interferências - fornecimento e assentamento. Af_12/2015 | C157: m | D157: 223.44 | E157: C
A158: 92222 | B158: Tubo de concreto para redes coletoras de águas pluviais, diâmetro de 700 mm, junta rígida, instalado em local com alto nível de interferências - fornecimento e assentamento. Af_12/2015 | C158: m | D158: 288.5 | E158: C
A159: 92223 | B159: Tubo de concreto para redes coletoras de águas pluviais, diâmetro de 800 mm, junta rígida, instalado em local com alto nível de interferências - fornecimento e assentamento. Af_12/2015 | C159: m | D159: 346.45 | E159: C
A160: 92224 | B160: Tubo de concreto para redes coletoras de águas pluviais, diâmetro de 900 mm, junta rígida, instalado em local com alto nível de interferências - fornecimento e assentamento. Af_12/2015 | C160: m | D160: 397.51 | E160: C
A161: 92226 | B161: Tubo de concreto para redes coletoras de águas pluviais, diâmetro de 1000 mm, junta rígida, instalado em local com alto nível de interferências - fornecimento e assentamento. Af_12/2015 | C161: m | D161: 421.03 | E161: C
A162: 92808 | B162: Assentamento de tubo de concreto para redes coletoras de águas pluviais, diâmetro de 300 mm, junta rígida, instalado em local com baixo nível de interferências (não inclui fornecimento). Af_12/2015 | C162: m | D162: 35.59 | E162: C
A163: 92809 | B163: Assentamento de tubo de concreto para redes coletoras de águas pluviais, diâmetro de 400 mm, junta rígida, instalado em local com baixo nível de interferências (não inclui fornecimento). Af_12/2015 | C163: m | D163: 45.74 | E163: C
A164: 92810 | B164: Assentamento de tubo de concreto para redes coletoras de águas pluviais, diâmetro de 500 mm, junta rígida, instalado em local com baixo nível de interferências (não inclui fornecimento). Af_12/2015 | C164: m | D164: 55.73 | E164: C
A165: 92811 | B165: Assentamento de tubo de concreto para redes coletoras de águas pluviais, diâmetro de 600 mm, junta rígida, instalado em local com baixo nível de interferências (não inclui fornecimento). Af_12/2015 | C165: m | D165: 66.54 | E165: C
A166: 92812 | B166: Assentamento de tubo de concreto para redes coletoras de águas pluviais, diâmetro de 700 mm, junta rígida, instalado em local com baixo nível de interferências (não inclui fornecimento). Af_12/2015 | C166: m | D166: 77.2 | E166: C
A167: 92813 | B167: Assentamento de tubo de concreto para redes coletoras de águas pluviais, diâmetro de 800 mm, junta rígida, instalado em local com baixo nível de interferências (não inclui fornecimento). Af_12/2015 | C167: m | D167: 90 | E167: C
A168: 92814 | B168: Assentamento de tubo de concreto para redes coletoras de águas pluviais, diâmetro de 900 mm, junta rígida, instalado em local com baixo nível de interferências (não inclui fornecimento). Af_12/2015 | C168: m | D168: 103.52 | E168: C
A169: 92815 | B169: Assentamento de tubo de concreto para redes coletoras de águas pluviais, diâmetro de 1000 mm, junta rígida, instalado em local com baixo nível de interferências (não inclui fornecimento). Af_12/2015 | C169: m | D169: 119.4 | E169: C
A170: 92816 | B170: Tubo de concreto para redes coletoras de águas pluviais, diâmetro de 1200 mm, junta rígida, instalado em local com baixo nível de interferências - fornecimento e assentamento. Af_12/2015 | C170: m | D170: 569.26 | E170: C
A171: 92817 | B171: Assentamento de tubo de concreto para redes coletoras de águas pluviais, diâmetro de 1200 mm, junta rígida, instalado em local com baixo nível de interferências (não inclui fornecimento). Af_12/2015 | C171: m | D171: 149.4 | E171: C
A172: 92818 | B172: Tubo de concreto para redes coletoras de águas pluviais, diâmetro de 1500 mm, junta rígida, instalado em local com baixo nível de interferências - fornecimento e assentamento. Af_12/2015 | C172: m | D172: 809.4 | E172: C
A173: 92819 | B173: Assentamento de tubo de concreto para redes coletoras de águas pluviais, diâmetro de 1500 mm, junta rígida, instalado em local com baixo nível de interferências (não inclui fornecimento). Af_12/2015 | C173: m | D173: 201.11 | E173: C
A174: 92820 | B174: Assentamento de tubo de concreto para redes coletoras de águas pluviais, diâmetro de 300 mm, junta rígida, instalado em local com alto nível de interferências (não inclui fornecimento). Af_12/2015 | C174: m | D174: 42.44 | E174: C
A175: 92821 | B175: Assentamento de tubo de concreto para redes coletoras de águas pluviais, diâmetro de 400 mm, junta rígida, instalado em local com alto nível de interferências (não inclui fornecimento). Af_12/2015 | C175: m | D175: 54.49 | E175: C
A176: 92822 | B176: Assentamento de tubo de concreto para redes coletoras de águas pluviais, diâmetro de 500 mm, junta rígida, instalado em local com alto nível de interferências (não inclui fornecimento). Af_12/2015 | C176: m | D176: 66.57 | E176: C
A177: 92824 | B177: Assentamento de tubo de concreto para redes coletoras de águas pluviais, diâmetro de 600 mm, junta rígida, instalado em local com alto nível de interferências (não inclui fornecimento). Af_12/2015 | C177: m | D177: 79.24 | E177: C
A178: 92825 | B178: Assentamento de tubo de concreto para redes coletoras de águas pluviais, diâmetro de 700 mm, junta rígida, instalado em local com alto nível de interferências (não inclui fornecimento). Af_12/2015 | C178: m | D178: 91.96 | E178: C
A179: 92826 | B179: Assentamento de tubo de concreto para redes coletoras de águas pluviais, diâmetro de 800 mm, junta rígida, instalado em local com alto nível de interferências (não inclui fornecimento). Af_12/2015 | C179: m | D179: 106.53 | E179: C
A180: 92827 | B180: Assentamento de tubo de concreto para redes coletoras de águas pluviais, diâmetro de 900 mm, junta rígida, instalado em local com alto nível de interferências (não inclui fornecimento). Af_12/2015 | C180: m | D180: 121.85 | E180: C
A181: 92828 | B181: Assentamento de tubo de concreto para redes coletoras de águas pluviais, diâmetro de 1000 mm, junta rígida, instalado em local com alto nível de interferências (não inclui fornecimento). Af_12/2015 | C181: m | D181: 139.91 | E181: C
A182: 92829 | B182: Tubo de concreto para redes coletoras de águas pluviais, diâmetro de 1200 mm, junta rígida, instalado em local com alto nível de interferências - fornecimento e assentamento. Af_12/2015 | C182: m | D182: 593.41 | E182: C
A183: 92830 | B183: Assentamento de tubo de concreto para redes coletoras de águas pluviais, diâmetro de 1200 mm, junta rígida, instalado em local com alto nível de interferências (não inclui fornecimento). Af_12/2015 | C183: m | D183: 173.55 | E183: C
A184: 92831 | B184: Tubo de concreto para redes coletoras de águas pluviais, diâmetro de 1500 mm, junta rígida, instalado em local com alto nível de interferências - fornecimento e assentamento. Af_12/2015 | C184: m | D184: 839 | E184: C
A185: 92832 | B185: Assentamento de tubo de concreto para redes coletoras de águas pluviais, diâmetro de 1500 mm, junta rígida, instalado em local com alto nível de interferências (não inclui fornecimento). Af_12/2015 | C185: m | D185: 230.71 | E185: C
A186: 95565 | B186: Tubo de concreto para redes coletoras de águas pluviais, diâmetro de 300mm, junta rígida, instalado em local com baixo nível de interferências - fornecimento e assentamento. Af_12/2015 | C186: m | D186: 107.64 | E186: C
A187: 95566 | B187: Tubo de concreto para redes coletoras de águas pluviais, diâmetro de 300mm, junta rígida, instalado em local com alto nível de interferências - fornecimento e assentamento. Af_12/2015 | C187: m | D187: 115.68 | E187: C
A188: 95567 | B188: Tubo de concreto (simples) para redes coletoras de águas pluviais, diâmetro de 300 mm, junta rígida, instalado em local com baixo nível de interferências - fornecimento e assentamento. Af_12/2015 | C188: m | D188: 93.11 | E188: C
A189: 95568 | B189: Tubo de concreto (simples) para redes coletoras de águas pluviais, diâmetro de 400 mm, junta rígida, instalado em local com baixo nível de interferências - fornecimento e assentamento. Af_12/2015 | C189: m | D189: 114.23 | E189: C
A190: 95569 | B190: Tubo de concreto (simples) para redes coletoras de águas pluviais, diâmetro de 500 mm, junta rígida, instalado em local com baixo nível de interferências - fornecimento e assentamento. Af_12/2015 | C190: m | D190: 155.56 | E190: C
A191: 95570 | B191: Tubo de concreto (simples) para redes coletoras de águas pluviais, diâmetro de 300 mm, junta rígida, instalado em local com alto nível de interferências - fornecimento e assentamento. Af_12/2015 | C191: m | D191: 101.15 | E191: C
A192: 95571 | B192: Tubo de concreto (simples) para redes coletoras de águas pluviais, diâmetro de 400 mm, junta rígida, instalado em local com alto nível de interferências - fornecimento e assentamento. Af_12/2015 | C192: m | D192: 124.49 | E192: C
A193: 95572 | B193: Tubo de concreto (simples) para redes coletoras de águas pluviais, diâmetro de 500 mm, junta rígida, instalado em local com alto nível de interferências - fornecimento e assentamento. Af_12/2015 | C193: m | D193: 168.25 | E193: C
A194: 97127 | B194: Assentamento de tubo de pvc defofo ou prfv ou rpvc para rede de água, dn 150 mm, junta elástica integrada, instalado em local com nível alto de interferências (não inclui fornecimento). Af_11/2017 | C194: m | D194: 4.82 | E194: C
A195: 97128 | B195: Assentamento de tubo de pvc defofo ou prfv ou rpvc para rede de água, dn 200 mm, junta elástica integrada, instalado em local com nível alto de interferências (não inclui fornecimento). Af_11/2017 | C195: m | D195: 8.94 | E195: C
A196: 97129 | B196: Assentamento de tubo de pvc defofo ou prfv ou rpvc para rede de água, dn 250 mm, junta elástica integrada, instalado em local com nível alto de interferências (não inclui fornecimento). Af_11/2017 | C196: m | D196: 10.99 | E196: C
A197: 97130 | B197: Assentamento de tubo de pvc defofo ou prfv ou rpvc para rede de água, dn 300 mm, junta elástica integrada, instalado em local com nível alto de interferências (não inclui fornecimento). Af_11/2017 | C197: m | D197: 13.05 | E197: C
A198: 97131 | B198: Assentamento de tubo de pvc defofo ou prfv ou rpvc para rede de água, dn 350 mm, junta elástica integrada, instalado em local com nível alto de interferências (não inclui fornecimento). Af_11/2017 | C198: m | D198: 15.09 | E198: C
A199: 97132 | B199: Assentamento de tubo de pvc defofo ou prfv ou rpvc para rede de água, dn 400 mm, junta elástica integrada, instalado em local com nível alto de interferências (não inclui fornecimento). Af_11/2017 | C199: m | D199: 17.14 | E199: C
A200: 97133 | B200: Assentamento de tubo de pvc defofo ou prfv ou rpvc para rede de água, dn 500 mm, junta elástica integrada, instalado em local com nível alto de interferências (não inclui fornecimento). Af_11/2017 | C200: m | D200: 21.24 | E200: C
A201: 97134 | B201: Assentamento de tubo de pvc defofo ou prfv ou rpvc para rede de água, dn 150 mm, junta elástica integrada, instalado em local com nível baixo de interferências (não inclui fornecimento). Af_11/2017 | C201: m | D201: 2.19 | E201: C
... 11877 more rows
